Body Name,Body,Service Label,Service Code,CIPFA Detailed Expenditure Type,CIPFA Detailed Expenditure Code,Date,Transaction Number,Net Amount,Supplier Name,,,,,,,,,,,#REF!
Nottinghamshire County Council,1111/1001,Surplus or Deficit from Trading Undertak,TRADING,Supplies & Services,DAA,17/12/2014,11-10001,937.74,Bunzl Catering Supplies,,,,,,,,,,,
Nottinghamshire County Council,1111/1001,Surplus or Deficit from Trading Undertak,TRADING,Supplies & Services,DAA,16/12/2014,11-10001,507.53,W V Howe (Hardware) Ltd,,,,,,,,,,,
Nottinghamshire County Council,1111/1001,Surplus or Deficit from Trading Undertak,TRADING,Supplies & Services,DAA,16/12/2014,11-10001,763.2,W V Howe (Hardware) Ltd,,,,,,,,,,,
Nottinghamshire County Council,1111/1001,Surplus or Deficit from Trading Undertak,TRADING,Supplies & Services,DAA,16/12/2014,11-10001,622.1,W V Howe (Hardware) Ltd,,,,,,,,,,,
Nottinghamshire County Council,1111/1001,Surplus or Deficit from Trading Undertak,TRADING,Supplies & Services,DAA,16/12/2014,11-10001,679.8,W V Howe (Hardware) Ltd,,,,,,,,,,,
Nottinghamshire County Council,1111/1001,Surplus or Deficit from Trading Undertak,TRADING,Supplies & Services,DAA,03/12/2014,11-10001,774.34,Catering Supplies (Wakefield) Ltd,,,,,,,,,,,
Nottinghamshire County Council,1111/1001,Surplus or Deficit from Trading Undertak,TRADING,Supplies & Services,DAA,19/12/2014,11-10001,838.56,Catering Supplies (Wakefield) Ltd,,,,,,,,,,,
Nottinghamshire County Council,1111/1001,Surplus or Deficit from Trading Undertak,TRADING,Supplies & Services,DAA,05/12/2014,11-10001,3996.13,Sca Hygiene,,,,,,,,,,,
Nottinghamshire County Council,1111/1001,Surplus or Deficit from Trading Undertak,TRADING,Supplies & Services,DAA,17/12/2014,11-10001,5022.61,Sca Hygiene,,,,,,,,,,,
Nottinghamshire County Council,1111/1001,Surplus or Deficit from Trading Undertak,TRADING,Supplies & Services,DAA,17/12/2014,11-10001,3220.53,Sca Hygiene,,,,,,,,,,,
Nottinghamshire County Council,1111/1001,Surplus or Deficit from Trading Undertak,TRADING,Premises Related,BJA,17/12/2014,11-10001,1599.36,Polystar Plastics Ltd,,,,,,,,,,,
Nottinghamshire County Council,1111/1001,Surplus or Deficit from Trading Undertak,TRADING,Premises Related,BJA,09/12/2014,11-10001,1288.54,Kimberley Clark European Services Ltd,,,,,,,,,,,
Nottinghamshire County Council,1111/1001,Surplus or Deficit from Trading Undertak,TRADING,Premises Related,BJA,09/12/2014,11-10001,2104.2,Kimberley Clark European Services Ltd,,,,,,,,,,,
Nottinghamshire County Council,1111/1001,Surplus or Deficit from Trading Undertak,TRADING,Premises Related,BJA,11/12/2014,11-10001,707.1,Kimberley Clark European Services Ltd,,,,,,,,,,,
Nottinghamshire County Council,1111/1001,Surplus or Deficit from Trading Undertak,TRADING,Premises Related,BJA,11/12/2014,11-10001,753.37,Ecover (Uk) Ltd,,,,,,,,,,,
Nottinghamshire County Council,1111/1001,Surplus or Deficit from Trading Undertak,TRADING,Premises Related,BJA,09/12/2014,11-10001,1520,Lnt Solutions,,,,,,,,,,,
Nottinghamshire County Council,1111/1001,Surplus or Deficit from Trading Undertak,TRADING,Premises Related,BJA,17/12/2014,11-10001,1020,Cromwell Polythene Ltd,,,,,,,,,,,
Nottinghamshire County Council,1111/1001,Surplus or Deficit from Trading Undertak,TRADING,Premises Related,BJA,08/12/2014,11-10001,611.12,Evans Vanodine International Ltd,,,,,,,,,,,
Nottinghamshire County Council,1111/1001,Surplus or Deficit from Trading Undertak,TRADING,Premises Related,BJA,03/12/2014,11-10001,2431.95,Johnson Diversey,,,,,,,,,,,
Nottinghamshire County Council,1111/1001,Surplus or Deficit from Trading Undertak,TRADING,Premises Related,BJA,16/12/2014,11-10001,843.1,Johnson Diversey,,,,,,,,,,,
Nottinghamshire County Council,1111/1001,Surplus or Deficit from Trading Undertak,TRADING,Premises Related,BJA,17/12/2014,11-10001,2335.46,Johnson Diversey,,,,,,,,,,,
Nottinghamshire County Council,1111/1001,Surplus or Deficit from Trading Undertak,TRADING,Premises Related,BJA,23/12/2014,11-10001,1311.25,Johnson Diversey,,,,,,,,,,,
Nottinghamshire County Council,1111/1001,Surplus or Deficit from Trading Undertak,TRADING,Premises Related,BJA,05/12/2014,11-10001,3971.28,Premiere Products,,,,,,,,,,,
Nottinghamshire County Council,1111/1001,Surplus or Deficit from Trading Undertak,TRADING,Premises Related,BJA,16/12/2014,11-10001,1318.57,Premiere Products,,,,,,,,,,,
Nottinghamshire County Council,1111/1001,Surplus or Deficit from Trading Undertak,TRADING,Premises Related,BJA,08/12/2014,11-10001,602.33,Numatic International Ltd,,,,,,,,,,,
Nottinghamshire County Council,1111/1001,Surplus or Deficit from Trading Undertak,TRADING,Premises Related,BJA,11/12/2014,11-10001,890,Candor Services,,,,,,,,,,,
Nottinghamshire County Council,1111/1001,Surplus or Deficit from Trading Undertak,TRADING,Premises Related,BJA,23/12/2014,11-10001,1397.75,Candor Services,,,,,,,,,,,
Nottinghamshire County Council,1111/1001,Surplus or Deficit from Trading Undertak,TRADING,Supplies & Services,DCA,05/12/2014,11-10001,535,Freudenberg Household Products Lp,,,,,,,,,,,
Nottinghamshire County Council,1111/1001,Surplus or Deficit from Trading Undertak,TRADING,Supplies & Services,DCA,11/12/2014,11-10001,2054.05,Shermond,,,,,,,,,,,
Nottinghamshire County Council,1111/1001,Surplus or Deficit from Trading Undertak,TRADING,Supplies & Services,DCA,16/12/2014,11-10001,763.93,Shermond,,,,,,,,,,,
Nottinghamshire County Council,1111/1001,Surplus or Deficit from Trading Undertak,TRADING,Supplies & Services,DCA,19/12/2014,11-10001,2024.18,Shermond,,,,,,,,,,,
Nottinghamshire County Council,1111/1001,Surplus or Deficit from Trading Undertak,TRADING,Supplies & Services,DAA,03/12/2014,11-10001,848.68,Dualit Ltd,,,,,,,,,,,
Nottinghamshire County Council,1111/1001,Surplus or Deficit from Trading Undertak,TRADING,Supplies & Services,DAA,17/12/2014,11-10001,658.73,Dualit Ltd,,,,,,,,,,,
Nottinghamshire County Council,1111/1001,Surplus or Deficit from Trading Undertak,TRADING,Supplies & Services,DAA,17/12/2014,11-10001,802,Stearn Electric Company Ltd,,,,,,,,,,,
Nottinghamshire County Council,1111/1001,Surplus or Deficit from Trading Undertak,TRADING,Supplies & Services,DAA,09/12/2014,11-10001,523.05,Synergy Health (Uk) Ltd,,,,,,,,,,,
Nottinghamshire County Council,1111/1001,Surplus or Deficit from Trading Undertak,TRADING,Supplies & Services,DAA,17/12/2014,11-10001,523.05,Synergy Health (Uk) Ltd,,,,,,,,,,,
Nottinghamshire County Council,1111/1001,Surplus or Deficit from Trading Undertak,TRADING,Supplies & Services,DAA,05/12/2014,11-10001,1952.2,Principal Furniture,,,,,,,,,,,
Nottinghamshire County Council,1111/1001,Surplus or Deficit from Trading Undertak,TRADING,Supplies & Services,DAA,08/12/2014,11-10001,893.52,Insight,,,,,,,,,,,
Nottinghamshire County Council,1111/1001,Surplus or Deficit from Trading Undertak,TRADING,Supplies & Services,DAA,03/12/2014,11-10001,975.76,Niels Larsen Ltd,,,,,,,,,,,
Nottinghamshire County Council,1111/1001,Surplus or Deficit from Trading Undertak,TRADING,Supplies & Services,DAA,05/12/2014,11-10001,1037.72,Combined Office Interiors Ltd,,,,,,,,,,,
Nottinghamshire County Council,1111/1001,Surplus or Deficit from Trading Undertak,TRADING,Supplies & Services,DAA,17/12/2014,11-10001,502.08,Hille Education Products Ltd,,,,,,,,,,,
Nottinghamshire County Council,1111/1001,Surplus or Deficit from Trading Undertak,TRADING,Supplies & Services,DAA,23/12/2014,11-10001,623.88,Hille Education Products Ltd,,,,,,,,,,,
Nottinghamshire County Council,1111/1001,Surplus or Deficit from Trading Undertak,TRADING,Supplies & Services,DAA,03/12/2014,11-10001,590,Dale Office Interiors,,,,,,,,,,,
Nottinghamshire County Council,1111/1001,Surplus or Deficit from Trading Undertak,TRADING,Supplies & Services,DAA,16/12/2014,11-10001,921.85,Denis Rawlins Ltd,,,,,,,,,,,
Nottinghamshire County Council,1111/1001,Surplus or Deficit from Trading Undertak,TRADING,Supplies & Services,DAA,03/12/2014,11-10001,756.27,Gopak Ltd,,,,,,,,,,,
Nottinghamshire County Council,1111/1001,Surplus or Deficit from Trading Undertak,TRADING,Supplies & Services,DAA,03/12/2014,11-10001,547.04,Gratnells Ltd,,,,,,,,,,,
Nottinghamshire County Council,1111/1001,Surplus or Deficit from Trading Undertak,TRADING,Supplies & Services,DAA,11/12/2014,11-10001,745.72,Gratnells Ltd,,,,,,,,,,,
Nottinghamshire County Council,1111/1001,Surplus or Deficit from Trading Undertak,TRADING,Supplies & Services,DAA,03/12/2014,11-10001,920,Magiboards Ltd,,,,,,,,,,,
Nottinghamshire County Council,1111/1001,Surplus or Deficit from Trading Undertak,TRADING,Supplies & Services,DAA,05/12/2014,11-10001,602.64,Lockhart Catering Equipment Ltd,,,,,,,,,,,
Nottinghamshire County Council,1111/1001,Surplus or Deficit from Trading Undertak,TRADING,Supplies & Services,DFA,23/12/2014,11-10001,650.51,Royal Mail Group Ltd,,,,,,,,,,,
Nottinghamshire County Council,1111/1001,Surplus or Deficit from Trading Undertak,TRADING,Supplies & Services,DKA,03/12/2014,11-10001,655.26,Bunzl Cleaning & Hygiene Supplies,,,,,,,,,,,
Nottinghamshire County Council,1111/1001,Surplus or Deficit from Trading Undertak,TRADING,Supplies & Services,DKA,05/12/2014,11-10001,1063,Bunzl Cleaning & Hygiene Supplies,,,,,,,,,,,
Nottinghamshire County Council,1111/1001,Surplus or Deficit from Trading Undertak,TRADING,Supplies & Services,DKA,11/12/2014,11-10001,669.15,Bunzl Cleaning & Hygiene Supplies,,,,,,,,,,,
Nottinghamshire County Council,1111/1001,Surplus or Deficit from Trading Undertak,TRADING,Supplies & Services,DKA,11/12/2014,11-10001,1063,Bunzl Cleaning & Hygiene Supplies,,,,,,,,,,,
Nottinghamshire County Council,1111/1001,Surplus or Deficit from Trading Undertak,TRADING,Supplies & Services,DKA,17/12/2014,11-10001,531.5,Bunzl Cleaning & Hygiene Supplies,,,,,,,,,,,
Nottinghamshire County Council,1111/1001,Surplus or Deficit from Trading Undertak,TRADING,Supplies & Services,DAA,03/12/2014,11-10001,2108.45,R Scott & Sons Ltd,,,,,,,,,,,
Nottinghamshire County Council,1111/1001,Surplus or Deficit from Trading Undertak,TRADING,Supplies & Services,DAA,08/12/2014,11-10001,1347.1,R Scott & Sons Ltd,,,,,,,,,,,
Nottinghamshire County Council,1111/1001,Surplus or Deficit from Trading Undertak,TRADING,Supplies & Services,DAA,03/12/2014,11-10001,596.08,Kb Packaging,,,,,,,,,,,
Nottinghamshire County Council,1111/1001,Surplus or Deficit from Trading Undertak,TRADING,Supplies & Services,DAA,17/12/2014,11-10001,887.64,Bostik Ltd,,,,,,,,,,,
Nottinghamshire County Council,1111/1001,Surplus or Deficit from Trading Undertak,TRADING,Supplies & Services,DAA,23/12/2014,11-10001,565.86,Sonic (Uk) Ltd,,,,,,,,,,,
Nottinghamshire County Council,1111/1001,Surplus or Deficit from Trading Undertak,TRADING,Supplies & Services,DAA,03/12/2014,11-10001,559.2,Heritage Envelopes Ltd,,,,,,,,,,,
Nottinghamshire County Council,1111/1001,Surplus or Deficit from Trading Undertak,TRADING,Supplies & Services,DAA,23/12/2014,11-10001,604.77,Heritage Envelopes Ltd,,,,,,,,,,,
Nottinghamshire County Council,1111/1001,Surplus or Deficit from Trading Undertak,TRADING,Supplies & Services,DAA,09/12/2014,11-10001,1278.6,Antalis Key Accounts,,,,,,,,,,,
Nottinghamshire County Council,1111/1001,Surplus or Deficit from Trading Undertak,TRADING,Supplies & Services,DAA,11/12/2014,11-10001,736.64,Antalis Key Accounts,,,,,,,,,,,
Nottinghamshire County Council,1111/1001,Surplus or Deficit from Trading Undertak,TRADING,Supplies & Services,DAA,17/12/2014,11-10001,616.4,Antalis Key Accounts,,,,,,,,,,,
Nottinghamshire County Council,1111/1001,Surplus or Deficit from Trading Undertak,TRADING,Supplies & Services,DAA,17/12/2014,11-10001,617.3,Antalis Key Accounts,,,,,,,,,,,
Nottinghamshire County Council,1111/1001,Surplus or Deficit from Trading Undertak,TRADING,Supplies & Services,DFA,23/12/2014,11-10001,2585.5,Advanced Ticketing Limited,,,,,,,,,,,
Nottinghamshire County Council,1111/1001,Surplus or Deficit from Trading Undertak,TRADING,Supplies & Services,DFA,04/12/2014,11-10001,4040.21,Advanced Business Software & Solutions,,,,,,,,,,,
Nottinghamshire County Council,1111/1001,Surplus or Deficit from Trading Undertak,TRADING,Supplies & Services,DFA,04/12/2014,11-10001,34363.39,Advanced Business Software & Solutions,,,,,,,,,,,
Nottinghamshire County Council,1111/1001,Surplus or Deficit from Trading Undertak,TRADING,Supplies & Services,DAA,05/12/2014,11-10001,2867.86,Kent County Supplies,,,,,,,,,,,
Nottinghamshire County Council,1111/1001,Surplus or Deficit from Trading Undertak,TRADING,Supplies & Services,DAA,23/12/2014,11-10001,539.12,Kent County Supplies,,,,,,,,,,,
Nottinghamshire County Council,1111/1001,Surplus or Deficit from Trading Undertak,TRADING,Supplies & Services,DAA,17/12/2014,11-10001,539,Craftpacks,,,,,,,,,,,
Nottinghamshire County Council,1111/1001,Surplus or Deficit from Trading Undertak,TRADING,Supplies & Services,DAA,03/12/2014,11-10001,753.72,Newell Rubbermaid,,,,,,,,,,,
Nottinghamshire County Council,1111/1001,Surplus or Deficit from Trading Undertak,TRADING,Supplies & Services,DAA,23/12/2014,11-10001,1223.16,Newell Rubbermaid,,,,,,,,,,,
Nottinghamshire County Council,1111/1001,Surplus or Deficit from Trading Undertak,TRADING,Supplies & Services,DAA,11/12/2014,11-10001,1130.64,Acco-Rexel Ltd,,,,,,,,,,,
Nottinghamshire County Council,1111/1001,Surplus or Deficit from Trading Undertak,TRADING,Supplies & Services,DAA,08/12/2014,11-10001,889.12,R.H.Ritchings Ltd,,,,,,,,,,,
Nottinghamshire County Council,1111/1001,Surplus or Deficit from Trading Undertak,TRADING,Supplies & Services,DAA,03/12/2014,11-10001,717.16,Staedtler (Uk) Ltd,,,,,,,,,,,
Nottinghamshire County Council,1111/1001,Surplus or Deficit from Trading Undertak,TRADING,Supplies & Services,DAA,11/12/2014,11-10001,1446.63,Staedtler (Uk) Ltd,,,,,,,,,,,
Nottinghamshire County Council,1111/1001,Surplus or Deficit from Trading Undertak,TRADING,Supplies & Services,DAA,05/12/2014,11-10001,859.2,Allen Glenold Ltd,,,,,,,,,,,
Nottinghamshire County Council,1111/1001,Surplus or Deficit from Trading Undertak,TRADING,Supplies & Services,DAA,18/12/2014,11-10001,750.15,Allen Glenold Ltd,,,,,,,,,,,
Nottinghamshire County Council,1111/1001,Surplus or Deficit from Trading Undertak,TRADING,Supplies & Services,DAA,11/12/2014,11-10001,2303.64,Higher Kings Mill Ltd,,,,,,,,,,,
Nottinghamshire County Council,1111/1001,Surplus or Deficit from Trading Undertak,TRADING,Supplies & Services,DAA,03/12/2014,11-10001,660.62,Slater Harrison & Co Ltd,,,,,,,,,,,
Nottinghamshire County Council,1111/1001,Surplus or Deficit from Trading Undertak,TRADING,Supplies & Services,DAA,16/12/2014,11-10001,616.62,Slater Harrison & Co Ltd,,,,,,,,,,,
Nottinghamshire County Council,1111/1001,Surplus or Deficit from Trading Undertak,TRADING,Supplies & Services,DAA,16/12/2014,11-10001,1257.15,Slater Harrison & Co Ltd,,,,,,,,,,,
Nottinghamshire County Council,1111/1001,Surplus or Deficit from Trading Undertak,TRADING,Supplies & Services,DAA,08/12/2014,11-10001,776.48,E V Naish Ltd,,,,,,,,,,,
Nottinghamshire County Council,1111/1001,Surplus or Deficit from Trading Undertak,TRADING,Supplies & Services,DAA,03/12/2014,11-10001,850,Lucy Friend Paper Co,,,,,,,,,,,
Nottinghamshire County Council,1111/1001,Surplus or Deficit from Trading Undertak,TRADING,Supplies & Services,DAA,03/12/2014,11-10001,538.54,Creativity International Ltd,,,,,,,,,,,
Nottinghamshire County Council,1111/1001,Surplus or Deficit from Trading Undertak,TRADING,Supplies & Services,DAA,19/12/2014,11-10001,899.12,Creativity International Ltd,,,,,,,,,,,
Nottinghamshire County Council,1111/1001,Surplus or Deficit from Trading Undertak,TRADING,Supplies & Services,DAA,08/12/2014,11-10001,523.46,Bright Ideas Marketing Ltd,,,,,,,,,,,
Nottinghamshire County Council,1111/1001,Surplus or Deficit from Trading Undertak,TRADING,Supplies & Services,DAA,03/12/2014,11-10001,660.88,Eastpoint,,,,,,,,,,,
Nottinghamshire County Council,1111/1001,Surplus or Deficit from Trading Undertak,TRADING,Supplies & Services,DAA,05/12/2014,11-10001,638.74,Eastpoint,,,,,,,,,,,
Nottinghamshire County Council,1111/1001,Surplus or Deficit from Trading Undertak,TRADING,Supplies & Services,DAA,19/12/2014,11-10001,662.68,Esselte Uk,,,,,,,,,,,
Nottinghamshire County Council,1111/1001,Surplus or Deficit from Trading Undertak,TRADING,Supplies & Services,DAA,16/12/2014,11-10001,1839.52,Vivid Laminating Technologies Ltd,,,,,,,,,,,
Nottinghamshire County Council,1111/1001,Surplus or Deficit from Trading Undertak,TRADING,Supplies & Services,DAA,17/12/2014,11-10001,663.3,Vivid Laminating Technologies Ltd,,,,,,,,,,,
Nottinghamshire County Council,1111/1001,Surplus or Deficit from Trading Undertak,TRADING,Supplies & Services,DAA,23/12/2014,11-10001,522.38,Eagle Envelopes Ltd,,,,,,,,,,,
Nottinghamshire County Council,1111/1001,Surplus or Deficit from Trading Undertak,TRADING,Supplies & Services,DDA,03/12/2014,11-10001,712.32,Hamelin Paperbrands Ltd,,,,,,,,,,,
Nottinghamshire County Council,1111/1001,Surplus or Deficit from Trading Undertak,TRADING,Supplies & Services,DDA,03/12/2014,11-10001,1006.5,Hamelin Paperbrands Ltd,,,,,,,,,,,
Nottinghamshire County Council,1111/1001,Surplus or Deficit from Trading Undertak,TRADING,Supplies & Services,DDA,08/12/2014,11-10001,1311.12,Hamelin Paperbrands Ltd,,,,,,,,,,,
Nottinghamshire County Council,1111/1001,Surplus or Deficit from Trading Undertak,TRADING,Supplies & Services,DDA,16/12/2014,11-10001,1012.97,Hamelin Paperbrands Ltd,,,,,,,,,,,
Nottinghamshire County Council,1111/1001,Surplus or Deficit from Trading Undertak,TRADING,Supplies & Services,DDA,19/12/2014,11-10001,637.88,Plastoreg Smidt Gmbh,,,,,,,,,,,
Nottinghamshire County Council,1111/1001,Surplus or Deficit from Trading Undertak,TRADING,Supplies & Services,DDA,03/12/2014,11-10001,4249.2,Henkel Loctite Adhesives Ltd,,,,,,,,,,,
Nottinghamshire County Council,1111/1001,Surplus or Deficit from Trading Undertak,TRADING,Supplies & Services,DDA,03/12/2014,11-10001,3360,Henkel Loctite Adhesives Ltd,,,,,,,,,,,
Nottinghamshire County Council,1111/1001,Surplus or Deficit from Trading Undertak,TRADING,Supplies & Services,DDA,08/12/2014,11-10001,527.8,Henkel Loctite Adhesives Ltd,,,,,,,,,,,
Nottinghamshire County Council,1111/1001,Surplus or Deficit from Trading Undertak,TRADING,Supplies & Services,DDA,16/12/2014,11-10001,668.4,Henkel Loctite Adhesives Ltd,,,,,,,,,,,
Nottinghamshire County Council,1111/1001,Surplus or Deficit from Trading Undertak,TRADING,Supplies & Services,DDA,23/12/2014,11-10001,6116.6,Henkel Loctite Adhesives Ltd,,,,,,,,,,,
Nottinghamshire County Council,1111/1001,Surplus or Deficit from Trading Undertak,TRADING,Supplies & Services,DAA,03/12/2014,11-10001,1410.2,Brian Clegg (Educational Products) Ltd,,,,,,,,,,,
Nottinghamshire County Council,1111/1001,Surplus or Deficit from Trading Undertak,TRADING,Supplies & Services,DAA,19/12/2014,11-10001,623.1,Brian Clegg (Educational Products) Ltd,,,,,,,,,,,
Nottinghamshire County Council,1111/1001,Surplus or Deficit from Trading Undertak,TRADING,Supplies & Services,DAA,23/12/2014,11-10001,1450.66,Brian Clegg (Educational Products) Ltd,,,,,,,,,,,
Nottinghamshire County Council,1111/1001,Surplus or Deficit from Trading Undertak,TRADING,Supplies & Services,DAA,23/12/2014,11-10001,554.65,Brian Clegg (Educational Products) Ltd,,,,,,,,,,,
Nottinghamshire County Council,1111/1001,Surplus or Deficit from Trading Undertak,TRADING,Supplies & Services,DAA,08/12/2014,11-10001,526.95,Commotion Technology Supplies,,,,,,,,,,,
Nottinghamshire County Council,1111/1001,Surplus or Deficit from Trading Undertak,TRADING,Supplies & Services,DAA,09/12/2014,11-10001,666.68,Profile Education Ltd,,,,,,,,,,,
Nottinghamshire County Council,1111/1001,Surplus or Deficit from Trading Undertak,TRADING,Supplies & Services,DAA,03/12/2014,11-10001,1448.86,Monarch Computer Furniture,,,,,,,,,,,
Nottinghamshire County Council,1111/1001,Children and Young People,CYP,Premises Related,BDA,41975,11-10002,5747.54,Making It! Enterprises Ltd,,,,,,,,,,,
Nottinghamshire County Council,1111/1001,Children and Young People,CYP,Premises Related,BDA,41975,11-10005,1099.99,Nottingham City Council,,,,,,,,,,,
Nottinghamshire County Council,1111/1001,Children and Young People,CYP,Premises Related,BDA,41975,11-10006,4250,Redacted,,,,,,,,,,,
Nottinghamshire County Council,1111/1001,Children and Young People,CYP,Premises Related,BDA,41975,11-10016,589,High Peak Borough Council,,,,,,,,,,,
Nottinghamshire County Council,1111/1001,Children and Young People,CYP,Premises Related,BDA,41975,11-10017,3437.5,Diocese of Hallam Trustee,,,,,,,,,,,
Nottinghamshire County Council,1111/1001,Children and Young People,CYP,Premises Related,BDA,41975,11-10019,4600,Bauland Properties Limited,,,,,,,,,,,
Nottinghamshire County Council,1111/1001,Children and Young People,CYP,Premises Related,BDA,41975,11-10021,4674.76,Making It! Enterprises Ltd,,,,,,,,,,,
Nottinghamshire County Council,1111/1001,Children and Young People,CYP,Premises Related,BDA,41975,11-10022,688.11,Bauland Properties Limited,,,,,,,,,,,
Nottinghamshire County Council,1111/1001,Children and Young People,CYP,Premises Related,BDA,41975,11-10023,518,Derbyshire Dales District Council,,,,,,,,,,,
Nottinghamshire County Council,1111/1001,Children and Young People,CYP,Premises Related,BDA,41991,11-10027,3077.97,Making It! Enterprises Ltd,,,,,,,,,,,
Nottinghamshire County Council,1111/1001,Children and Young People,CYP,Premises Related,BFA,41985,11-15259,1520.41,Severn Trent Water Ltd,,,,,,,,,,,
Nottinghamshire County Council,1111/1001,Children and Young People,CYP,Premises Related,BFA,41990,11-15803,559.21,Anglian Water,,,,,,,,,,,
Nottinghamshire County Council,1111/1001,Children and Young People,CYP,Transport Related,CCA,41975,11-13921,2500,Johnson Bros Tours Ltd,,,,,,,,,,,
Nottinghamshire County Council,1111/1001,Children and Young People,CYP,Transport Related,CCA,41975,11-13922,2250,Johnson Bros Tours Ltd,,,,,,,,,,,
Nottinghamshire County Council,1111/1001,Children and Young People,CYP,Transport Related,CCA,41975,11-13923,2780.46,Marriotts Travel,,,,,,,,,,,
Nottinghamshire County Council,1111/1001,Children and Young People,CYP,Transport Related,CCA,41975,11-13924,3542.4,Marriotts Travel,,,,,,,,,,,
Nottinghamshire County Council,1111/1001,Children and Young People,CYP,Transport Related,CCA,41975,11-13927,1917.36,Arrow Specialised Transport Ltd,,,,,,,,,,,
Nottinghamshire County Council,1111/1001,Children and Young People,CYP,Transport Related,CCA,41975,11-13928,1776.6,Arrow Specialised Transport Ltd,,,,,,,,,,,
Nottinghamshire County Council,1111/1001,Children and Young People,CYP,Transport Related,CCA,41975,11-13929,1940.61,Arrow Specialised Transport Ltd,,,,,,,,,,,
Nottinghamshire County Council,1111/1001,Children and Young People,CYP,Transport Related,CCA,41975,11-13930,2610,Arrow Specialised Transport Ltd,,,,,,,,,,,
Nottinghamshire County Council,1111/1001,Children and Young People,CYP,Transport Related,CCA,41975,11-13931,2320,Arrow Specialised Transport Ltd,,,,,,,,,,,
Nottinghamshire County Council,1111/1001,Children and Young People,CYP,Transport Related,CCA,41975,11-13932,2320,Arrow Specialised Transport Ltd,,,,,,,,,,,
Nottinghamshire County Council,1111/1001,Children and Young People,CYP,Transport Related,CCA,41975,11-13933,538.6,Arrow Specialised Transport Ltd,,,,,,,,,,,
Nottinghamshire County Council,1111/1001,Children and Young People,CYP,Transport Related,CCA,41975,11-13934,2094.6,Arrow Specialised Transport Ltd,,,,,,,,,,,
Nottinghamshire County Council,1111/1001,Children and Young People,CYP,Transport Related,CCA,41975,11-13935,2459.8,Arrow Specialised Transport Ltd,,,,,,,,,,,
Nottinghamshire County Council,1111/1001,Children and Young People,CYP,Transport Related,CCA,41975,11-13938,489.48,Fozcabs Newark Taxis,,,,,,,,,,,
Nottinghamshire County Council,1111/1001,Children and Young People,CYP,Transport Related,CCA,41975,11-13941,2839.14,Fozcabs Newark Taxis,,,,,,,,,,,
Nottinghamshire County Council,1111/1001,Children and Young People,CYP,Transport Related,CCA,41975,11-13942,763.49,Fozcabs Newark Taxis,,,,,,,,,,,
Nottinghamshire County Council,1111/1001,Children and Young People,CYP,Transport Related,CCA,41975,11-13943,1872,Fozcabs Newark Taxis,,,,,,,,,,,
Nottinghamshire County Council,1111/1001,Children and Young People,CYP,Transport Related,CCA,41975,11-13944,1447.23,Fozcabs Newark Taxis,,,,,,,,,,,
Nottinghamshire County Council,1111/1001,Children and Young People,CYP,Transport Related,CCA,41975,11-13945,1644,Fozcabs Newark Taxis,,,,,,,,,,,
Nottinghamshire County Council,1111/1001,Children and Young People,CYP,Transport Related,CCA,41975,11-13946,924,Fozcabs Newark Taxis,,,,,,,,,,,
Nottinghamshire County Council,1111/1001,Children and Young People,CYP,Transport Related,CCA,41975,11-13947,750,Fozcabs Newark Taxis,,,,,,,,,,,
Nottinghamshire County Council,1111/1001,Children and Young People,CYP,Transport Related,CCA,41975,11-13954,1283.33,Silverdale Tours Nottm Ltd,,,,,,,,,,,
Nottinghamshire County Council,1111/1001,Children and Young People,CYP,Transport Related,CCA,41975,11-13955,2047.5,Silverdale Tours Nottm Ltd,,,,,,,,,,,
Nottinghamshire County Council,1111/1001,Children and Young People,CYP,Transport Related,CCA,41975,11-13963,7400,Kettlewell Retford Ltd,,,,,,,,,,,
Nottinghamshire County Council,1111/1001,Children and Young People,CYP,Transport Related,CCA,41975,11-13964,980,Kettlewell Retford Ltd,,,,,,,,,,,
Nottinghamshire County Council,1111/1001,Children and Young People,CYP,Transport Related,CCA,41976,11-14122,2867,Taxicover Uk Ltd,,,,,,,,,,,
Nottinghamshire County Council,1111/1001,Children and Young People,CYP,Transport Related,CCA,41976,11-14123,4288.6,Taxicover Uk Ltd,,,,,,,,,,,
Nottinghamshire County Council,1111/1001,Children and Young People,CYP,Transport Related,CCA,41976,11-14124,2951.4,Taxicover Uk Ltd,,,,,,,,,,,
Nottinghamshire County Council,1111/1001,Children and Young People,CYP,Transport Related,CCA,41976,11-14125,3549.6,Taxicover Uk Ltd,,,,,,,,,,,
Nottinghamshire County Council,1111/1001,Children and Young People,CYP,Transport Related,CCA,41976,11-14126,2979.07,Taxicover Uk Ltd,,,,,,,,,,,
Nottinghamshire County Council,1111/1001,Children and Young People,CYP,Transport Related,CCA,41976,11-14127,2734.35,Taxicover Uk Ltd,,,,,,,,,,,
Nottinghamshire County Council,1111/1001,Children and Young People,CYP,Transport Related,CCA,41976,11-14128,3119.65,Taxicover Uk Ltd,,,,,,,,,,,
Nottinghamshire County Council,1111/1001,Children and Young People,CYP,Transport Related,CCA,41976,11-14129,3550.54,Taxicover Uk Ltd,,,,,,,,,,,
Nottinghamshire County Council,1111/1001,Children and Young People,CYP,Transport Related,CCA,41976,11-14130,2701.23,Taxicover Uk Ltd,,,,,,,,,,,
Nottinghamshire County Council,1111/1001,Children and Young People,CYP,Transport Related,CCA,41976,11-14131,2713.2,Taxicover Uk Ltd,,,,,,,,,,,
Nottinghamshire County Council,1111/1001,Children and Young People,CYP,Transport Related,CCA,41976,11-14132,3014.35,Taxicover Uk Ltd,,,,,,,,,,,
Nottinghamshire County Council,1111/1001,Children and Young People,CYP,Transport Related,CCA,41976,11-14133,2775.52,Taxicover Uk Ltd,,,,,,,,,,,
Nottinghamshire County Council,1111/1001,Children and Young People,CYP,Transport Related,CCA,41976,11-14134,2849.05,Taxicover Uk Ltd,,,,,,,,,,,
Nottinghamshire County Council,1111/1001,Children and Young People,CYP,Transport Related,CCA,41976,11-14136,1152.2,Southside Cars,,,,,,,,,,,
Nottinghamshire County Council,1111/1001,Children and Young People,CYP,Transport Related,CCA,41976,11-14137,1505.2,Southside Cars,,,,,,,,,,,
Nottinghamshire County Council,1111/1001,Children and Young People,CYP,Transport Related,CCA,41976,11-14138,1152.4,Southside Cars,,,,,,,,,,,
Nottinghamshire County Council,1111/1001,Children and Young People,CYP,Transport Related,CCA,41976,11-14139,1738.8,Southside Cars,,,,,,,,,,,
Nottinghamshire County Council,1111/1001,Children and Young People,CYP,Transport Related,CCA,41976,11-14140,950,Southside Cars,,,,,,,,,,,
Nottinghamshire County Council,1111/1001,Children and Young People,CYP,Transport Related,CCA,41976,11-14141,1090.98,Southside Cars,,,,,,,,,,,
Nottinghamshire County Council,1111/1001,Children and Young People,CYP,Transport Related,CCA,41976,11-14142,1895.2,Southside Cars,,,,,,,,,,,
Nottinghamshire County Council,1111/1001,Children and Young People,CYP,Transport Related,CCA,41976,11-14143,922.26,Southside Cars,,,,,,,,,,,
Nottinghamshire County Council,1111/1001,Children and Young People,CYP,Transport Related,CCA,41976,11-14144,2615,All Wayz Travel,,,,,,,,,,,
Nottinghamshire County Council,1111/1001,Children and Young People,CYP,Transport Related,CCA,41976,11-14147,1792,Arrow Specialised Transport Ltd,,,,,,,,,,,
Nottinghamshire County Council,1111/1001,Children and Young People,CYP,Transport Related,CCA,41976,11-14148,2364.36,Arrow Specialised Transport Ltd,,,,,,,,,,,
Nottinghamshire County Council,1111/1001,Children and Young People,CYP,Transport Related,CCA,41976,11-14149,3133.67,Arrow Specialised Transport Ltd,,,,,,,,,,,
Nottinghamshire County Council,1111/1001,Children and Young People,CYP,Transport Related,CCA,41976,11-14150,2717,Arrow Specialised Transport Ltd,,,,,,,,,,,
Nottinghamshire County Council,1111/1001,Children and Young People,CYP,Transport Related,CCA,41976,11-14151,2720,Arrow Specialised Transport Ltd,,,,,,,,,,,
Nottinghamshire County Council,1111/1001,Children and Young People,CYP,Transport Related,CCA,41976,11-14152,953.23,Arrow Specialised Transport Ltd,,,,,,,,,,,
Nottinghamshire County Council,1111/1001,Children and Young People,CYP,Transport Related,CCA,41976,11-14153,3741.9,Arrow Specialised Transport Ltd,,,,,,,,,,,
Nottinghamshire County Council,1111/1001,Children and Young People,CYP,Transport Related,CCA,41976,11-14154,3028.79,Arrow Specialised Transport Ltd,,,,,,,,,,,
Nottinghamshire County Council,1111/1001,Children and Young People,CYP,Transport Related,CCA,41976,11-14155,1273.76,Arrow Specialised Transport Ltd,,,,,,,,,,,
Nottinghamshire County Council,1111/1001,Children and Young People,CYP,Transport Related,CCA,41976,11-14156,2366.54,Arrow Specialised Transport Ltd,,,,,,,,,,,
Nottinghamshire County Council,1111/1001,Children and Young People,CYP,Transport Related,CCA,41976,11-14157,2198.3,Arrow Specialised Transport Ltd,,,,,,,,,,,
Nottinghamshire County Council,1111/1001,Children and Young People,CYP,Transport Related,CCA,41976,11-14158,1812.6,Arrow Specialised Transport Ltd,,,,,,,,,,,
Nottinghamshire County Council,1111/1001,Children and Young People,CYP,Transport Related,CCA,41976,11-14159,2142,Arrow Specialised Transport Ltd,,,,,,,,,,,
Nottinghamshire County Council,1111/1001,Children and Young People,CYP,Transport Related,CCA,41976,11-14160,1895.6,Arrow Specialised Transport Ltd,,,,,,,,,,,
Nottinghamshire County Council,1111/1001,Children and Young People,CYP,Transport Related,CCA,41976,11-14161,2282.9,Arrow Specialised Transport Ltd,,,,,,,,,,,
Nottinghamshire County Council,1111/1001,Children and Young People,CYP,Transport Related,CCA,41976,11-14162,1918,Arrow Specialised Transport Ltd,,,,,,,,,,,
Nottinghamshire County Council,1111/1001,Children and Young People,CYP,Transport Related,CCA,41976,11-14163,1522.3,Arrow Specialised Transport Ltd,,,,,,,,,,,
Nottinghamshire County Council,1111/1001,Children and Young People,CYP,Transport Related,CCA,41976,11-14164,1984.2,Arrow Specialised Transport Ltd,,,,,,,,,,,
Nottinghamshire County Council,1111/1001,Children and Young People,CYP,Transport Related,CCA,41976,11-14165,2079.28,Arrow Specialised Transport Ltd,,,,,,,,,,,
Nottinghamshire County Council,1111/1001,Children and Young People,CYP,Transport Related,CCA,41976,11-14166,1923.05,Arrow Specialised Transport Ltd,,,,,,,,,,,
Nottinghamshire County Council,1111/1001,Children and Young People,CYP,Transport Related,CCA,41976,11-14167,2315.6,Arrow Specialised Transport Ltd,,,,,,,,,,,
Nottinghamshire County Council,1111/1001,Children and Young People,CYP,Transport Related,CCA,41976,11-14168,1996.4,Arrow Specialised Transport Ltd,,,,,,,,,,,
Nottinghamshire County Council,1111/1001,Children and Young People,CYP,Transport Related,CCA,41976,11-14169,1080,Arrow Specialised Transport Ltd,,,,,,,,,,,
Nottinghamshire County Council,1111/1001,Children and Young People,CYP,Transport Related,CCA,41976,11-14171,1841.4,Arrow Specialised Transport Ltd,,,,,,,,,,,
Nottinghamshire County Council,1111/1001,Children and Young People,CYP,Transport Related,CCA,41976,11-14172,1782.4,Arrow Specialised Transport Ltd,,,,,,,,,,,
Nottinghamshire County Council,1111/1001,Children and Young People,CYP,Transport Related,CCA,41976,11-14173,2792,Arrow Specialised Transport Ltd,,,,,,,,,,,
Nottinghamshire County Council,1111/1001,Children and Young People,CYP,Transport Related,CCA,41976,11-14174,1199,Arrow Specialised Transport Ltd,,,,,,,,,,,
Nottinghamshire County Council,1111/1001,Children and Young People,CYP,Transport Related,CCA,41976,11-14176,1732.8,Arrow Specialised Transport Ltd,,,,,,,,,,,
Nottinghamshire County Council,1111/1001,Children and Young People,CYP,Transport Related,CCA,41976,11-14177,11560,Arrow Specialised Transport Ltd,,,,,,,,,,,
Nottinghamshire County Council,1111/1001,Children and Young People,CYP,Transport Related,CCA,41976,11-14178,2642.52,Arrow Specialised Transport Ltd,,,,,,,,,,,
Nottinghamshire County Council,1111/1001,Children and Young People,CYP,Transport Related,CCA,41976,11-14179,2523.4,Arrow Specialised Transport Ltd,,,,,,,,,,,
Nottinghamshire County Council,1111/1001,Children and Young People,CYP,Transport Related,CCA,41976,11-14180,1720.26,Arrow Specialised Transport Ltd,,,,,,,,,,,
Nottinghamshire County Council,1111/1001,Children and Young People,CYP,Transport Related,CCA,41976,11-14182,1272.35,Arrow Specialised Transport Ltd,,,,,,,,,,,
Nottinghamshire County Council,1111/1001,Children and Young People,CYP,Transport Related,CCA,41976,11-14184,3254.89,Arrow Specialised Transport Ltd,,,,,,,,,,,
Nottinghamshire County Council,1111/1001,Children and Young People,CYP,Transport Related,CCA,41976,11-14185,893.2,Arrow Specialised Transport Ltd,,,,,,,,,,,
Nottinghamshire County Council,1111/1001,Children and Young People,CYP,Transport Related,CCA,41976,11-14187,1483.4,Arrow Specialised Transport Ltd,,,,,,,,,,,
Nottinghamshire County Council,1111/1001,Children and Young People,CYP,Transport Related,CCA,41976,11-14188,1410.64,Arrow Specialised Transport Ltd,,,,,,,,,,,
Nottinghamshire County Council,1111/1001,Children and Young People,CYP,Transport Related,CCA,41976,11-14190,1833.8,Arrow Specialised Transport Ltd,,,,,,,,,,,
Nottinghamshire County Council,1111/1001,Children and Young People,CYP,Transport Related,CCA,41976,11-14191,2780,Arrow Specialised Transport Ltd,,,,,,,,,,,
Nottinghamshire County Council,1111/1001,Children and Young People,CYP,Transport Related,CCA,41976,11-14192,2384.8,Arrow Specialised Transport Ltd,,,,,,,,,,,
Nottinghamshire County Council,1111/1001,Children and Young People,CYP,Transport Related,CCA,41976,11-14193,3029.8,Arrow Specialised Transport Ltd,,,,,,,,,,,
Nottinghamshire County Council,1111/1001,Children and Young People,CYP,Transport Related,CCA,41976,11-14194,1669,Arrow Specialised Transport Ltd,,,,,,,,,,,
Nottinghamshire County Council,1111/1001,Children and Young People,CYP,Transport Related,CCA,41976,11-14195,746.9,Arrow Specialised Transport Ltd,,,,,,,,,,,
Nottinghamshire County Council,1111/1001,Children and Young People,CYP,Transport Related,CCA,41976,11-14197,1751.4,Arrow Specialised Transport Ltd,,,,,,,,,,,
Nottinghamshire County Council,1111/1001,Children and Young People,CYP,Transport Related,CCA,41976,11-14198,1566,Arrow Specialised Transport Ltd,,,,,,,,,,,
Nottinghamshire County Council,1111/1001,Children and Young People,CYP,Transport Related,CCA,41976,11-14199,1949.8,Arrow Specialised Transport Ltd,,,,,,,,,,,
Nottinghamshire County Council,1111/1001,Children and Young People,CYP,Transport Related,CCA,41976,11-14200,1462.6,Arrow Specialised Transport Ltd,,,,,,,,,,,
Nottinghamshire County Council,1111/1001,Children and Young People,CYP,Transport Related,CCA,41976,11-14201,1415.9,Arrow Specialised Transport Ltd,,,,,,,,,,,
Nottinghamshire County Council,1111/1001,Children and Young People,CYP,Transport Related,CCA,41976,11-14203,2346,Arrow Specialised Transport Ltd,,,,,,,,,,,
Nottinghamshire County Council,1111/1001,Children and Young People,CYP,Transport Related,CCA,41976,11-14204,2500,Arrow Specialised Transport Ltd,,,,,,,,,,,
Nottinghamshire County Council,1111/1001,Children and Young People,CYP,Transport Related,CCA,41976,11-14205,1780,Arrow Specialised Transport Ltd,,,,,,,,,,,
Nottinghamshire County Council,1111/1001,Children and Young People,CYP,Transport Related,CCA,41976,11-14206,1960,Arrow Specialised Transport Ltd,,,,,,,,,,,
Nottinghamshire County Council,1111/1001,Children and Young People,CYP,Transport Related,CCA,41976,11-14207,1841.1,Arrow Specialised Transport Ltd,,,,,,,,,,,
Nottinghamshire County Council,1111/1001,Children and Young People,CYP,Transport Related,CCA,41976,11-14208,2113.94,Arrow Specialised Transport Ltd,,,,,,,,,,,
Nottinghamshire County Council,1111/1001,Children and Young People,CYP,Transport Related,CCA,41976,11-14209,2480.64,Arrow Specialised Transport Ltd,,,,,,,,,,,
Nottinghamshire County Council,1111/1001,Children and Young People,CYP,Transport Related,CCA,41976,11-14210,2258.34,Arrow Specialised Transport Ltd,,,,,,,,,,,
Nottinghamshire County Council,1111/1001,Children and Young People,CYP,Transport Related,CCA,41976,11-14211,2170.56,Arrow Specialised Transport Ltd,,,,,,,,,,,
Nottinghamshire County Council,1111/1001,Children and Young People,CYP,Transport Related,CCA,41976,11-14212,1994.43,Arrow Specialised Transport Ltd,,,,,,,,,,,
Nottinghamshire County Council,1111/1001,Children and Young People,CYP,Transport Related,CCA,41976,11-14213,2199.63,Arrow Specialised Transport Ltd,,,,,,,,,,,
Nottinghamshire County Council,1111/1001,Children and Young People,CYP,Transport Related,CCA,41976,11-14214,2894.4,Midfield Travel,,,,,,,,,,,
Nottinghamshire County Council,1111/1001,Children and Young People,CYP,Transport Related,CCA,41976,11-14217,3400,Vallances Coaches,,,,,,,,,,,
Nottinghamshire County Council,1111/1001,Children and Young People,CYP,Transport Related,CCA,41976,11-14219,2055.6,Vallances Coaches,,,,,,,,,,,
Nottinghamshire County Council,1111/1001,Children and Young People,CYP,Transport Related,CCA,41976,11-14220,2719.4,Vallances Coaches,,,,,,,,,,,
Nottinghamshire County Council,1111/1001,Children and Young People,CYP,Transport Related,CCA,41976,11-14221,3088.2,K & S Coaches,,,,,,,,,,,
Nottinghamshire County Council,1111/1001,Children and Young People,CYP,Transport Related,CCA,41976,11-14223,3264,P & P Taxis,,,,,,,,,,,
Nottinghamshire County Council,1111/1001,Children and Young People,CYP,Transport Related,CCA,41976,11-14228,3600,C W Moxon Ltd,,,,,,,,,,,
Nottinghamshire County Council,1111/1001,Children and Young People,CYP,Transport Related,CCA,41976,11-14235,909.16,I Can Charity,,,,,,,,,,,
Nottinghamshire County Council,1111/1001,Children and Young People,CYP,Transport Related,CCA,41976,11-14236,1020,I Can Charity,,,,,,,,,,,
Nottinghamshire County Council,1111/1001,Children and Young People,CYP,Transport Related,CCA,41977,11-14304,1422.4,Southside Cars,,,,,,,,,,,
Nottinghamshire County Council,1111/1001,Children and Young People,CYP,Transport Related,CCA,41977,11-14305,2535.1,Southside Cars,,,,,,,,,,,
Nottinghamshire County Council,1111/1001,Children and Young People,CYP,Transport Related,CCA,41977,11-14306,1918,Southside Cars,,,,,,,,,,,
Nottinghamshire County Council,1111/1001,Children and Young People,CYP,Transport Related,CCA,41977,11-14310,570,Ace Of Mansfield Ltd,,,,,,,,,,,
Nottinghamshire County Council,1111/1001,Children and Young People,CYP,Transport Related,CCA,41977,11-14313,512,Alpha Cars,,,,,,,,,,,
Nottinghamshire County Council,1111/1001,Children and Young People,CYP,Transport Related,CCA,41977,11-14315,665.6,Alpha Cars,,,,,,,,,,,
Nottinghamshire County Council,1111/1001,Children and Young People,CYP,Transport Related,CCA,41977,11-14324,1630.2,Bridges Transport Services,,,,,,,,,,,
Nottinghamshire County Council,1111/1001,Children and Young People,CYP,Transport Related,CCA,41977,11-14325,1622.3,Bridges Transport Services,,,,,,,,,,,
Nottinghamshire County Council,1111/1001,Children and Young People,CYP,Transport Related,CCA,41977,11-14326,2743.6,Bridges Transport Services,,,,,,,,,,,
Nottinghamshire County Council,1111/1001,Children and Young People,CYP,Transport Related,CCA,41977,11-14327,1611.4,Bridges Transport Services,,,,,,,,,,,
Nottinghamshire County Council,1111/1001,Children and Young People,CYP,Transport Related,CCA,41977,11-14328,1413.2,Bridges Transport Services,,,,,,,,,,,
Nottinghamshire County Council,1111/1001,Children and Young People,CYP,Transport Related,CCA,41977,11-14329,1909.44,Bridges Transport Services,,,,,,,,,,,
Nottinghamshire County Council,1111/1001,Children and Young People,CYP,Transport Related,CCA,41977,11-14330,1442.2,Bridges Transport Services,,,,,,,,,,,
Nottinghamshire County Council,1111/1001,Children and Young People,CYP,Transport Related,CCA,41977,11-14331,1724.2,Bridges Transport Services,,,,,,,,,,,
Nottinghamshire County Council,1111/1001,Children and Young People,CYP,Transport Related,CCA,41977,11-14333,4079.8,Bridges Transport Services,,,,,,,,,,,
Nottinghamshire County Council,1111/1001,Children and Young People,CYP,Transport Related,CCA,41977,11-14334,2463.9,Bridges Transport Services,,,,,,,,,,,
Nottinghamshire County Council,1111/1001,Children and Young People,CYP,Transport Related,CCA,41977,11-14335,895,Bridges Transport Services,,,,,,,,,,,
Nottinghamshire County Council,1111/1001,Children and Young People,CYP,Transport Related,CCA,41977,11-14336,537.03,Bridges Transport Services,,,,,,,,,,,
Nottinghamshire County Council,1111/1001,Children and Young People,CYP,Transport Related,CCA,41977,11-14338,4454.5,Bridges Transport Services,,,,,,,,,,,
Nottinghamshire County Council,1111/1001,Children and Young People,CYP,Transport Related,CCA,41977,11-14339,2356.2,Bridges Transport Services,,,,,,,,,,,
Nottinghamshire County Council,1111/1001,Children and Young People,CYP,Transport Related,CCA,41977,11-14340,3740,Bridges Transport Services,,,,,,,,,,,
Nottinghamshire County Council,1111/1001,Children and Young People,CYP,Transport Related,CCA,41977,11-14341,1535.01,Bridges Transport Services,,,,,,,,,,,
Nottinghamshire County Council,1111/1001,Children and Young People,CYP,Transport Related,CCA,41977,11-14342,1171,Bridges Transport Services,,,,,,,,,,,
Nottinghamshire County Council,1111/1001,Children and Young People,CYP,Transport Related,CCA,41977,11-14344,2100,Horizon Travel,,,,,,,,,,,
Nottinghamshire County Council,1111/1001,Children and Young People,CYP,Transport Related,CCA,41977,11-14345,2167.2,Horizon Travel,,,,,,,,,,,
Nottinghamshire County Council,1111/1001,Children and Young People,CYP,Transport Related,CCA,41977,11-14346,1647.87,Ja Travel Ltd,,,,,,,,,,,
Nottinghamshire County Council,1111/1001,Children and Young People,CYP,Transport Related,CCA,41977,11-14347,3087.31,Ja Travel Ltd,,,,,,,,,,,
Nottinghamshire County Council,1111/1001,Children and Young People,CYP,Transport Related,CCA,41977,11-14348,2323.51,Ja Travel Ltd,,,,,,,,,,,
Nottinghamshire County Council,1111/1001,Children and Young People,CYP,Transport Related,CCA,41977,11-14350,1360,Oasis Taxis Mansfield Ltd,,,,,,,,,,,
Nottinghamshire County Council,1111/1001,Children and Young People,CYP,Transport Related,CCA,41977,11-14351,1360,Oasis Taxis Mansfield Ltd,,,,,,,,,,,
Nottinghamshire County Council,1111/1001,Children and Young People,CYP,Transport Related,CCA,41977,11-14352,3050,Oasis Taxis Mansfield Ltd,,,,,,,,,,,
Nottinghamshire County Council,1111/1001,Children and Young People,CYP,Transport Related,CCA,41977,11-14353,2588.6,Oasis Taxis Mansfield Ltd,,,,,,,,,,,
Nottinghamshire County Council,1111/1001,Children and Young People,CYP,Transport Related,CCA,41977,11-14354,2774.4,Oasis Taxis Mansfield Ltd,,,,,,,,,,,
Nottinghamshire County Council,1111/1001,Children and Young People,CYP,Transport Related,CCA,41977,11-14357,432.7,P & P Taxis,,,,,,,,,,,
Nottinghamshire County Council,1111/1001,Children and Young People,CYP,Transport Related,CCA,41977,11-14359,1264.8,P & P Taxis,,,,,,,,,,,
Nottinghamshire County Council,1111/1001,Children and Young People,CYP,Transport Related,CCA,41977,11-14363,3180,Freeway Coaches Ltd,,,,,,,,,,,
Nottinghamshire County Council,1111/1001,Children and Young People,CYP,Transport Related,CCA,41978,11-14476,2321.3,All Wayz Travel,,,,,,,,,,,
Nottinghamshire County Council,1111/1001,Children and Young People,CYP,Transport Related,CCA,41978,11-14478,2345.93,Martins Travel,,,,,,,,,,,
Nottinghamshire County Council,1111/1001,Children and Young People,CYP,Transport Related,CCA,41978,11-14479,2570.8,Martins Travel,,,,,,,,,,,
Nottinghamshire County Council,1111/1001,Children and Young People,CYP,Transport Related,CCA,41978,11-14483,4900,Redfern Travel,,,,,,,,,,,
Nottinghamshire County Council,1111/1001,Children and Young People,CYP,Transport Related,CCA,41978,11-14484,2080,Redfern Travel,,,,,,,,,,,
Nottinghamshire County Council,1111/1001,Children and Young People,CYP,Transport Related,CCA,41978,11-14485,576,200 Cars Ltd,,,,,,,,,,,
Nottinghamshire County Council,1111/1001,Children and Young People,CYP,Transport Related,CCA,41978,11-14487,3043.6,CBC Taxis Ltd,,,,,,,,,,,
Nottinghamshire County Council,1111/1001,Children and Young People,CYP,Transport Related,CCA,41978,11-14488,525.28,CBC Taxis Ltd,,,,,,,,,,,
Nottinghamshire County Council,1111/1001,Children and Young People,CYP,Transport Related,CCA,41978,11-14489,1423.4,CBC Taxis Ltd,,,,,,,,,,,
Nottinghamshire County Council,1111/1001,Children and Young People,CYP,Transport Related,CCA,41978,11-14490,560.24,CBC Taxis Ltd,,,,,,,,,,,
Nottinghamshire County Council,1111/1001,Children and Young People,CYP,Transport Related,CCA,41978,11-14491,1001.3,CBC Taxis Ltd,,,,,,,,,,,
Nottinghamshire County Council,1111/1001,Children and Young People,CYP,Transport Related,CCA,41978,11-14492,893.52,CBC Taxis Ltd,,,,,,,,,,,
Nottinghamshire County Council,1111/1001,Children and Young People,CYP,Transport Related,CCA,41978,11-14494,563.4,CBC Taxis Ltd,,,,,,,,,,,
Nottinghamshire County Council,1111/1001,Children and Young People,CYP,Transport Related,CCA,41978,11-14495,526.32,CBC Taxis Ltd,,,,,,,,,,,
Nottinghamshire County Council,1111/1001,Children and Young People,CYP,Transport Related,CCA,41978,11-14500,2175,Bridges Transport Services,,,,,,,,,,,
Nottinghamshire County Council,1111/1001,Children and Young People,CYP,Transport Related,CCA,41978,11-14501,840,Fozcabs Newark Taxis,,,,,,,,,,,
Nottinghamshire County Council,1111/1001,Children and Young People,CYP,Transport Related,CCA,41978,11-14502,2400,Galaxy Cabs,,,,,,,,,,,
Nottinghamshire County Council,1111/1001,Children and Young People,CYP,Transport Related,CCA,41978,11-14503,1200,Galaxy Cabs,,,,,,,,,,,
Nottinghamshire County Council,1111/1001,Children and Young People,CYP,Transport Related,CCA,41978,11-14506,809.4,Ng11 Cars,,,,,,,,,,,
Nottinghamshire County Council,1111/1001,Children and Young People,CYP,Transport Related,CCA,41978,11-14507,770,Ng11 Cars,,,,,,,,,,,
Nottinghamshire County Council,1111/1001,Children and Young People,CYP,Transport Related,CCA,41978,11-14508,1760,Ng11 Cars,,,,,,,,,,,
Nottinghamshire County Council,1111/1001,Children and Young People,CYP,Transport Related,CCA,41978,11-14510,1680,Sprays Transport Ltd,,,,,,,,,,,
Nottinghamshire County Council,1111/1001,Children and Young People,CYP,Transport Related,CCA,41978,11-14511,2360,Sprays Transport Ltd,,,,,,,,,,,
Nottinghamshire County Council,1111/1001,Children and Young People,CYP,Transport Related,CCA,41978,11-14512,1938,Sprays Transport Ltd,,,,,,,,,,,
Nottinghamshire County Council,1111/1001,Children and Young People,CYP,Transport Related,CCA,41978,11-14513,2100,Sprays Transport Ltd,,,,,,,,,,,
Nottinghamshire County Council,1111/1001,Children and Young People,CYP,Transport Related,CCA,41978,11-14514,2340,Sprays Transport Ltd,,,,,,,,,,,
Nottinghamshire County Council,1111/1001,Children and Young People,CYP,Transport Related,CCA,41978,11-14515,2208.6,Sprays Transport Ltd,,,,,,,,,,,
Nottinghamshire County Council,1111/1001,Children and Young People,CYP,Transport Related,CCA,41978,11-14516,1936.8,Sprays Transport Ltd,,,,,,,,,,,
Nottinghamshire County Council,1111/1001,Children and Young People,CYP,Transport Related,CCA,41978,11-14517,3005,Sprays Transport Ltd,,,,,,,,,,,
Nottinghamshire County Council,1111/1001,Children and Young People,CYP,Transport Related,CCA,41978,11-14518,1689.6,Sprays Transport Ltd,,,,,,,,,,,
Nottinghamshire County Council,1111/1001,Children and Young People,CYP,Transport Related,CCA,41978,11-14519,1583.84,Sprays Transport Ltd,,,,,,,,,,,
Nottinghamshire County Council,1111/1001,Children and Young People,CYP,Transport Related,CCA,41978,11-14520,1854.4,Sprays Transport Ltd,,,,,,,,,,,
Nottinghamshire County Council,1111/1001,Children and Young People,CYP,Transport Related,CCA,41978,11-14521,1517.06,Sprays Transport Ltd,,,,,,,,,,,
Nottinghamshire County Council,1111/1001,Children and Young People,CYP,Transport Related,CCA,41978,11-14523,1743.06,Sprays Transport Ltd,,,,,,,,,,,
Nottinghamshire County Council,1111/1001,Children and Young People,CYP,Transport Related,CCA,41978,11-14524,1644.26,Sprays Transport Ltd,,,,,,,,,,,
Nottinghamshire County Council,1111/1001,Children and Young People,CYP,Transport Related,CCA,41978,11-14525,2670.07,Sprays Transport Ltd,,,,,,,,,,,
Nottinghamshire County Council,1111/1001,Children and Young People,CYP,Transport Related,CCA,41978,11-14526,1805,Sprays Transport Ltd,,,,,,,,,,,
Nottinghamshire County Council,1111/1001,Children and Young People,CYP,Transport Related,CCA,41978,11-14527,1722.54,Sprays Transport Ltd,,,,,,,,,,,
Nottinghamshire County Council,1111/1001,Children and Young People,CYP,Transport Related,CCA,41978,11-14528,1839.96,Sprays Transport Ltd,,,,,,,,,,,
Nottinghamshire County Council,1111/1001,Children and Young People,CYP,Transport Related,CCA,41978,11-14529,1751.4,Sprays Transport Ltd,,,,,,,,,,,
Nottinghamshire County Council,1111/1001,Children and Young People,CYP,Transport Related,CCA,41978,11-14530,1876.8,Sprays Transport Ltd,,,,,,,,,,,
Nottinghamshire County Council,1111/1001,Children and Young People,CYP,Transport Related,CCA,41978,11-14531,2109.2,Sprays Transport Ltd,,,,,,,,,,,
Nottinghamshire County Council,1111/1001,Children and Young People,CYP,Transport Related,CCA,41978,11-14532,1550.4,Sprays Transport Ltd,,,,,,,,,,,
Nottinghamshire County Council,1111/1001,Children and Young People,CYP,Transport Related,CCA,41978,11-14533,1999.2,Sprays Transport Ltd,,,,,,,,,,,
Nottinghamshire County Council,1111/1001,Children and Young People,CYP,Transport Related,CCA,41978,11-14535,2239.92,Sprays Transport Ltd,,,,,,,,,,,
Nottinghamshire County Council,1111/1001,Children and Young People,CYP,Transport Related,CCA,41978,11-14538,2700,Sprays Transport Ltd,,,,,,,,,,,
Nottinghamshire County Council,1111/1001,Children and Young People,CYP,Transport Related,CCA,41978,11-14539,1540,Silverdale Tours Nottm Ltd,,,,,,,,,,,
Nottinghamshire County Council,1111/1001,Children and Young People,CYP,Transport Related,CCA,41978,11-14540,2340,Silverdale Tours Nottm Ltd,,,,,,,,,,,
Nottinghamshire County Council,1111/1001,Children and Young People,CYP,Transport Related,CCA,41978,11-14542,2733.8,Travel Wright Ltd,,,,,,,,,,,
Nottinghamshire County Council,1111/1001,Children and Young People,CYP,Transport Related,CCA,41978,11-14556,630,Town Cars (UK) Ltd,,,,,,,,,,,
Nottinghamshire County Council,1111/1001,Children and Young People,CYP,Transport Related,CCA,41978,11-14557,596.7,Town Cars (UK) Ltd,,,,,,,,,,,
Nottinghamshire County Council,1111/1001,Children and Young People,CYP,Transport Related,CCA,41978,11-14559,1483.4,Town Cars (UK) Ltd,,,,,,,,,,,
Nottinghamshire County Council,1111/1001,Children and Young People,CYP,Transport Related,CCA,41978,11-14560,1464,Town Cars (UK) Ltd,,,,,,,,,,,
Nottinghamshire County Council,1111/1001,Children and Young People,CYP,Transport Related,CCA,41978,11-14561,810,Town Cars (UK) Ltd,,,,,,,,,,,
Nottinghamshire County Council,1111/1001,Children and Young People,CYP,Transport Related,CCA,41978,11-14563,1020,Town Cars (UK) Ltd,,,,,,,,,,,
Nottinghamshire County Council,1111/1001,Children and Young People,CYP,Transport Related,CCA,41978,11-14564,1555.34,Ace Cars,,,,,,,,,,,
Nottinghamshire County Council,1111/1001,Children and Young People,CYP,Transport Related,CCA,41978,11-14565,989,Ace Cars,,,,,,,,,,,
Nottinghamshire County Council,1111/1001,Children and Young People,CYP,Transport Related,CCA,41978,11-14566,1669,Ace Cars,,,,,,,,,,,
Nottinghamshire County Council,1111/1001,Children and Young People,CYP,Transport Related,CCA,41978,11-14567,3099.8,L A Travel,,,,,,,,,,,
Nottinghamshire County Council,1111/1001,Children and Young People,CYP,Transport Related,CCA,41978,11-14568,1190,Bulls Taxis,,,,,,,,,,,
Nottinghamshire County Council,1111/1001,Children and Young People,CYP,Transport Related,CCA,41982,11-14960,2184.16,6 Five 2s,,,,,,,,,,,
Nottinghamshire County Council,1111/1001,Children and Young People,CYP,Transport Related,CCA,41982,11-14961,1967.04,6 Five 2s,,,,,,,,,,,
Nottinghamshire County Council,1111/1001,Children and Young People,CYP,Transport Related,CCA,41982,11-14962,816,6 Five 2s,,,,,,,,,,,
Nottinghamshire County Council,1111/1001,Children and Young People,CYP,Transport Related,CCA,41982,11-14963,2185.6,6 Five 2s,,,,,,,,,,,
Nottinghamshire County Council,1111/1001,Children and Young People,CYP,Transport Related,CCA,41982,11-14964,734.4,6 Five 2s,,,,,,,,,,,
Nottinghamshire County Council,1111/1001,Children and Young People,CYP,Transport Related,CCA,41982,11-14965,816,6 Five 2s,,,,,,,,,,,
Nottinghamshire County Council,1111/1001,Children and Young People,CYP,Transport Related,CCA,41982,11-14966,1972.74,6 Five 2s,,,,,,,,,,,
Nottinghamshire County Council,1111/1001,Children and Young People,CYP,Transport Related,CCA,41982,11-14967,899.64,6 Five 2s,,,,,,,,,,,
Nottinghamshire County Council,1111/1001,Children and Young People,CYP,Transport Related,CCA,41982,11-14968,1690.92,6 Five 2s,,,,,,,,,,,
Nottinghamshire County Council,1111/1001,Children and Young People,CYP,Transport Related,CCA,41982,11-14969,724.2,6 Five 2s,,,,,,,,,,,
Nottinghamshire County Council,1111/1001,Children and Young People,CYP,Transport Related,CCA,41982,11-14970,919.62,6 Five 2s,,,,,,,,,,,
Nottinghamshire County Council,1111/1001,Children and Young People,CYP,Transport Related,CCA,41982,11-14971,1784.86,6 Five 2s,,,,,,,,,,,
Nottinghamshire County Council,1111/1001,Children and Young People,CYP,Transport Related,CCA,41982,11-14972,651.78,6 Five 2s,,,,,,,,,,,
Nottinghamshire County Council,1111/1001,Children and Young People,CYP,Transport Related,CCA,41982,11-14973,1002.06,6 Five 2s,,,,,,,,,,,
Nottinghamshire County Council,1111/1001,Children and Young People,CYP,Transport Related,CCA,41982,11-14974,724.2,6 Five 2s,,,,,,,,,,,
Nottinghamshire County Council,1111/1001,Children and Young People,CYP,Transport Related,CCA,41982,11-14975,857.47,6 Five 2s,,,,,,,,,,,
Nottinghamshire County Council,1111/1001,Children and Young People,CYP,Transport Related,CCA,41982,11-14976,1896.58,6 Five 2s,,,,,,,,,,,
Nottinghamshire County Council,1111/1001,Children and Young People,CYP,Transport Related,CCA,41982,11-14977,724.28,6 Five 2s,,,,,,,,,,,
Nottinghamshire County Council,1111/1001,Children and Young People,CYP,Transport Related,CCA,41982,11-14978,1868.84,6 Five 2s,,,,,,,,,,,
Nottinghamshire County Council,1111/1001,Children and Young People,CYP,Transport Related,CCA,41982,11-14979,1802.85,6 Five 2s,,,,,,,,,,,
Nottinghamshire County Council,1111/1001,Children and Young People,CYP,Transport Related,CCA,41982,11-14980,1438.58,6 Five 2s,,,,,,,,,,,
Nottinghamshire County Council,1111/1001,Children and Young People,CYP,Transport Related,CCA,41982,11-14982,812.34,6 Five 2s,,,,,,,,,,,
Nottinghamshire County Council,1111/1001,Children and Young People,CYP,Transport Related,CCA,41982,11-14983,1796.76,6 Five 2s,,,,,,,,,,,
Nottinghamshire County Council,1111/1001,Children and Young People,CYP,Transport Related,CCA,41982,11-14984,686.16,6 Five 2s,,,,,,,,,,,
Nottinghamshire County Council,1111/1001,Children and Young People,CYP,Transport Related,CCA,41982,11-14985,1770.48,6 Five 2s,,,,,,,,,,,
Nottinghamshire County Council,1111/1001,Children and Young People,CYP,Transport Related,CCA,41982,11-14986,1545.3,6 Five 2s,,,,,,,,,,,
Nottinghamshire County Council,1111/1001,Children and Young People,CYP,Transport Related,CCA,41982,11-14987,1362.86,6 Five 2s,,,,,,,,,,,
Nottinghamshire County Council,1111/1001,Children and Young People,CYP,Transport Related,CCA,41982,11-14989,502,6 Five 2s,,,,,,,,,,,
Nottinghamshire County Council,1111/1001,Children and Young People,CYP,Transport Related,CCA,41982,11-14990,902.6,6 Five 2s,,,,,,,,,,,
Nottinghamshire County Council,1111/1001,Children and Young People,CYP,Transport Related,CCA,41982,11-14991,1996.4,6 Five 2s,,,,,,,,,,,
Nottinghamshire County Council,1111/1001,Children and Young People,CYP,Transport Related,CCA,41982,11-14992,762.4,6 Five 2s,,,,,,,,,,,
Nottinghamshire County Council,1111/1001,Children and Young People,CYP,Transport Related,CCA,41982,11-14993,1967.2,6 Five 2s,,,,,,,,,,,
Nottinghamshire County Council,1111/1001,Children and Young People,CYP,Transport Related,CCA,41982,11-14994,1631.15,6 Five 2s,,,,,,,,,,,
Nottinghamshire County Council,1111/1001,Children and Young People,CYP,Transport Related,CCA,41982,11-14995,1438.58,6 Five 2s,,,,,,,,,,,
Nottinghamshire County Council,1111/1001,Children and Young People,CYP,Transport Related,CCA,41982,11-14997,2227.18,D G Private Hire Ltd,,,,,,,,,,,
Nottinghamshire County Council,1111/1001,Children and Young People,CYP,Transport Related,CCA,41982,11-14998,1600,D G Private Hire Ltd,,,,,,,,,,,
Nottinghamshire County Council,1111/1001,Children and Young People,CYP,Transport Related,CCA,41982,11-14999,2344.98,D G Private Hire Ltd,,,,,,,,,,,
Nottinghamshire County Council,1111/1001,Children and Young People,CYP,Transport Related,CCA,41982,11-15000,1485,D G Private Hire Ltd,,,,,,,,,,,
Nottinghamshire County Council,1111/1001,Children and Young People,CYP,Transport Related,CCA,41982,11-15001,1215,D G Private Hire Ltd,,,,,,,,,,,
Nottinghamshire County Council,1111/1001,Children and Young People,CYP,Transport Related,CCA,41982,11-15002,3296.18,D G Private Hire Ltd,,,,,,,,,,,
Nottinghamshire County Council,1111/1001,Children and Young People,CYP,Transport Related,CCA,41982,11-15004,1600,D G Private Hire Ltd,,,,,,,,,,,
Nottinghamshire County Council,1111/1001,Children and Young People,CYP,Transport Related,CCA,41982,11-15005,1101.6,D G Private Hire Ltd,,,,,,,,,,,
Nottinghamshire County Council,1111/1001,Children and Young People,CYP,Transport Related,CCA,41982,11-15006,1876.82,Headland Taxi Services,,,,,,,,,,,
Nottinghamshire County Council,1111/1001,Children and Young People,CYP,Transport Related,CCA,41982,11-15007,1565,Headland Taxi Services,,,,,,,,,,,
Nottinghamshire County Council,1111/1001,Children and Young People,CYP,Transport Related,CCA,41982,11-15008,1400,Shelleys Taxis Ltd,,,,,,,,,,,
Nottinghamshire County Council,1111/1001,Children and Young People,CYP,Transport Related,CCA,41982,11-15009,1200,Shelleys Taxis Ltd,,,,,,,,,,,
Nottinghamshire County Council,1111/1001,Children and Young People,CYP,Transport Related,CCA,41982,11-15011,2470,Shelleys Taxis Ltd,,,,,,,,,,,
Nottinghamshire County Council,1111/1001,Children and Young People,CYP,Transport Related,CCA,41982,11-15012,1140,Shelleys Taxis Ltd,,,,,,,,,,,
Nottinghamshire County Council,1111/1001,Children and Young People,CYP,Transport Related,CCA,41982,11-15013,1440,Shelleys Taxis Ltd,,,,,,,,,,,
Nottinghamshire County Council,1111/1001,Children and Young People,CYP,Transport Related,CCA,41982,11-15014,1168.8,Shelleys Taxis Ltd,,,,,,,,,,,
Nottinghamshire County Council,1111/1001,Children and Young People,CYP,Transport Related,CCA,41982,11-15015,1799.46,Sprays Transport Ltd,,,,,,,,,,,
Nottinghamshire County Council,1111/1001,Children and Young People,CYP,Transport Related,CCA,41982,11-15016,1250,Sprays Transport Ltd,,,,,,,,,,,
Nottinghamshire County Council,1111/1001,Children and Young People,CYP,Transport Related,CCA,41982,11-15018,1878.5,Carlton Cars Ltd T/A Trent Cars,,,,,,,,,,,
Nottinghamshire County Council,1111/1001,Children and Young People,CYP,Transport Related,CCA,41982,11-15019,2724.3,Goldstar Travel Nottm Ltd,,,,,,,,,,,
Nottinghamshire County Council,1111/1001,Children and Young People,CYP,Transport Related,CCA,41982,11-15020,2448,Goldstar Travel Nottm Ltd,,,,,,,,,,,
Nottinghamshire County Council,1111/1001,Children and Young People,CYP,Transport Related,CCA,41982,11-15021,1442.2,Goldstar Travel Nottm Ltd,,,,,,,,,,,
Nottinghamshire County Council,1111/1001,Children and Young People,CYP,Transport Related,CCA,41982,11-15022,1811.2,123 Taxis,,,,,,,,,,,
Nottinghamshire County Council,1111/1001,Children and Young People,CYP,Transport Related,CCA,41982,11-15023,1615,D G Private Hire Ltd,,,,,,,,,,,
Nottinghamshire County Council,1111/1001,Children and Young People,CYP,Transport Related,CCA,41982,11-15024,1856.4,D G Private Hire Ltd,,,,,,,,,,,
Nottinghamshire County Council,1111/1001,Children and Young People,CYP,Transport Related,CCA,41982,11-15025,1311,D G Private Hire Ltd,,,,,,,,,,,
Nottinghamshire County Council,1111/1001,Children and Young People,CYP,Transport Related,CCA,41982,11-15026,618,D G Private Hire Ltd,,,,,,,,,,,
Nottinghamshire County Council,1111/1001,Children and Young People,CYP,Transport Related,CCA,41982,11-15027,1608,D G Private Hire Ltd,,,,,,,,,,,
Nottinghamshire County Council,1111/1001,Children and Young People,CYP,Transport Related,CCA,41982,11-15028,1734,D G Private Hire Ltd,,,,,,,,,,,
Nottinghamshire County Council,1111/1001,Children and Young People,CYP,Transport Related,CCA,41982,11-15029,1800,D G Private Hire Ltd,,,,,,,,,,,
Nottinghamshire County Council,1111/1001,Children and Young People,CYP,Transport Related,CCA,41982,11-15030,1153.8,D G Private Hire Ltd,,,,,,,,,,,
Nottinghamshire County Council,1111/1001,Children and Young People,CYP,Transport Related,CCA,41982,11-15053,3360,Tiger European Uk Ltd,,,,,,,,,,,
Nottinghamshire County Council,1111/1001,Children and Young People,CYP,Transport Related,CCA,41983,11-15106,2220,Arrow Specialised Transport Ltd,,,,,,,,,,,
Nottinghamshire County Council,1111/1001,Children and Young People,CYP,Transport Related,CCA,41983,11-15107,3464,D G Private Hire Ltd,,,,,,,,,,,
Nottinghamshire County Council,1111/1001,Children and Young People,CYP,Transport Related,CCA,41983,11-15110,539,D G Private Hire Ltd,,,,,,,,,,,
Nottinghamshire County Council,1111/1001,Children and Young People,CYP,Transport Related,CCA,41983,11-15112,665,D G Private Hire Ltd,,,,,,,,,,,
Nottinghamshire County Council,1111/1001,Children and Young People,CYP,Transport Related,CCA,41983,11-15113,740,D G Private Hire Ltd,,,,,,,,,,,
Nottinghamshire County Council,1111/1001,Children and Young People,CYP,Transport Related,CCA,41983,11-15116,855,D G Private Hire Ltd,,,,,,,,,,,
Nottinghamshire County Council,1111/1001,Children and Young People,CYP,Transport Related,CCA,41983,11-15130,2510,Abacus Cars,,,,,,,,,,,
Nottinghamshire County Council,1111/1001,Children and Young People,CYP,Transport Related,CCA,41983,11-15131,1632,Abacus Cars,,,,,,,,,,,
Nottinghamshire County Council,1111/1001,Children and Young People,CYP,Transport Related,CCA,41983,11-15132,3570,Abacus Cars,,,,,,,,,,,
Nottinghamshire County Council,1111/1001,Children and Young People,CYP,Transport Related,CCA,41983,11-15133,1600,Abacus Cars,,,,,,,,,,,
Nottinghamshire County Council,1111/1001,Children and Young People,CYP,Transport Related,CCA,41983,11-15134,1305.6,Abacus Cars,,,,,,,,,,,
Nottinghamshire County Council,1111/1001,Children and Young People,CYP,Transport Related,CCA,41983,11-15136,628.2,Diamond Cars,,,,,,,,,,,
Nottinghamshire County Council,1111/1001,Children and Young People,CYP,Transport Related,CCA,41983,11-15137,628.2,Diamond Cars,,,,,,,,,,,
Nottinghamshire County Council,1111/1001,Children and Young People,CYP,Transport Related,CCA,41985,11-15291,10666.66,Hope House School Ltd,,,,,,,,,,,
Nottinghamshire County Council,1111/1001,Children and Young People,CYP,Transport Related,CCA,41985,11-15303,2500,Johnson Bros Tours Ltd,,,,,,,,,,,
Nottinghamshire County Council,1111/1001,Children and Young People,CYP,Transport Related,CCA,41985,11-15311,1087,Bridges Transport Services,,,,,,,,,,,
Nottinghamshire County Council,1111/1001,Children and Young People,CYP,Transport Related,CCA,41985,11-15312,2094.94,Erewash Community Transport,,,,,,,,,,,
Nottinghamshire County Council,1111/1001,Children and Young People,CYP,Transport Related,CCA,41985,11-15313,2321.6,Erewash Community Transport,,,,,,,,,,,
Nottinghamshire County Council,1111/1001,Children and Young People,CYP,Transport Related,CCA,41985,11-15314,2001.2,Erewash Community Transport,,,,,,,,,,,
Nottinghamshire County Council,1111/1001,Children and Young People,CYP,Transport Related,CCA,41985,11-15315,911,Erewash Community Transport,,,,,,,,,,,
Nottinghamshire County Council,1111/1001,Children and Young People,CYP,Transport Related,CCA,41985,11-15317,3335.2,Erewash Community Transport,,,,,,,,,,,
Nottinghamshire County Council,1111/1001,Children and Young People,CYP,Transport Related,CCA,41985,11-15319,2380,Sprays Transport Ltd,,,,,,,,,,,
Nottinghamshire County Council,1111/1001,Children and Young People,CYP,Transport Related,CCA,41985,11-15320,1913,Sprays Transport Ltd,,,,,,,,,,,
Nottinghamshire County Council,1111/1001,Children and Young People,CYP,Transport Related,CCA,41985,11-15321,1748,Sprays Transport Ltd,,,,,,,,,,,
Nottinghamshire County Council,1111/1001,Children and Young People,CYP,Transport Related,CCA,41985,11-15326,2565,F & J Marriott T/A Unity Coaches,,,,,,,,,,,
Nottinghamshire County Council,1111/1001,Children and Young People,CYP,Transport Related,CCA,41985,11-15327,2565,F & J Marriott T/A Unity Coaches,,,,,,,,,,,
Nottinghamshire County Council,1111/1001,Children and Young People,CYP,Transport Related,CCA,41985,11-15328,2642.52,F & J Marriott T/A Unity Coaches,,,,,,,,,,,
Nottinghamshire County Council,1111/1001,Children and Young People,CYP,Transport Related,CCA,41985,11-15339,3346.2,Marshalls Of Sutton On Trent Ltd,,,,,,,,,,,
Nottinghamshire County Council,1111/1001,Children and Young People,CYP,Transport Related,CCA,41985,11-15347,808.64,Nunns Cars,,,,,,,,,,,
Nottinghamshire County Council,1111/1001,Children and Young People,CYP,Transport Related,CCA,41985,11-15365,2176,Rio Cabs,,,,,,,,,,,
Nottinghamshire County Council,1111/1001,Children and Young People,CYP,Transport Related,CCA,41985,11-15366,1214.4,Rio Cabs,,,,,,,,,,,
Nottinghamshire County Council,1111/1001,Children and Young People,CYP,Transport Related,CCA,41985,11-15368,1544.48,Rio Cabs,,,,,,,,,,,
Nottinghamshire County Council,1111/1001,Children and Young People,CYP,Transport Related,CCA,41990,11-15578,853.2,Alert Cars Ltd,,,,,,,,,,,
Nottinghamshire County Council,1111/1001,Children and Young People,CYP,Transport Related,CCA,41990,11-15580,900.6,Alert Cars Ltd,,,,,,,,,,,
Nottinghamshire County Council,1111/1001,Children and Young People,CYP,Transport Related,CCA,41990,11-15586,600,Cabline Uk Ltd,,,,,,,,,,,
Nottinghamshire County Council,1111/1001,Children and Young People,CYP,Transport Related,CCA,41990,11-15587,1151.4,Cabline Uk Ltd,,,,,,,,,,,
Nottinghamshire County Council,1111/1001,Children and Young People,CYP,Transport Related,CCA,41990,11-15588,1010,Cabline Uk Ltd,,,,,,,,,,,
Nottinghamshire County Council,1111/1001,Children and Young People,CYP,Transport Related,CCA,41990,11-15591,1647.3,Central Cars Nottm Ltd,,,,,,,,,,,
Nottinghamshire County Council,1111/1001,Children and Young People,CYP,Transport Related,CCA,41990,11-15592,2027.11,Central Cars Nottm Ltd,,,,,,,,,,,
Nottinghamshire County Council,1111/1001,Children and Young People,CYP,Transport Related,CCA,41990,11-15593,1734,Central Cars Nottm Ltd,,,,,,,,,,,
Nottinghamshire County Council,1111/1001,Children and Young People,CYP,Transport Related,CCA,41990,11-15594,2000,Central Cars Nottm Ltd,,,,,,,,,,,
Nottinghamshire County Council,1111/1001,Children and Young People,CYP,Transport Related,CCA,41990,11-15595,2040,Central Cars Nottm Ltd,,,,,,,,,,,
Nottinghamshire County Council,1111/1001,Children and Young People,CYP,Transport Related,CCA,41990,11-15596,1710,Central Cars Nottm Ltd,,,,,,,,,,,
Nottinghamshire County Council,1111/1001,Children and Young People,CYP,Transport Related,CCA,41990,11-15597,556.32,Central Cars Nottm Ltd,,,,,,,,,,,
Nottinghamshire County Council,1111/1001,Children and Young People,CYP,Transport Related,CCA,41990,11-15598,2178.8,Central Cars Nottm Ltd,,,,,,,,,,,
Nottinghamshire County Council,1111/1001,Children and Young People,CYP,Transport Related,CCA,41990,11-15599,2250.2,Central Cars Nottm Ltd,,,,,,,,,,,
Nottinghamshire County Council,1111/1001,Children and Young People,CYP,Transport Related,CCA,41990,11-15600,1138.32,Central Cars Nottm Ltd,,,,,,,,,,,
Nottinghamshire County Council,1111/1001,Children and Young People,CYP,Transport Related,CCA,41990,11-15601,1301.68,Central Cars Nottm Ltd,,,,,,,,,,,
Nottinghamshire County Council,1111/1001,Children and Young People,CYP,Transport Related,CCA,41990,11-15602,1866.56,Johnson Bros Tours Ltd,,,,,,,,,,,
Nottinghamshire County Council,1111/1001,Children and Young People,CYP,Transport Related,CCA,41990,11-15613,2116.7,Arrow Specialised Transport Ltd,,,,,,,,,,,
Nottinghamshire County Council,1111/1001,Children and Young People,CYP,Transport Related,CCA,41990,11-15614,760,Arrow Specialised Transport Ltd,,,,,,,,,,,
Nottinghamshire County Council,1111/1001,Children and Young People,CYP,Transport Related,CCA,41990,11-15629,2147,Sprays Transport Ltd,,,,,,,,,,,
Nottinghamshire County Council,1111/1001,Children and Young People,CYP,Transport Related,CCA,41990,11-15630,1980.46,Sprays Transport Ltd,,,,,,,,,,,
Nottinghamshire County Council,1111/1001,Children and Young People,CYP,Transport Related,CCA,41990,11-15632,2414.4,Sprays Transport Ltd,,,,,,,,,,,
Nottinghamshire County Council,1111/1001,Children and Young People,CYP,Transport Related,CCA,41990,11-15636,2060,Abacus Cars,,,,,,,,,,,
Nottinghamshire County Council,1111/1001,Children and Young People,CYP,Transport Related,CCA,41990,11-15644,1560,Jb Tours Watnall Ltd,,,,,,,,,,,
Nottinghamshire County Council,1111/1001,Children and Young People,CYP,Transport Related,CCA,41992,11-16032,876.9,Alert Cars Ltd,,,,,,,,,,,
Nottinghamshire County Council,1111/1001,Children and Young People,CYP,Transport Related,CCA,41992,11-16034,600,Sharpes Of Nottingham,,,,,,,,,,,
Nottinghamshire County Council,1111/1001,Children and Young People,CYP,Transport Related,CCA,41992,11-16040,2520,Sharpes Of Nottingham,,,,,,,,,,,
Nottinghamshire County Council,1111/1001,Children and Young People,CYP,Transport Related,CCA,41992,11-16041,1260,Sharpes Of Nottingham,,,,,,,,,,,
Nottinghamshire County Council,1111/1001,Children and Young People,CYP,Transport Related,CCA,41992,11-16042,1320,Sharpes Of Nottingham,,,,,,,,,,,
Nottinghamshire County Council,1111/1001,Children and Young People,CYP,Transport Related,CCA,41992,11-16049,14300,Sharpes Of Nottingham,,,,,,,,,,,
Nottinghamshire County Council,1111/1001,Children and Young People,CYP,Transport Related,CCA,41992,11-16050,800,SJW (Muskham) Ltd T/A Z Cars,,,,,,,,,,,
Nottinghamshire County Council,1111/1001,Children and Young People,CYP,Transport Related,CCA,41992,11-16052,1100,Shelleys Taxis Ltd,,,,,,,,,,,
Nottinghamshire County Council,1111/1001,Children and Young People,CYP,Transport Related,CCA,41992,11-16053,2295,Sprays Transport Ltd,,,,,,,,,,,
Nottinghamshire County Council,1111/1001,Children and Young People,CYP,Transport Related,CCA,41992,11-16055,6659.2,Stagecoach Services Ltd,,,,,,,,,,,
Nottinghamshire County Council,1111/1001,Children and Young People,CYP,Transport Related,CCA,41992,11-16097,628.2,Diamond Cars,,,,,,,,,,,
Nottinghamshire County Council,1111/1001,Children and Young People,CYP,Transport Related,CCA,41992,11-16098,628.2,Diamond Cars,,,,,,,,,,,
Nottinghamshire County Council,1111/1001,Children and Young People,CYP,Transport Related,CCA,41995,11-16178,1621.8,Tiger European Uk Ltd,,,,,,,,,,,
Nottinghamshire County Council,1111/1001,Children and Young People,CYP,Transport Related,CCA,41996,11-16477,1360,Central Cars Nottm Ltd,,,,,,,,,,,
Nottinghamshire County Council,1111/1001,Children and Young People,CYP,Transport Related,CCA,41996,11-16478,1530,Central Cars Nottm Ltd,,,,,,,,,,,
Nottinghamshire County Council,1111/1001,Children and Young People,CYP,Transport Related,CCA,41996,11-16479,612,Central Cars Nottm Ltd,,,,,,,,,,,
Nottinghamshire County Council,1111/1001,Children and Young People,CYP,Transport Related,CCA,41996,11-16491,1440,AOT Coaches,,,,,,,,,,,
Nottinghamshire County Council,1111/1001,Children and Young People,CYP,Transport Related,CCA,41996,11-16492,2400,AOT Coaches,,,,,,,,,,,
Nottinghamshire County Council,1111/1001,Children and Young People,CYP,Transport Related,CCA,41996,11-16493,1320,Jb Tours Watnall Ltd,,,,,,,,,,,
Nottinghamshire County Council,1111/1001,Children and Young People,CYP,Transport Related,CCA,41996,11-16495,1442.2,Ace Cars,,,,,,,,,,,
Nottinghamshire County Council,1111/1001,Children and Young People,CYP,Transport Related,CCA,41996,11-16496,1039.04,I Can Charity,,,,,,,,,,,
Nottinghamshire County Council,1111/1001,Children and Young People,CYP,Transport Related,CCA,41996,11-16497,1140,I Can Charity,,,,,,,,,,,
Nottinghamshire County Council,1111/1001,Children and Young People,CYP,Transport Related,CCA,41996,11-16499,1520,Eurocab 2000 Ltd,,,,,,,,,,,
Nottinghamshire County Council,1111/1001,Children and Young People,CYP,Transport Related,CCA,41996,11-16500,3138,Eurocab 2000 Ltd,,,,,,,,,,,
Nottinghamshire County Council,1111/1001,Children and Young People,CYP,Transport Related,CCA,41996,11-16501,2755,Eurocab 2000 Ltd,,,,,,,,,,,
Nottinghamshire County Council,1111/1001,Children and Young People,CYP,Transport Related,CCA,41996,11-16502,1900,Eurocab 2000 Ltd,,,,,,,,,,,
Nottinghamshire County Council,1111/1001,Children and Young People,CYP,Transport Related,CCA,42004,11-13965,2346.5,Doncaster Metroplitan Borough Counc,,,,,,,,,,,
Nottinghamshire County Council,1111/1001,Children and Young People,CYP,Transport Related,CCA,42004,11-13966,3847.5,Doncaster Metroplitan Borough Counc,,,,,,,,,,,
Nottinghamshire County Council,1111/1001,Children and Young People,CYP,Transport Related,CCA,42004,11-13970,1781.64,Srcl Ltd,,,,,,,,,,,
Nottinghamshire County Council,1111/1001,Children and Young People,CYP,Transport Related,CCA,42004,11-13971,2263.32,Srcl Ltd,,,,,,,,,,,
Nottinghamshire County Council,1111/1001,Children and Young People,CYP,Transport Related,CCA,42004,11-13972,855.85,Srcl Ltd,,,,,,,,,,,
Nottinghamshire County Council,1111/1001,Children and Young People,CYP,Transport Related,CCA,42004,11-13999,2178.9,Srcl Ltd,,,,,,,,,,,
Nottinghamshire County Council,1111/1001,Children and Young People,CYP,Transport Related,CDA,41975,11-13938,244.74,Fozcabs Newark Taxis,,,,,,,,,,,
Nottinghamshire County Council,1111/1001,Children and Young People,CYP,Transport Related,CDA,41975,11-13947,750,Fozcabs Newark Taxis,,,,,,,,,,,
Nottinghamshire County Council,1111/1001,Children and Young People,CYP,Transport Related,CDA,41975,11-13951,1650,Fozcabs Newark Taxis,,,,,,,,,,,
Nottinghamshire County Council,1111/1001,Children and Young People,CYP,Transport Related,CDA,41975,11-13952,1495.75,Fozcabs Newark Taxis,,,,,,,,,,,
Nottinghamshire County Council,1111/1001,Children and Young People,CYP,Transport Related,CDA,41976,11-14145,550,Central Cars Nottm Ltd,,,,,,,,,,,
Nottinghamshire County Council,1111/1001,Children and Young People,CYP,Transport Related,CDA,41976,11-14186,1411.4,Arrow Specialised Transport Ltd,,,,,,,,,,,
Nottinghamshire County Council,1111/1001,Children and Young People,CYP,Transport Related,CDA,41976,11-14188,470.21,Arrow Specialised Transport Ltd,,,,,,,,,,,
Nottinghamshire County Council,1111/1001,Children and Young People,CYP,Transport Related,CDA,41976,11-14195,746.9,Arrow Specialised Transport Ltd,,,,,,,,,,,
Nottinghamshire County Council,1111/1001,Children and Young People,CYP,Transport Related,CDA,41976,11-14201,1415.9,Arrow Specialised Transport Ltd,,,,,,,,,,,
Nottinghamshire County Council,1111/1001,Children and Young People,CYP,Transport Related,CDA,41976,11-14224,907.8,P & P Taxis,,,,,,,,,,,
Nottinghamshire County Council,1111/1001,Children and Young People,CYP,Transport Related,CDA,41977,11-14311,1227.6,Ace Of Mansfield Ltd,,,,,,,,,,,
Nottinghamshire County Council,1111/1001,Children and Young People,CYP,Transport Related,CDA,41977,11-14331,191.57,Bridges Transport Services,,,,,,,,,,,
Nottinghamshire County Council,1111/1001,Children and Young People,CYP,Transport Related,CDA,41978,11-14503,1200,Galaxy Cabs,,,,,,,,,,,
Nottinghamshire County Council,1111/1001,Children and Young People,CYP,Transport Related,CDA,41978,11-14521,505.68,Sprays Transport Ltd,,,,,,,,,,,
Nottinghamshire County Council,1111/1001,Children and Young People,CYP,Transport Related,CDA,41982,11-14980,287.57,6 Five 2s,,,,,,,,,,,
Nottinghamshire County Council,1111/1001,Children and Young People,CYP,Transport Related,CDA,41982,11-14987,272.44,6 Five 2s,,,,,,,,,,,
Nottinghamshire County Council,1111/1001,Children and Young People,CYP,Transport Related,CDA,41982,11-14995,287.57,6 Five 2s,,,,,,,,,,,
Nottinghamshire County Council,1111/1001,Children and Young People,CYP,Transport Related,CDA,41982,11-15016,1250,Sprays Transport Ltd,,,,,,,,,,,
Nottinghamshire County Council,1111/1001,Children and Young People,CYP,Transport Related,CDA,41982,11-15030,1153.8,D G Private Hire Ltd,,,,,,,,,,,
Nottinghamshire County Council,1111/1001,Children and Young People,CYP,Transport Related,CDA,41982,11-15041,1710,Nottingham Minibuses & Coaches,,,,,,,,,,,
Nottinghamshire County Council,1111/1001,Children and Young People,CYP,Transport Related,CDA,41982,11-15042,2470,Nottingham Minibuses & Coaches,,,,,,,,,,,
Nottinghamshire County Council,1111/1001,Children and Young People,CYP,Transport Related,CDA,41982,11-15043,2800,Nottingham Minibuses & Coaches,,,,,,,,,,,
Nottinghamshire County Council,1111/1001,Children and Young People,CYP,Transport Related,CDA,41982,11-15045,3366,Nottingham Minibuses & Coaches,,,,,,,,,,,
Nottinghamshire County Council,1111/1001,Children and Young People,CYP,Transport Related,CDA,41982,11-15046,7315,Nottingham Minibuses & Coaches,,,,,,,,,,,
Nottinghamshire County Council,1111/1001,Children and Young People,CYP,Transport Related,CDA,41982,11-15048,2600,Nottingham Minibuses & Coaches,,,,,,,,,,,
Nottinghamshire County Council,1111/1001,Children and Young People,CYP,Transport Related,CDA,41982,11-15049,2800,Nottingham Minibuses & Coaches,,,,,,,,,,,
Nottinghamshire County Council,1111/1001,Children and Young People,CYP,Transport Related,CDA,41982,11-15051,2250,Nottingham Minibuses & Coaches,,,,,,,,,,,
Nottinghamshire County Council,1111/1001,Children and Young People,CYP,Transport Related,CDA,41983,11-15108,675,D G Private Hire Ltd,,,,,,,,,,,
Nottinghamshire County Council,1111/1001,Children and Young People,CYP,Transport Related,CDA,41983,11-15109,1020,D G Private Hire Ltd,,,,,,,,,,,
Nottinghamshire County Council,1111/1001,Children and Young People,CYP,Transport Related,CDA,41983,11-15121,825,D G Private Hire Ltd,,,,,,,,,,,
Nottinghamshire County Council,1111/1001,Children and Young People,CYP,Transport Related,CDA,41983,11-15122,1600,D G Private Hire Ltd,,,,,,,,,,,
Nottinghamshire County Council,1111/1001,Children and Young People,CYP,Transport Related,CDA,41983,11-15127,3200,Abacus Cars,,,,,,,,,,,
Nottinghamshire County Council,1111/1001,Children and Young People,CYP,Transport Related,CDA,41983,11-15129,700,Abacus Cars,,,,,,,,,,,
Nottinghamshire County Council,1111/1001,Children and Young People,CYP,Transport Related,CDA,41995,11-16177,6364.8,Paul S Winson Coaches,,,,,,,,,,,
Nottinghamshire County Council,1111/1001,Children and Young People,CYP,Transport Related,CDA,41996,11-16484,3608,AOT Coaches,,,,,,,,,,,
Nottinghamshire County Council,1111/1001,Children and Young People,CYP,Transport Related,CDA,41996,11-16485,1980,AOT Coaches,,,,,,,,,,,
Nottinghamshire County Council,1111/1001,Children and Young People,CYP,Supplies & Services,DAA,41991,11-15983,5015.88,The Carlton Academy,,,,,,,,,,,
Nottinghamshire County Council,1111/1001,Children and Young People,CYP,Supplies & Services,DAA,41996,11-14660,3437.5,Hall Park Academy,,,,,,,,,,,
Nottinghamshire County Council,1111/1001,Children and Young People,CYP,Supplies & Services,DBA,41976,11-14104,260.06,Hallam Country Fresh Foods Ltd,,,,,,,,,,,
Nottinghamshire County Council,1111/1001,Children and Young People,CYP,Supplies & Services,DBA,41976,11-14249,92.07,M Maloney Country Butchers & B Ltd,,,,,,,,,,,
Nottinghamshire County Council,1111/1001,Children and Young People,CYP,Supplies & Services,DBA,41976,11-14253,76.95,M Maloney Country Butchers & B Ltd,,,,,,,,,,,
Nottinghamshire County Council,1111/1001,Children and Young People,CYP,Supplies & Services,DBA,41976,11-14257,94.63,M Maloney Country Butchers & B Ltd,,,,,,,,,,,
Nottinghamshire County Council,1111/1001,Children and Young People,CYP,Supplies & Services,DBA,41976,11-14261,71.05,M Maloney Country Butchers & B Ltd,,,,,,,,,,,
Nottinghamshire County Council,1111/1001,Children and Young People,CYP,Supplies & Services,DBA,41976,11-14265,78.66,M Maloney Country Butchers & B Ltd,,,,,,,,,,,
Nottinghamshire County Council,1111/1001,Children and Young People,CYP,Supplies & Services,DBA,41976,11-14269,76.33,M Maloney Country Butchers & B Ltd,,,,,,,,,,,
Nottinghamshire County Council,1111/1001,Children and Young People,CYP,Supplies & Services,DBA,41976,11-14273,89.06,M Maloney Country Butchers & B Ltd,,,,,,,,,,,
Nottinghamshire County Council,1111/1001,Children and Young People,CYP,Supplies & Services,DBA,41976,11-14277,259.08,Brake Bros Ltd,,,,,,,,,,,
Nottinghamshire County Council,1111/1001,Children and Young People,CYP,Supplies & Services,DBA,41976,11-14280,553.29,Brake Bros Ltd,,,,,,,,,,,
Nottinghamshire County Council,1111/1001,Children and Young People,CYP,Supplies & Services,DBA,41983,11-15100,266.25,Hallam Country Fresh Foods Ltd,,,,,,,,,,,
Nottinghamshire County Council,1111/1001,Children and Young People,CYP,Supplies & Services,DBA,41984,11-15195,564.38,Brake Bros Ltd,,,,,,,,,,,
Nottinghamshire County Council,1111/1001,Children and Young People,CYP,Supplies & Services,DBA,41984,11-15199,224.04,Brake Bros Ltd,,,,,,,,,,,
Nottinghamshire County Council,1111/1001,Children and Young People,CYP,Supplies & Services,DBA,41984,11-15203,565.07,Brake Bros Ltd,,,,,,,,,,,
Nottinghamshire County Council,1111/1001,Children and Young People,CYP,Supplies & Services,DBA,41989,11-15521,250.25,Hallam Country Fresh Foods Ltd,,,,,,,,,,,
Nottinghamshire County Council,1111/1001,Children and Young People,CYP,Supplies & Services,DBA,41989,11-15529,508.39,Brake Bros Ltd,,,,,,,,,,,
Nottinghamshire County Council,1111/1001,Children and Young People,CYP,Supplies & Services,DBA,41989,11-15533,51.22,Brake Bros Ltd,,,,,,,,,,,
Nottinghamshire County Council,1111/1001,Children and Young People,CYP,Supplies & Services,DBA,41989,11-15538,378.63,Brake Bros Ltd,,,,,,,,,,,
Nottinghamshire County Council,1111/1001,Children and Young People,CYP,Supplies & Services,DBA,41989,11-15543,602.17,Brake Bros Ltd,,,,,,,,,,,
Nottinghamshire County Council,1111/1001,Children and Young People,CYP,Supplies & Services,DBA,41989,11-15546,524.28,Brake Bros Ltd,,,,,,,,,,,
Nottinghamshire County Council,1111/1001,Children and Young People,CYP,Supplies & Services,DBA,41989,11-15550,187.33,Brake Bros Ltd,,,,,,,,,,,
Nottinghamshire County Council,1111/1001,Children and Young People,CYP,Supplies & Services,DBA,41989,11-15554,805.84,Brake Bros Ltd,,,,,,,,,,,
Nottinghamshire County Council,1111/1001,Children and Young People,CYP,Supplies & Services,DBA,41989,11-15557,512.21,Brake Bros Ltd,,,,,,,,,,,
Nottinghamshire County Council,1111/1001,Children and Young People,CYP,Supplies & Services,DBA,41989,11-15561,340.78,Brake Bros Ltd,,,,,,,,,,,
Nottinghamshire County Council,1111/1001,Children and Young People,CYP,Supplies & Services,DBA,41989,11-15564,538.86,Brake Bros Ltd,,,,,,,,,,,
Nottinghamshire County Council,1111/1001,Children and Young People,CYP,Supplies & Services,DBA,41990,11-15676,368.49,Brake Bros Ltd,,,,,,,,,,,
Nottinghamshire County Council,1111/1001,Children and Young People,CYP,Supplies & Services,DBA,41990,11-15679,457.57,Brake Bros Ltd,,,,,,,,,,,
Nottinghamshire County Council,1111/1001,Children and Young People,CYP,Supplies & Services,DBA,41990,11-15687,501.13,Brake Bros Ltd,,,,,,,,,,,
Nottinghamshire County Council,1111/1001,Children and Young People,CYP,Supplies & Services,DBA,41990,11-15691,387.5,Brake Bros Ltd,,,,,,,,,,,
Nottinghamshire County Council,1111/1001,Children and Young People,CYP,Supplies & Services,DBA,41991,11-16008,575.2,Brake Bros Ltd,,,,,,,,,,,
Nottinghamshire County Council,1111/1001,Children and Young People,CYP,Supplies & Services,DBA,41991,11-16011,379.24,Brake Bros Ltd,,,,,,,,,,,
Nottinghamshire County Council,1111/1001,Children and Young People,CYP,Supplies & Services,DBA,41997,11-16551,392.49,Brake Bros Ltd,,,,,,,,,,,
Nottinghamshire County Council,1111/1001,Children and Young People,CYP,Supplies & Services,DBA,41997,11-16557,440.07,Brake Bros Ltd,,,,,,,,,,,
Nottinghamshire County Council,1111/1001,Children and Young People,CYP,Supplies & Services,DBA,41997,11-16563,272.92,Hallam Country Fresh Foods Ltd,,,,,,,,,,,
Nottinghamshire County Council,1111/1001,Children and Young People,CYP,Supplies & Services,DBA,41997,11-16573,70.26,M Maloney Country Butchers & B Ltd,,,,,,,,,,,
Nottinghamshire County Council,1111/1001,Children and Young People,CYP,Supplies & Services,DBA,41997,11-16577,125.38,M Maloney Country Butchers & B Ltd,,,,,,,,,,,
Nottinghamshire County Council,1111/1001,Children and Young People,CYP,Supplies & Services,DBA,42003,11-20593,162.91,Hallam Country Fresh Foods Ltd,,,,,,,,,,,
Nottinghamshire County Council,1111/1001,Children and Young People,CYP,Supplies & Services,DBA,42004,11-20642,406.88,Brake Bros Ltd,,,,,,,,,,,
Nottinghamshire County Council,1111/1001,Children and Young People,CYP,Supplies & Services,DBA,42004,11-20648,645.61,Brake Bros Ltd,,,,,,,,,,,
Nottinghamshire County Council,1111/1001,Children and Young People,CYP,Supplies & Services,DEA,41976,11-20798,613.33,University Of Derby,,,,,,,,,,,
Nottinghamshire County Council,1111/1001,Children and Young People,CYP,Supplies & Services,DEA,41995,11-14659,570,Arnbrook Primary Academy,,,,,,,,,,,
Nottinghamshire County Council,1111/1001,Children and Young People,CYP,Supplies & Services,DFA,41978,11-14470,553.49,Lantec Services Ltd,,,,,,,,,,,
Nottinghamshire County Council,1111/1001,Children and Young People,CYP,Supplies & Services,DFA,41983,11-15098,696.01,Lantec Services Ltd,,,,,,,,,,,
Nottinghamshire County Council,1111/1001,Children and Young People,CYP,Supplies & Services,DHA,41988,11-15494,5057.87,Merison Building & Maintenance Cont,,,,,,,,,,,
Nottinghamshire County Council,1111/1001,Children and Young People,CYP,Supplies & Services,DHA,42004,11-14469,7260.8,Learneye Ltd,,,,,,,,,,,
Nottinghamshire County Council,1111/1001,Children and Young People,CYP,Supplies & Services,DKA,41978,11-14486,756,200 Cars Ltd,,,,,,,,,,,
Nottinghamshire County Council,1111/1001,Children and Young People,CYP,Supplies & Services,DKA,41982,11-14949,8865.74,College House Junior School,,,,,,,,,,,
Nottinghamshire County Council,1111/1001,Children and Young People,CYP,Supplies & Services,DKA,41982,11-14950,7911.36,Burton Joyce Primary School,,,,,,,,,,,
Nottinghamshire County Council,1111/1001,Children and Young People,CYP,Supplies & Services,DKA,41982,11-14951,17746,Leen Mills Primary School,,,,,,,,,,,
Nottinghamshire County Council,1111/1001,Children and Young People,CYP,Supplies & Services,DKA,41985,11-15278,5601.35,Leen Mills Primary School,,,,,,,,,,,
Nottinghamshire County Council,1111/1001,Children and Young People,CYP,Supplies & Services,DKA,41985,11-15279,13293,Abbey Gates Primary School,,,,,,,,,,,
Nottinghamshire County Council,1111/1001,Children and Young People,CYP,Supplies & Services,DKA,41988,11-15179,1040,Highfield Estates,,,,,,,,,,,
Nottinghamshire County Council,1111/1001,Children and Young People,CYP,Supplies & Services,DKA,41995,11-16174,10093,Leen Mills Primary School,,,,,,,,,,,
Nottinghamshire County Council,1111/1001,Children and Young People,CYP,Supplies & Services,DKA,41995,11-16175,72597,Cropwell Bishop Primary School,,,,,,,,,,,
Nottinghamshire County Council,1111/1001,Children and Young People,CYP,Supplies & Services,DKA,41995,11-16176,11588.5,Priory Junior School,,,,,,,,,,,
Nottinghamshire County Council,1111/1001,Children and Young People,CYP,Supplies & Services,DKA,41996,11-16321,4404,Nottingham City Council,,,,,,,,,,,
Nottinghamshire County Council,1111/1001,Children and Young People,CYP,Third Party Payments,EAA,41974,11-20799,1800,Redacted,,,,,,,,,,,
Nottinghamshire County Council,1111/1001,Children and Young People,CYP,Third Party Payments,EBA,41977,11-14383,23461.54,Home Group Limited,,,,,,,,,,,
Nottinghamshire County Council,1111/1001,Children and Young People,CYP,Third Party Payments,EBA,41977,11-14388,1681.84,Metropolitan Housing Trust,,,,,,,,,,,
Nottinghamshire County Council,1111/1001,Children and Young People,CYP,Third Party Payments,EBA,41977,11-14391,20912.09,Newark Emmaus Trust,,,,,,,,,,,
Nottinghamshire County Council,1111/1001,Children and Young People,CYP,Third Party Payments,EBA,41977,11-14395,24162.47,Framework Housing Association,,,,,,,,,,,
Nottinghamshire County Council,1111/1001,Children and Young People,CYP,Third Party Payments,EBA,41977,11-14397,22406.75,Nottingham Community Housing,,,,,,,,,,,
Nottinghamshire County Council,1111/1001,Children and Young People,CYP,Third Party Payments,EBA,41983,11-15153,8199.62,Magnus Church of England Academy,,,,,,,,,,,
Nottinghamshire County Council,1111/1001,Children and Young People,CYP,Third Party Payments,EBA,41990,11-15673,9701.76,Gedling Borough Council (Bus Rates,,,,,,,,,,,
Nottinghamshire County Council,1111/1001,Children and Young People,CYP,Third Party Payments,EBA,42002,11-16133,17717.82,East Leake Schools Ltd,,,,,,,,,,,
Nottinghamshire County Council,1111/1001,Children and Young People,CYP,Third Party Payments,EBA,42002,11-16135,2418.82,Transform Schools,,,,,,,,,,,
Nottinghamshire County Council,1111/1001,Children and Young People,CYP,Third Party Payments,EBA,42002,11-16136,901.16,Transform Schools,,,,,,,,,,,
Nottinghamshire County Council,1111/1001,Children and Young People,CYP,Third Party Payments,EBA,42002,11-16137,40375.7,Transform Schools,,,,,,,,,,,
Nottinghamshire County Council,1111/1001,Children and Young People,CYP,Third Party Payments,EBA,42002,11-16138,28586.94,Transform Schools,,,,,,,,,,,
Nottinghamshire County Council,1111/1001,Children and Young People,CYP,Third Party Payments,EBA,42002,11-16139,1968.51,Transform Schools,,,,,,,,,,,
Nottinghamshire County Council,1111/1001,Children and Young People,CYP,Third Party Payments,EBA,42002,11-16140,26592.9,Transform Schools,,,,,,,,,,,
Nottinghamshire County Council,1111/1001,Children and Young People,CYP,Third Party Payments,EBA,42002,11-16141,8005.15,Transform Schools,,,,,,,,,,,
Nottinghamshire County Council,1111/1001,Children and Young People,CYP,Third Party Payments,EBA,42002,11-16142,357223.37,Transform Schools,,,,,,,,,,,
Nottinghamshire County Council,1111/1001,Children and Young People,CYP,Third Party Payments,EBA,42002,11-16143,1490249.94,Transform Schools,,,,,,,,,,,
Nottinghamshire County Council,1111/1001,Children and Young People,CYP,Third Party Payments,EBA,42002,11-16145,236694.44,East Leake Schools Ltd,,,,,,,,,,,
Nottinghamshire County Council,1111/1001,Children and Young People,CYP,Third Party Payments,EBA,42004,11-20663,23461.54,Home Group Limited,,,,,,,,,,,
Nottinghamshire County Council,1111/1001,Children and Young People,CYP,Third Party Payments,EBA,42004,11-20668,1681.84,Metropolitan Housing Trust,,,,,,,,,,,
Nottinghamshire County Council,1111/1001,Children and Young People,CYP,Third Party Payments,EBA,42004,11-20671,20912.09,Newark Emmaus Trust,,,,,,,,,,,
Nottinghamshire County Council,1111/1001,Children and Young People,CYP,Third Party Payments,EBA,42004,11-20675,24162.47,Framework Housing Association,,,,,,,,,,,
Nottinghamshire County Council,1111/1001,Children and Young People,CYP,Third Party Payments,EBA,42004,11-20677,22406.75,Nottingham Community Housing,,,,,,,,,,,
Nottinghamshire County Council,1111/1001,Children and Young People,CYP,Third Party Payments,EDA,41974,11-10142,6752,George Spencer Academy,,,,,,,,,,,
Nottinghamshire County Council,1111/1001,Children and Young People,CYP,Third Party Payments,EDA,41974,11-10144,1140,Chetwynd Road Primary Academy,,,,,,,,,,,
Nottinghamshire County Council,1111/1001,Children and Young People,CYP,Third Party Payments,EDA,41981,11-14657,81782,Foxwood Academy,,,,,,,,,,,
Nottinghamshire County Council,1111/1001,Children and Young People,CYP,Third Party Payments,EDA,41982,11-14939,1697,The Brunts Academy,,,,,,,,,,,
Nottinghamshire County Council,1111/1001,Children and Young People,CYP,Third Party Payments,EDA,41988,11-15473,2040,The Manor Academy,,,,,,,,,,,
Nottinghamshire County Council,1111/1001,Children and Young People,CYP,Third Party Payments,EDA,41988,11-15474,1547,Arnold Hill Academy,,,,,,,,,,,
Nottinghamshire County Council,1111/1001,Children and Young People,CYP,Third Party Payments,EDA,41988,11-15475,8990,Tuxford Academy,,,,,,,,,,,
Nottinghamshire County Council,1111/1001,Children and Young People,CYP,Third Party Payments,EDA,41988,11-15476,1697,The Brunts Academy,,,,,,,,,,,
Nottinghamshire County Council,1111/1001,Children and Young People,CYP,Third Party Payments,EDA,41990,11-15759,6339,The Carlton Academy,,,,,,,,,,,
Nottinghamshire County Council,1111/1001,Children and Young People,CYP,Third Party Payments,EDA,41990,11-15760,6339,Redhill Academy,,,,,,,,,,,
Nottinghamshire County Council,1111/1001,Children and Young People,CYP,Third Party Payments,EDA,41990,11-15761,9495,The South Wolds Academy & Sixth For,,,,,,,,,,,
Nottinghamshire County Council,1111/1001,Children and Young People,CYP,Third Party Payments,EDA,41990,11-15762,6339,Christ The King Catholic Voluntary,,,,,,,,,,,
Nottinghamshire County Council,1111/1001,Children and Young People,CYP,Third Party Payments,EDA,41990,11-15763,5186,Ashfield Academy,,,,,,,,,,,
Nottinghamshire County Council,1111/1001,Children and Young People,CYP,Third Party Payments,EDA,41990,11-15764,2747,The Brunts Academy,,,,,,,,,,,
Nottinghamshire County Council,1111/1001,Children and Young People,CYP,Third Party Payments,EDA,41990,11-15765,6339,Quarrydale Academy,,,,,,,,,,,
Nottinghamshire County Council,1111/1001,Children and Young People,CYP,Third Party Payments,EDA,41990,11-15766,6339,The Brunts Academy,,,,,,,,,,,
Nottinghamshire County Council,1111/1001,Children and Young People,CYP,Third Party Payments,EDA,41990,11-15767,6339,Toothill Academy,,,,,,,,,,,
Nottinghamshire County Council,1111/1001,Children and Young People,CYP,Third Party Payments,EDA,41990,11-15768,2715,Cotgrave Candleby Lane School,,,,,,,,,,,
Nottinghamshire County Council,1111/1001,Children and Young People,CYP,Third Party Payments,EDA,41990,11-15769,4610,Cotgrave Candleby Lane School,,,,,,,,,,,
Nottinghamshire County Council,1111/1001,Children and Young People,CYP,Third Party Payments,EDA,41990,11-15770,8989,Redhill Academy,,,,,,,,,,,
Nottinghamshire County Council,1111/1001,Children and Young People,CYP,Third Party Payments,EDA,41990,11-15771,6339,South Nottinghamshire Academy,,,,,,,,,,,
Nottinghamshire County Council,1111/1001,Children and Young People,CYP,Third Party Payments,EDA,41990,11-15772,6339,Redhill Academy,,,,,,,,,,,
Nottinghamshire County Council,1111/1001,Children and Young People,CYP,Third Party Payments,EDA,41990,11-15773,6339,Quarrydale Academy,,,,,,,,,,,
Nottinghamshire County Council,1111/1001,Children and Young People,CYP,Third Party Payments,EDA,41990,11-15774,8240,National Church Of England Academy,,,,,,,,,,,
Nottinghamshire County Council,1111/1001,Children and Young People,CYP,Third Party Payments,EDA,41990,11-15775,9219,The South Wolds Academy & Sixth For,,,,,,,,,,,
Nottinghamshire County Council,1111/1001,Children and Young People,CYP,Third Party Payments,EDA,41990,11-15776,6339,Kirkby College,,,,,,,,,,,
Nottinghamshire County Council,1111/1001,Children and Young People,CYP,Third Party Payments,EDA,41990,11-15778,9219,The South Wolds Academy & Sixth For,,,,,,,,,,,
Nottinghamshire County Council,1111/1001,Children and Young People,CYP,Third Party Payments,EDA,41990,11-15781,6339,The Brunts Academy,,,,,,,,,,,
Nottinghamshire County Council,1111/1001,Children and Young People,CYP,Third Party Payments,EDA,41990,11-15782,6339,The Brunts Academy,,,,,,,,,,,
Nottinghamshire County Council,1111/1001,Children and Young People,CYP,Third Party Payments,EDA,41990,11-15786,4083,Carlton Le Willows Academy,,,,,,,,,,,
Nottinghamshire County Council,1111/1001,Children and Young People,CYP,Third Party Payments,EDA,41990,11-15787,550,Toothill Academy,,,,,,,,,,,
Nottinghamshire County Council,1111/1001,Children and Young People,CYP,Third Party Payments,EDA,41990,11-15790,3170,Wainwright Primary Academy,,,,,,,,,,,
Nottinghamshire County Council,1111/1001,Children and Young People,CYP,Third Party Payments,EDA,41991,11-15779,6339,Rushcliffe School Academy Trust,,,,,,,,,,,
Nottinghamshire County Council,1111/1001,Children and Young People,CYP,Third Party Payments,EDA,41991,11-15785,6339,Rushcliffe School Academy Trust,,,,,,,,,,,
Nottinghamshire County Council,1111/1001,Children and Young People,CYP,Third Party Payments,EDA,41992,11-16115,6339,Ashfield Academy,,,,,,,,,,,
Nottinghamshire County Council,1111/1001,Children and Young People,CYP,Third Party Payments,EDA,41992,11-16116,6339,Samworth Academy,,,,,,,,,,,
Nottinghamshire County Council,1111/1001,Children and Young People,CYP,Third Party Payments,EDA,41992,11-16117,2747,The Brunts Academy,,,,,,,,,,,
Nottinghamshire County Council,1111/1001,Children and Young People,CYP,Third Party Payments,EDA,41992,11-16118,3592,Joseph Whittaker Academy,,,,,,,,,,,
Nottinghamshire County Council,1111/1001,Children and Young People,CYP,Third Party Payments,EDA,41992,11-16119,4437,Bramcote Park Comp School Ncc Acc,,,,,,,,,,,
Nottinghamshire County Council,1111/1001,Children and Young People,CYP,Third Party Payments,EDA,41992,11-16120,3457,Christ The King Catholic Voluntary,,,,,,,,,,,
Nottinghamshire County Council,1111/1001,Children and Young People,CYP,Third Party Payments,EDA,41992,11-16121,2747,Samworth Academy,,,,,,,,,,,
Nottinghamshire County Council,1111/1001,Children and Young People,CYP,Third Party Payments,EDA,41992,11-16122,1374,National Church Of England Academy,,,,,,,,,,,
Nottinghamshire County Council,1111/1001,Children and Young People,CYP,Third Party Payments,EDA,41992,11-16123,6339,The Brunts Academy,,,,,,,,,,,
Nottinghamshire County Council,1111/1001,Children and Young People,CYP,Third Party Payments,EDA,41995,11-10140,2666,The Holgate Academy,,,,,,,,,,,
Nottinghamshire County Council,1111/1001,Children and Young People,CYP,Third Party Payments,EDA,41995,11-10141,1333,Hillside Primary & Nursery School (,,,,,,,,,,,
Nottinghamshire County Council,1111/1001,Children and Young People,CYP,Third Party Payments,EDA,41995,11-10143,2055,Fairfield Primary Academy,,,,,,,,,,,
Nottinghamshire County Council,1111/1001,Children and Young People,CYP,Third Party Payments,EDA,41995,11-10145,57754,Outwood Academy - Valley,,,,,,,,,,,
Nottinghamshire County Council,1111/1001,Children and Young People,CYP,Third Party Payments,EDA,41995,11-10146,39921,Outwood Academy Portland,,,,,,,,,,,
Nottinghamshire County Council,1111/1001,Children and Young People,CYP,Third Party Payments,EDA,41995,11-10147,14573,Kingston Park Academy,,,,,,,,,,,
Nottinghamshire County Council,1111/1001,Children and Young People,CYP,Third Party Payments,EDA,41995,11-15777,6339,Leverton C Of E Academy,,,,,,,,,,,
Nottinghamshire County Council,1111/1001,Children and Young People,CYP,Third Party Payments,EDA,41996,11-16508,2747,Tuxford Academy,,,,,,,,,,,
Nottinghamshire County Council,1111/1001,Children and Young People,CYP,Third Party Payments,EDA,41996,11-16509,2747,Cotgrave Candleby Lane School,,,,,,,,,,,
Nottinghamshire County Council,1111/1001,Children and Young People,CYP,Third Party Payments,EDA,41996,11-16510,2747,Dukeries Academy,,,,,,,,,,,
Nottinghamshire County Council,1111/1001,Children and Young People,CYP,Third Party Payments,EDA,41996,11-16511,2747,Cotgrave Candleby Lane School,,,,,,,,,,,
Nottinghamshire County Council,1111/1001,Children and Young People,CYP,Third Party Payments,EDA,41996,11-16512,2747,Tuxford Academy,,,,,,,,,,,
Nottinghamshire County Council,1111/1001,Children and Young People,CYP,Third Party Payments,EDA,41996,11-16513,2747,Dukeries Academy,,,,,,,,,,,
Nottinghamshire County Council,1111/1001,Children and Young People,CYP,Third Party Payments,EDA,41996,11-16514,6339,The Carlton Academy,,,,,,,,,,,
Nottinghamshire County Council,1111/1001,Children and Young People,CYP,Third Party Payments,EDA,41996,11-16515,6339,Queen Elizabeth's Academy,,,,,,,,,,,
Nottinghamshire County Council,1111/1001,Children and Young People,CYP,Third Party Payments,EDA,42004,11-14658,46519,The Beech Academy,,,,,,,,,,,
Nottinghamshire County Council,1111/1001,Children and Young People,CYP,Third Party Payments,EFA,41988,11-15477,1752,Tuxford Academy,,,,,,,,,,,
Nottinghamshire County Council,1111/1001,Children and Young People,CYP,Third Party Payments,EGA,41974,11-10058,13489.97,PSLA Newstead Childcare,,,,,,,,,,,
Nottinghamshire County Council,1111/1001,Children and Young People,CYP,Third Party Payments,EGA,41974,11-10059,9055.11,PSLA Newstead Childcare,,,,,,,,,,,
Nottinghamshire County Council,1111/1001,Children and Young People,CYP,Third Party Payments,EGA,41974,11-10076,9717.87,PSLA Newstead Childcare,,,,,,,,,,,
Nottinghamshire County Council,1111/1001,Children and Young People,CYP,Third Party Payments,EGA,41974,11-10077,3301.7,PSLA Newstead Childcare,,,,,,,,,,,
Nottinghamshire County Council,1111/1001,Children and Young People,CYP,Third Party Payments,EGA,41974,11-10078,5795.79,PSLA Newstead Childcare,,,,,,,,,,,
Nottinghamshire County Council,1111/1001,Children and Young People,CYP,Third Party Payments,EGA,41974,11-10079,11336.91,PSLA Newstead Childcare,,,,,,,,,,,
Nottinghamshire County Council,1111/1001,Children and Young People,CYP,Third Party Payments,EGA,41974,11-10080,5291.67,PSLA Newstead Childcare,,,,,,,,,,,
Nottinghamshire County Council,1111/1001,Children and Young People,CYP,Third Party Payments,EGA,41974,11-10081,5995.9,PSLA Newstead Childcare,,,,,,,,,,,
Nottinghamshire County Council,1111/1001,Children and Young People,CYP,Third Party Payments,EGA,41974,11-10083,2500.83,PSLA Newstead Childcare,,,,,,,,,,,
Nottinghamshire County Council,1111/1001,Children and Young People,CYP,Third Party Payments,EGA,41974,11-20801,18157.13,Woodlands Ltd,,,,,,,,,,,
Nottinghamshire County Council,1111/1001,Children and Young People,CYP,Third Party Payments,EGA,41974,11-20804,3299.16,Nottinghamshire YMCA (HO),,,,,,,,,,,
Nottinghamshire County Council,1111/1001,Children and Young People,CYP,Third Party Payments,EGA,41975,11-13938,244.74,Fozcabs Newark Taxis,,,,,,,,,,,
Nottinghamshire County Council,1111/1001,Children and Young People,CYP,Third Party Payments,EGA,41975,11-20808,1130074.33,Nottinghamshire Healthcare Nhs Trus,,,,,,,,,,,
Nottinghamshire County Council,1111/1001,Children and Young People,CYP,Third Party Payments,EGA,41976,11-10089,1068.9,Stepping Stones Alfreton Ltd,,,,,,,,,,,
Nottinghamshire County Council,1111/1001,Children and Young People,CYP,Third Party Payments,EGA,41977,11-14410,618.75,Leen Mills Pre School Playgroup,,,,,,,,,,,
Nottinghamshire County Council,1111/1001,Children and Young People,CYP,Third Party Payments,EGA,41977,11-14411,577.5,Learning Ladder Childcare Ltd,,,,,,,,,,,
Nottinghamshire County Council,1111/1001,Children and Young People,CYP,Third Party Payments,EGA,41977,11-14413,558.04,Bircotes Pre-School,,,,,,,,,,,
Nottinghamshire County Council,1111/1001,Children and Young People,CYP,Third Party Payments,EGA,41977,11-14414,988.55,Arnold House Day Nursery,,,,,,,,,,,
Nottinghamshire County Council,1111/1001,Children and Young People,CYP,Third Party Payments,EGA,41977,11-14415,757.55,Safe Haven Day Nursery,,,,,,,,,,,
Nottinghamshire County Council,1111/1001,Children and Young People,CYP,Third Party Payments,EGA,41977,11-14416,634.16,Oceans Day Nursery,,,,,,,,,,,
Nottinghamshire County Council,1111/1001,Children and Young People,CYP,Third Party Payments,EGA,41977,11-14417,1131.25,The Learning Tree Day Nursery 2,,,,,,,,,,,
Nottinghamshire County Council,1111/1001,Children and Young People,CYP,Third Party Payments,EGA,41977,11-14418,1246.75,The Learning Tree Nursery,,,,,,,,,,,
Nottinghamshire County Council,1111/1001,Children and Young People,CYP,Third Party Payments,EGA,41977,11-14419,655.65,Wollaton Village Day Nurseries Ltd.,,,,,,,,,,,
Nottinghamshire County Council,1111/1001,Children and Young People,CYP,Third Party Payments,EGA,41977,11-14423,564.58,Cherubs Childcare Centre (Mansfield,,,,,,,,,,,
Nottinghamshire County Council,1111/1001,Children and Young People,CYP,Third Party Payments,EGA,41977,11-14424,782.72,Cherubs Ryton Park,,,,,,,,,,,
Nottinghamshire County Council,1111/1001,Children and Young People,CYP,Third Party Payments,EGA,41978,11-14570,687.15,The Enchanted Garden Day Nursery,,,,,,,,,,,
Nottinghamshire County Council,1111/1001,Children and Young People,CYP,Third Party Payments,EGA,41978,11-14571,916.2,Serendipity's Day Nursery,,,,,,,,,,,
Nottinghamshire County Council,1111/1001,Children and Young People,CYP,Third Party Payments,EGA,41978,11-14572,1908.75,Safe Haven Day Nursery,,,,,,,,,,,
Nottinghamshire County Council,1111/1001,Children and Young People,CYP,Third Party Payments,EGA,41978,11-14573,1357.2,Oceans Day Nursery,,,,,,,,,,,
Nottinghamshire County Council,1111/1001,Children and Young People,CYP,Third Party Payments,EGA,41978,11-14574,678.6,Fernwood Day Nursery Ltd,,,,,,,,,,,
Nottinghamshire County Council,1111/1001,Children and Young People,CYP,Third Party Payments,EGA,41978,11-14575,839.85,Stepping Stones II,,,,,,,,,,,
Nottinghamshire County Council,1111/1001,Children and Young People,CYP,Third Party Payments,EGA,41978,11-14576,1068.9,Toddlers University (Bee),,,,,,,,,,,
Nottinghamshire County Council,1111/1001,Children and Young People,CYP,Third Party Payments,EGA,41978,11-14577,712.6,The Secret Garden Private Day Nurse,,,,,,,,,,,
Nottinghamshire County Council,1111/1001,Children and Young People,CYP,Third Party Payments,EGA,41978,11-14578,1068.9,Prebend Pre-School Playgroup,,,,,,,,,,,
Nottinghamshire County Council,1111/1001,Children and Young People,CYP,Third Party Payments,EGA,41978,11-14579,4199.25,Little Bears Day Nursery,,,,,,,,,,,
Nottinghamshire County Council,1111/1001,Children and Young People,CYP,Third Party Payments,EGA,41978,11-14580,1374.3,SPBC Day Care Ltd,,,,,,,,,,,
Nottinghamshire County Council,1111/1001,Children and Young People,CYP,Third Party Payments,EGA,41978,11-14581,1603.35,Granby House Nursery,,,,,,,,,,,
Nottinghamshire County Council,1111/1001,Children and Young People,CYP,Third Party Payments,EGA,41978,11-14582,534.45,Cherubs Childcare Centre Ladybrook,,,,,,,,,,,
Nottinghamshire County Council,1111/1001,Children and Young People,CYP,Third Party Payments,EGA,41978,11-14583,1527,Arnold House Day Nursery,,,,,,,,,,,
Nottinghamshire County Council,1111/1001,Children and Young People,CYP,Third Party Payments,EGA,41978,11-14584,1464.75,Ruddington Nursery & Pre-School,,,,,,,,,,,
Nottinghamshire County Council,1111/1001,Children and Young People,CYP,Third Party Payments,EGA,41978,11-14585,954.03,Radcliffe On Trent Day Nursery,,,,,,,,,,,
Nottinghamshire County Council,1111/1001,Children and Young People,CYP,Third Party Payments,EGA,41978,11-14586,855.12,Fiona Lamb Childminding Service,,,,,,,,,,,
Nottinghamshire County Council,1111/1001,Children and Young People,CYP,Third Party Payments,EGA,41984,11-15184,2672.25,Ashfield Plaza Day Nursery,,,,,,,,,,,
Nottinghamshire County Council,1111/1001,Children and Young People,CYP,Third Party Payments,EGA,41984,11-15185,1068.9,Fun Farm Day Nursery,,,,,,,,,,,
Nottinghamshire County Council,1111/1001,Children and Young People,CYP,Third Party Payments,EGA,41985,11-15294,1417.5,Alphabet House Nursery,,,,,,,,,,,
Nottinghamshire County Council,1111/1001,Children and Young People,CYP,Third Party Payments,EGA,41985,11-15394,3681.51,The Grange Nursery Ltd,,,,,,,,,,,
Nottinghamshire County Council,1111/1001,Children and Young People,CYP,Third Party Payments,EGA,41985,11-15395,2137.8,Haywood Road Pre-School Playgroup,,,,,,,,,,,
Nottinghamshire County Council,1111/1001,Children and Young People,CYP,Third Party Payments,EGA,41985,11-15396,534.45,Kneesall Pre School & Playgroup,,,,,,,,,,,
Nottinghamshire County Council,1111/1001,Children and Young People,CYP,Third Party Payments,EGA,41985,11-15397,3206.7,Little Kites Playgroup,,,,,,,,,,,
Nottinghamshire County Council,1111/1001,Children and Young People,CYP,Third Party Payments,EGA,41985,11-15398,5344.5,Papermoon Day Nursery Sutton In Ash,,,,,,,,,,,
Nottinghamshire County Council,1111/1001,Children and Young People,CYP,Third Party Payments,EGA,41985,11-15399,1282.68,St Johns Playgroup,,,,,,,,,,,
Nottinghamshire County Council,1111/1001,Children and Young People,CYP,Third Party Payments,EGA,41989,11-15501,2373.28,PSLA Newstead Childcare,,,,,,,,,,,
Nottinghamshire County Council,1111/1001,Children and Young People,CYP,Third Party Payments,EGA,41990,11-14409,994.25,PSLA Newstead Childcare,,,,,,,,,,,
Nottinghamshire County Council,1111/1001,Children and Young People,CYP,Third Party Payments,EGA,41991,11-15944,610.8,Cherubs Childcare Centre (Mansfield,,,,,,,,,,,
Nottinghamshire County Council,1111/1001,Children and Young People,CYP,Third Party Payments,EGA,41991,11-15945,1993.56,Leo's Childrens Nurseries Ltd,,,,,,,,,,,
Nottinghamshire County Council,1111/1001,Children and Young People,CYP,Third Party Payments,EGA,41991,11-15946,1068.9,Papermoon Day Nursery Sutton In Ash,,,,,,,,,,,
Nottinghamshire County Council,1111/1001,Children and Young People,CYP,Third Party Payments,EGA,41991,11-15947,1295.1,Bullpit Road Nursery,,,,,,,,,,,
Nottinghamshire County Council,1111/1001,Children and Young People,CYP,Third Party Payments,EGA,41991,11-15948,45318.15,Cherubs Childrens Centre Wynndale,,,,,,,,,,,
Nottinghamshire County Council,1111/1001,Children and Young People,CYP,Third Party Payments,EGA,41991,11-15949,848.25,St Mary's Pre-School,,,,,,,,,,,
Nottinghamshire County Council,1111/1001,Children and Young People,CYP,Third Party Payments,EGA,41991,11-15984,534.45,Carlton & Gedling Day Nursery,,,,,,,,,,,
Nottinghamshire County Council,1111/1001,Children and Young People,CYP,Third Party Payments,EGA,41991,11-15985,1068.9,Carlton & Gedling Day Nursery,,,,,,,,,,,
Nottinghamshire County Council,1111/1001,Children and Young People,CYP,Third Party Payments,EGA,41991,11-15986,1068.9,Arnold St Mary's Pre-School,,,,,,,,,,,
Nottinghamshire County Council,1111/1001,Children and Young People,CYP,Third Party Payments,EGA,41991,11-15987,1068.9,Learning Ladder Childcare Ltd,,,,,,,,,,,
Nottinghamshire County Council,1111/1001,Children and Young People,CYP,Third Party Payments,EGA,41991,11-15988,1068.9,Lady Bay Pre School Playgroup,,,,,,,,,,,
Nottinghamshire County Council,1111/1001,Children and Young People,CYP,Third Party Payments,EGA,41991,11-15989,1985.1,Church House Day Nursery,,,,,,,,,,,
Nottinghamshire County Council,1111/1001,Children and Young People,CYP,Third Party Payments,EGA,41991,11-15990,763.5,Longdale Nursery School,,,,,,,,,,,
Nottinghamshire County Council,1111/1001,Children and Young People,CYP,Third Party Payments,EGA,41991,11-15991,1068.9,Cherubs Ryton Park,,,,,,,,,,,
Nottinghamshire County Council,1111/1001,Children and Young People,CYP,Third Party Payments,EGA,41991,11-15992,610.8,Scotts Wood Private Day Nursery,,,,,,,,,,,
Nottinghamshire County Council,1111/1001,Children and Young People,CYP,Third Party Payments,EGA,18/12/2014,11-15993,1068.9,Treetops Nurseries Ltd,,,,,,,,,,,
Nottinghamshire County Council,1111/1001,Children and Young People,CYP,Third Party Payments,EGA,18/12/2014,11-15994,2137.8,Cherubs Childrens Centre Pleasley,,,,,,,,,,,
Nottinghamshire County Council,1111/1001,Children and Young People,CYP,Third Party Payments,EGA,18/12/2014,11-15995,534.45,Cherubs Day Nursery,,,,,,,,,,,
Nottinghamshire County Council,1111/1001,Children and Young People,CYP,Third Party Payments,EGA,22/12/2014,11-15950,1068.9,Lorraine Daniels Childminding Servi,,,,,,,,,,,
Nottinghamshire County Council,1111/1001,Children and Young People,CYP,Third Party Payments,EGA,22/12/2014,11-16225,9334.33,Abacus Pre-School,,,,,,,,,,,
Nottinghamshire County Council,1111/1001,Children and Young People,CYP,Third Party Payments,EGA,22/12/2014,11-16226,12802.19,All Aboard Day Nursery,,,,,,,,,,,
Nottinghamshire County Council,1111/1001,Children and Young People,CYP,Third Party Payments,EGA,22/12/2014,11-16227,641.34,Jelly Tots,,,,,,,,,,,
Nottinghamshire County Council,1111/1001,Children and Young People,CYP,Third Party Payments,EGA,22/12/2014,11-16228,6531.59,Allsorts Playgroup,,,,,,,,,,,
Nottinghamshire County Council,1111/1001,Children and Young People,CYP,Third Party Payments,EGA,22/12/2014,11-16229,18882.36,Alphabet House Day Nursery WB,,,,,,,,,,,
Nottinghamshire County Council,1111/1001,Children and Young People,CYP,Third Party Payments,EGA,22/12/2014,11-16230,24859.76,Alphabet House Nursery,,,,,,,,,,,
Nottinghamshire County Council,1111/1001,Children and Young People,CYP,Third Party Payments,EGA,22/12/2014,11-16231,25409.92,Alphabet House Day Nursery Worksop,,,,,,,,,,,
Nottinghamshire County Council,1111/1001,Children and Young People,CYP,Third Party Payments,EGA,22/12/2014,11-16232,16745.4,Appleton Day Nursery,,,,,,,,,,,
Nottinghamshire County Council,1111/1001,Children and Young People,CYP,Third Party Payments,EGA,22/12/2014,11-16233,15636.26,Attenborough Day Nursery & Pre-Sch,,,,,,,,,,,
Nottinghamshire County Council,1111/1001,Children and Young People,CYP,Third Party Payments,EGA,22/12/2014,11-16234,14162.09,Awsworth Schoolhouse Day Nursery,,,,,,,,,,,
Nottinghamshire County Council,1111/1001,Children and Young People,CYP,Third Party Payments,EGA,22/12/2014,11-16241,19737.9,Bright Stars Childcare,,,,,,,,,,,
Nottinghamshire County Council,1111/1001,Children and Young People,CYP,Third Party Payments,EGA,23/12/2014,11-16235,11733.12,Beacon Hill Day Nursery,,,,,,,,,,,
Nottinghamshire County Council,1111/1001,Children and Young People,CYP,Third Party Payments,EGA,23/12/2014,11-16236,7006.86,Beeston Nursery,,,,,,,,,,,
Nottinghamshire County Council,1111/1001,Children and Young People,CYP,Third Party Payments,EGA,23/12/2014,11-16237,1710.07,Benner & Bolton Childminders,,,,,,,,,,,
Nottinghamshire County Council,1111/1001,Children and Young People,CYP,Third Party Payments,EGA,23/12/2014,11-16238,14963.26,Bingham Day Nursery & Pre School,,,,,,,,,,,
Nottinghamshire County Council,1111/1001,Children and Young People,CYP,Third Party Payments,EGA,23/12/2014,11-16239,26126.48,Bizzy Kidz,,,,,,,,,,,
Nottinghamshire County Council,1111/1001,Children and Young People,CYP,Third Party Payments,EGA,23/12/2014,11-16240,16578.45,Bright Sparks Day Nursery,,,,,,,,,,,
Nottinghamshire County Council,1111/1001,Children and Young People,CYP,Third Party Payments,EGA,23/12/2014,11-16243,23213.27,Brookhill House Day Nursery,,,,,,,,,,,
Nottinghamshire County Council,1111/1001,Children and Young People,CYP,Third Party Payments,EGA,23/12/2014,11-16244,16452.03,Brooklyn Day Nursery,,,,,,,,,,,
Nottinghamshire County Council,1111/1001,Children and Young People,CYP,Third Party Payments,EGA,23/12/2014,11-16245,2660.11,Burnside Pre-School Nursery,,,,,,,,,,,
Nottinghamshire County Council,1111/1001,Children and Young People,CYP,Third Party Payments,EGA,23/12/2014,11-16246,16404.28,Busy Bees Nursery,,,,,,,,,,,
Nottinghamshire County Council,1111/1001,Children and Young People,CYP,Third Party Payments,EGA,23/12/2014,11-16247,4401.98,Busy Bees Pre-School,,,,,,,,,,,
Nottinghamshire County Council,1111/1001,Children and Young People,CYP,Third Party Payments,EGA,23/12/2014,11-16248,19198.41,Buttercross Pre School,,,,,,,,,,,
Nottinghamshire County Council,1111/1001,Children and Young People,CYP,Third Party Payments,EGA,23/12/2014,11-16249,15913.8,Butterflies Nursery (West Notts Col,,,,,,,,,,,
Nottinghamshire County Council,1111/1001,Children and Young People,CYP,Third Party Payments,EGA,23/12/2014,11-16250,8004.28,Carlton Hill Playgroup,,,,,,,,,,,
Nottinghamshire County Council,1111/1001,Children and Young People,CYP,Third Party Payments,EGA,23/12/2014,11-16251,8237.38,Carousel Under 5'S Playgroup,,,,,,,,,,,
Nottinghamshire County Council,1111/1001,Children and Young People,CYP,Third Party Payments,EGA,23/12/2014,11-16252,8646.12,Heathlands Out Of School Club,,,,,,,,,,,
Nottinghamshire County Council,1111/1001,Children and Young People,CYP,Third Party Payments,EGA,23/12/2014,11-16253,7600.32,Cedar House Day Nursery,,,,,,,,,,,
Nottinghamshire County Council,1111/1001,Children and Young People,CYP,Third Party Payments,EGA,23/12/2014,11-16254,35581.14,Cherubs Childcare Centre (Mansfield,,,,,,,,,,,
Nottinghamshire County Council,1111/1001,Children and Young People,CYP,Third Party Payments,EGA,23/12/2014,11-16255,28121.94,Cherubs Childrens Centre Wynndale,,,,,,,,,,,
Nottinghamshire County Council,1111/1001,Children and Young People,CYP,Third Party Payments,EGA,23/12/2014,11-16256,21840.21,Cherubs Ryton Park,,,,,,,,,,,
Nottinghamshire County Council,1111/1001,Children and Young People,CYP,Third Party Payments,EGA,23/12/2014,11-16257,37266.18,Cherubs Day Nursery,,,,,,,,,,,
Nottinghamshire County Council,1111/1001,Children and Young People,CYP,Third Party Payments,EGA,23/12/2014,11-16258,2375.1,Cherubs Day Nursery Newark,,,,,,,,,,,
Nottinghamshire County Council,1111/1001,Children and Young People,CYP,Third Party Payments,EGA,23/12/2014,11-16259,9833.04,Childrens Corner Day Nursery,,,,,,,,,,,
Nottinghamshire County Council,1111/1001,Children and Young People,CYP,Third Party Payments,EGA,23/12/2014,11-16260,10062.57,Christchurch Hall Pre-School Playgr,,,,,,,,,,,
Nottinghamshire County Council,1111/1001,Children and Young People,CYP,Third Party Payments,EGA,23/12/2014,11-16261,23357.21,Church House Day Nursery,,,,,,,,,,,
Nottinghamshire County Council,1111/1001,Children and Young People,CYP,Third Party Payments,EGA,23/12/2014,11-16262,14987.7,Claremont Early Years Ltd,,,,,,,,,,,
Nottinghamshire County Council,1111/1001,Children and Young People,CYP,Third Party Payments,EGA,23/12/2014,11-16263,9880.42,Collingham & District Pre-School,,,,,,,,,,,
Nottinghamshire County Council,1111/1001,Children and Young People,CYP,Third Party Payments,EGA,23/12/2014,11-16264,950.04,Colston Bassett Preparatory School,,,,,,,,,,,
Nottinghamshire County Council,1111/1001,Children and Young People,CYP,Third Party Payments,EGA,23/12/2014,11-16265,7505.32,Colwick Pre School Playgroup,,,,,,,,,,,
Nottinghamshire County Council,1111/1001,Children and Young People,CYP,Third Party Payments,EGA,23/12/2014,11-16266,5486.54,Costock Pre School,,,,,,,,,,,
Nottinghamshire County Council,1111/1001,Children and Young People,CYP,Third Party Payments,EGA,23/12/2014,11-16267,1116.36,Mini-me Childcare,,,,,,,,,,,
Nottinghamshire County Council,1111/1001,Children and Young People,CYP,Third Party Payments,EGA,23/12/2014,11-16269,10693.7,Dagfa House School,,,,,,,,,,,
Nottinghamshire County Council,1111/1001,Children and Young People,CYP,Third Party Payments,EGA,23/12/2014,11-16270,3206.7,Redacted,,,,,,,,,,,
Nottinghamshire County Council,1111/1001,Children and Young People,CYP,Third Party Payments,EGA,23/12/2014,11-16271,641.34,Lucy Doherty (Childminder),,,,,,,,,,,
Nottinghamshire County Council,1111/1001,Children and Young People,CYP,Third Party Payments,EGA,23/12/2014,11-16275,5700.24,Chetwynd Barracks Pre-School,,,,,,,,,,,
Nottinghamshire County Council,1111/1001,Children and Young People,CYP,Third Party Payments,EGA,23/12/2014,11-16276,18771.4,Children 1st @ Breedon House,,,,,,,,,,,
Nottinghamshire County Council,1111/1001,Children and Young People,CYP,Third Party Payments,EGA,23/12/2014,11-16277,13736.69,Children 1st @ Newark Centre,,,,,,,,,,,
Nottinghamshire County Council,1111/1001,Children and Young People,CYP,Third Party Payments,EGA,23/12/2014,11-16278,8977.88,Breedon House Nurseries Ltd,,,,,,,,,,,
Nottinghamshire County Council,1111/1001,Children and Young People,CYP,Third Party Payments,EGA,23/12/2014,11-16279,16815.96,Daisies Day Nursery,,,,,,,,,,,
Nottinghamshire County Council,1111/1001,Children and Young People,CYP,Third Party Payments,EGA,23/12/2014,11-16280,9191.7,Duncroft Day Nursery,,,,,,,,,,,
Nottinghamshire County Council,1111/1001,Children and Young People,CYP,Third Party Payments,EGA,23/12/2014,11-16281,27812.48,East Leake Day Nursery & Pre-School,,,,,,,,,,,
Nottinghamshire County Council,1111/1001,Children and Young People,CYP,Third Party Payments,EGA,23/12/2014,11-16282,8574.3,East Leake Pre-School Playgroup,,,,,,,,,,,
Nottinghamshire County Council,1111/1001,Children and Young People,CYP,Third Party Payments,EGA,23/12/2014,11-16283,2227.93,Edwinstowe Pre School Playgroup,,,,,,,,,,,
Nottinghamshire County Council,1111/1001,Children and Young People,CYP,Third Party Payments,EGA,23/12/2014,11-16284,13015.8,Farndon St Peters Early Years,,,,,,,,,,,
Nottinghamshire County Council,1111/1001,Children and Young People,CYP,Third Party Payments,EGA,23/12/2014,11-16285,950.04,Redacted,,,,,,,,,,,
Nottinghamshire County Council,1111/1001,Children and Young People,CYP,Third Party Payments,EGA,23/12/2014,11-16286,950.04,Little Seedlings,,,,,,,,,,,
Nottinghamshire County Council,1111/1001,Children and Young People,CYP,Third Party Payments,EGA,23/12/2014,11-16287,14155.6,Good Shepherd Pre-School,,,,,,,,,,,
Nottinghamshire County Council,1111/1001,Children and Young People,CYP,Third Party Payments,EGA,23/12/2014,11-16288,9905.11,Gotham Pre-School Playgroup,,,,,,,,,,,
Nottinghamshire County Council,1111/1001,Children and Young People,CYP,Third Party Payments,EGA,23/12/2014,11-16289,21162.71,Granby House Nursery,,,,,,,,,,,
Nottinghamshire County Council,1111/1001,Children and Young People,CYP,Third Party Payments,EGA,23/12/2014,11-16290,1116.36,Redacted,,,,,,,,,,,
Nottinghamshire County Council,1111/1001,Children and Young People,CYP,Third Party Payments,EGA,23/12/2014,11-16291,1235.05,Redacted,,,,,,,,,,,
Nottinghamshire County Council,1111/1001,Children and Young People,CYP,Third Party Payments,EGA,23/12/2014,11-16292,950.04,Rachel & Philip's Home From Home Ch,,,,,,,,,,,
Nottinghamshire County Council,1111/1001,Children and Young People,CYP,Third Party Payments,EGA,23/12/2014,11-16293,10268.58,Haywood Road Pre-School Playgroup,,,,,,,,,,,
Nottinghamshire County Council,1111/1001,Children and Young People,CYP,Third Party Payments,EGA,23/12/2014,11-16294,11733.12,Hazel Hurst School,,,,,,,,,,,
Nottinghamshire County Council,1111/1001,Children and Young People,CYP,Third Party Payments,EGA,23/12/2014,11-16295,5619.6,Hermitage Pre-School,,,,,,,,,,,
Nottinghamshire County Council,1111/1001,Children and Young People,CYP,Third Party Payments,EGA,23/12/2014,11-16296,6096.09,Hickling Pre-School,,,,,,,,,,,
Nottinghamshire County Council,1111/1001,Children and Young People,CYP,Third Party Payments,EGA,23/12/2014,11-16297,11566.8,Hickory House Day Nursery,,,,,,,,,,,
Nottinghamshire County Council,1111/1001,Children and Young People,CYP,Third Party Payments,EGA,23/12/2014,11-16298,14409.19,Highfields School & Nursery,,,,,,,,,,,
Nottinghamshire County Council,1111/1001,Children and Young People,CYP,Third Party Payments,EGA,23/12/2014,11-16299,12588.66,SPBC Day Care Ltd,,,,,,,,,,,
Nottinghamshire County Council,1111/1001,Children and Young People,CYP,Third Party Payments,EGA,23/12/2014,11-16300,9097.2,Kidzgrove,,,,,,,,,,,
Nottinghamshire County Council,1111/1001,Children and Young People,CYP,Third Party Payments,EGA,23/12/2014,11-16301,20820.91,Killisick Pre-School,,,,,,,,,,,
Nottinghamshire County Council,1111/1001,Children and Young People,CYP,Third Party Payments,EGA,23/12/2014,11-16302,8506.39,Kimberley Pre-School Playgroup,,,,,,,,,,,
Nottinghamshire County Council,1111/1001,Children and Young People,CYP,Third Party Payments,EGA,23/12/2014,11-16303,8142.37,Kirkby Cross Playgroup,,,,,,,,,,,
Nottinghamshire County Council,1111/1001,Children and Young People,CYP,Third Party Payments,EGA,23/12/2014,11-16304,11305.48,Lady Bay Pre School Playgroup,,,,,,,,,,,
Nottinghamshire County Council,1111/1001,Children and Young People,CYP,Third Party Payments,EGA,23/12/2014,11-16305,12057.78,Lambley Day Nursery Ltd,,,,,,,,,,,
Nottinghamshire County Council,1111/1001,Children and Young People,CYP,Third Party Payments,EGA,23/12/2014,11-16306,35365.68,Leen Mills Pre School Playgroup,,,,,,,,,,,
Nottinghamshire County Council,1111/1001,Children and Young People,CYP,Third Party Payments,EGA,23/12/2014,11-16307,13348.23,North Leverton Pre-School Playgroup,,,,,,,,,,,
Nottinghamshire County Council,1111/1001,Children and Young People,CYP,Third Party Payments,EGA,23/12/2014,11-16308,7030.8,Lilliput Day Nursery (The Canch),,,,,,,,,,,
Nottinghamshire County Council,1111/1001,Children and Young People,CYP,Third Party Payments,EGA,23/12/2014,11-16309,14535.78,Little Acorns Shireoaks,,,,,,,,,,,
Nottinghamshire County Council,1111/1001,Children and Young People,CYP,Third Party Payments,EGA,23/12/2014,11-16310,16801.6,Little Acorns Pre-School,,,,,,,,,,,
Nottinghamshire County Council,1111/1001,Children and Young People,CYP,Third Party Payments,EGA,23/12/2014,11-16311,34012.94,Little Bears Day Nursery,,,,,,,,,,,
Nottinghamshire County Council,1111/1001,Children and Young People,CYP,Third Party Payments,EGA,23/12/2014,11-16312,9896.25,Little Friends Day Nursery,,,,,,,,,,,
Nottinghamshire County Council,1111/1001,Children and Young People,CYP,Third Party Payments,EGA,23/12/2014,11-16313,13668.86,Lowater Street Playgroup,,,,,,,,,,,
Nottinghamshire County Council,1111/1001,Children and Young People,CYP,Third Party Payments,EGA,23/12/2014,11-16314,15500.02,Lowdham & Epperstone Pre-School,,,,,,,,,,,
Nottinghamshire County Council,1111/1001,Children and Young People,CYP,Third Party Payments,EGA,23/12/2014,11-16315,8502.98,Misson Pre-School,,,,,,,,,,,
Nottinghamshire County Council,1111/1001,Children and Young People,CYP,Third Party Payments,EGA,23/12/2014,11-16316,641.34,Redacted,,,,,,,,,,,
Nottinghamshire County Council,1111/1001,Children and Young People,CYP,Third Party Payments,EGA,23/12/2014,11-16317,1924.02,Tinas Childminding,,,,,,,,,,,
Nottinghamshire County Council,1111/1001,Children and Young People,CYP,Third Party Payments,EGA,23/12/2014,11-16318,641.34,Redacted,,,,,,,,,,,
Nottinghamshire County Council,1111/1001,Children and Young People,CYP,Third Party Payments,EGA,23/12/2014,11-16319,641.34,Redacted,,,,,,,,,,,
Nottinghamshire County Council,1111/1001,Children and Young People,CYP,Third Party Payments,EGA,23/12/2014,11-16320,8669.43,Noahs Ark Playgroup,,,,,,,,,,,
Nottinghamshire County Council,1111/1001,Children and Young People,CYP,Third Party Payments,EGA,23/12/2014,11-16322,32705.82,The Orchard Day Nursery,,,,,,,,,,,
Nottinghamshire County Council,1111/1001,Children and Young People,CYP,Third Party Payments,EGA,23/12/2014,11-16323,8265.35,Orchard School Nursery,,,,,,,,,,,
Nottinghamshire County Council,1111/1001,Children and Young People,CYP,Third Party Payments,EGA,23/12/2014,11-16324,24654.17,Papermoon Day Nursery,,,,,,,,,,,
Nottinghamshire County Council,1111/1001,Children and Young People,CYP,Third Party Payments,EGA,23/12/2014,11-16325,45350.59,Papermoon Day Nursery,,,,,,,,,,,
Nottinghamshire County Council,1111/1001,Children and Young People,CYP,Third Party Payments,EGA,23/12/2014,11-16326,29483.16,Papermoon Day Nursery,,,,,,,,,,,
Nottinghamshire County Council,1111/1001,Children and Young People,CYP,Third Party Payments,EGA,23/12/2014,11-16327,14540.4,Papplewick Pre-School Playgroup,,,,,,,,,,,
Nottinghamshire County Council,1111/1001,Children and Young People,CYP,Third Party Payments,EGA,23/12/2014,11-16328,19808.46,Little Millers Day Nursery,,,,,,,,,,,
Nottinghamshire County Council,1111/1001,Children and Young People,CYP,Third Party Payments,EGA,23/12/2014,11-16329,21344.61,Little Nippers Pre-School,,,,,,,,,,,
Nottinghamshire County Council,1111/1001,Children and Young People,CYP,Third Party Payments,EGA,23/12/2014,11-16330,23521.47,Little Oaks Nursery,,,,,,,,,,,
Nottinghamshire County Council,1111/1001,Children and Young People,CYP,Third Party Payments,EGA,23/12/2014,11-16331,4259.47,St Johns College Nottingham,,,,,,,,,,,
Nottinghamshire County Council,1111/1001,Children and Young People,CYP,Third Party Payments,EGA,23/12/2014,11-16332,2565.36,Keyworth Primary School,,,,,,,,,,,
Nottinghamshire County Council,1111/1001,Children and Young People,CYP,Third Party Payments,EGA,23/12/2014,11-16335,11170.95,Longdale Nursery School,,,,,,,,,,,
Nottinghamshire County Council,1111/1001,Children and Young People,CYP,Third Party Payments,EGA,23/12/2014,11-16336,9350.04,Honey Pot Day Private Day Nursery L,,,,,,,,,,,
Nottinghamshire County Council,1111/1001,Children and Young People,CYP,Third Party Payments,EGA,23/12/2014,11-16337,8233.68,Horsendale Playgroup,,,,,,,,,,,
Nottinghamshire County Council,1111/1001,Children and Young People,CYP,Third Party Payments,EGA,23/12/2014,11-16338,17338.86,Hucknall Day Nursery,,,,,,,,,,,
Nottinghamshire County Council,1111/1001,Children and Young People,CYP,Third Party Payments,EGA,23/12/2014,11-16339,17794.73,Hucknall Pre-School Playgroup,,,,,,,,,,,
Nottinghamshire County Council,1111/1001,Children and Young People,CYP,Third Party Payments,EGA,23/12/2014,11-16340,1116.36,Redacted,,,,,,,,,,,
Nottinghamshire County Council,1111/1001,Children and Young People,CYP,Third Party Payments,EGA,23/12/2014,11-16341,843.15,Redacted,,,,,,,,,,,
Nottinghamshire County Council,1111/1001,Children and Young People,CYP,Third Party Payments,EGA,23/12/2014,11-16342,4940.46,Jelly Totz Day Nursery,,,,,,,,,,,
Nottinghamshire County Council,1111/1001,Children and Young People,CYP,Third Party Payments,EGA,23/12/2014,11-16343,6871.96,Pea Pod Day Nursery Ltd,,,,,,,,,,,
Nottinghamshire County Council,1111/1001,Children and Young People,CYP,Third Party Payments,EGA,23/12/2014,11-16344,641.34,"Sue Smith, Happy Kids Childminding",,,,,,,,,,,
Nottinghamshire County Council,1111/1001,Children and Young People,CYP,Third Party Payments,EGA,23/12/2014,11-16345,5541.9,Southwell Pre-School,,,,,,,,,,,
Nottinghamshire County Council,1111/1001,Children and Young People,CYP,Third Party Payments,EGA,23/12/2014,11-16346,14464.8,Treetops Nursery,,,,,,,,,,,
Nottinghamshire County Council,1111/1001,Children and Young People,CYP,Third Party Payments,EGA,23/12/2014,11-16347,6223.14,Phoenix Farm Pre School,,,,,,,,,,,
Nottinghamshire County Council,1111/1001,Children and Young People,CYP,Third Party Payments,EGA,23/12/2014,11-16348,13395.56,Plumtree School,,,,,,,,,,,
Nottinghamshire County Council,1111/1001,Children and Young People,CYP,Third Party Payments,EGA,23/12/2014,11-16349,3182.76,Happy Times,,,,,,,,,,,
Nottinghamshire County Council,1111/1001,Children and Young People,CYP,Third Party Payments,EGA,23/12/2014,11-16350,8655.19,Prebend Pre-School Playgroup,,,,,,,,,,,
Nottinghamshire County Council,1111/1001,Children and Young People,CYP,Third Party Payments,EGA,23/12/2014,11-16351,20346.69,Puddleducks Pre-School,,,,,,,,,,,
Nottinghamshire County Council,1111/1001,Children and Young People,CYP,Third Party Payments,EGA,23/12/2014,11-16352,13776.21,Rainbow Day Nursery,,,,,,,,,,,
Nottinghamshire County Council,1111/1001,Children and Young People,CYP,Third Party Payments,EGA,23/12/2014,11-16353,20284.74,Rainbows Day Nursery,,,,,,,,,,,
Nottinghamshire County Council,1111/1001,Children and Young People,CYP,Third Party Payments,EGA,23/12/2014,11-16354,11574.78,Ranskill Nursery,,,,,,,,,,,
Nottinghamshire County Council,1111/1001,Children and Young People,CYP,Third Party Payments,EGA,23/12/2014,11-16355,8898.96,Ravenshead Pre-School Playgroup,,,,,,,,,,,
Nottinghamshire County Council,1111/1001,Children and Young People,CYP,Third Party Payments,EGA,23/12/2014,11-16356,24535.98,Rocking Horse Nursery Butlers Hill,,,,,,,,,,,
Nottinghamshire County Council,1111/1001,Children and Young People,CYP,Third Party Payments,EGA,23/12/2014,11-16357,15533.28,Ruddington Nursery & Pre-School,,,,,,,,,,,
Nottinghamshire County Council,1111/1001,Children and Young People,CYP,Third Party Payments,EGA,23/12/2014,11-16358,8265.35,Rushcliffe Pre-School Cic,,,,,,,,,,,
Nottinghamshire County Council,1111/1001,Children and Young People,CYP,Third Party Payments,EGA,23/12/2014,11-16359,24535.98,Safe Haven Day Nursery,,,,,,,,,,,
Nottinghamshire County Council,1111/1001,Children and Young People,CYP,Third Party Payments,EGA,23/12/2014,11-16360,1947.58,Catherine Sansone,,,,,,,,,,,
Nottinghamshire County Council,1111/1001,Children and Young People,CYP,Third Party Payments,EGA,23/12/2014,11-16361,8550.36,Saville House School,,,,,,,,,,,
Nottinghamshire County Council,1111/1001,Children and Young People,CYP,Third Party Payments,EGA,23/12/2014,11-16362,17029.91,Serendipity's Day Nursery,,,,,,,,,,,
Nottinghamshire County Council,1111/1001,Children and Young People,CYP,Third Party Payments,EGA,23/12/2014,11-16363,13419.76,Serendipity's Day Nursery,,,,,,,,,,,
Nottinghamshire County Council,1111/1001,Children and Young People,CYP,Third Party Payments,EGA,23/12/2014,11-16364,15897.84,Serendipity's Day Nursery,,,,,,,,,,,
Nottinghamshire County Council,1111/1001,Children and Young People,CYP,Third Party Payments,EGA,23/12/2014,11-16365,29230.32,Serendipity's Day Nursery,,,,,,,,,,,
Nottinghamshire County Council,1111/1001,Children and Young People,CYP,Third Party Payments,EGA,23/12/2014,11-16366,13705.02,Shaping Futures Day Nursery,,,,,,,,,,,
Nottinghamshire County Council,1111/1001,Children and Young People,CYP,Third Party Payments,EGA,23/12/2014,11-16367,1116.36,Redacted,,,,,,,,,,,
Nottinghamshire County Council,1111/1001,Children and Young People,CYP,Third Party Payments,EGA,23/12/2014,11-16368,3610.15,Speckled Frogs Pre-School,,,,,,,,,,,
Nottinghamshire County Council,1111/1001,Children and Young People,CYP,Third Party Payments,EGA,23/12/2014,11-16369,6626.59,St Giles Pre-school,,,,,,,,,,,
Nottinghamshire County Council,1111/1001,Children and Young People,CYP,Third Party Payments,EGA,23/12/2014,11-16370,11471.8,St Johns Playgroup,,,,,,,,,,,
Nottinghamshire County Council,1111/1001,Children and Young People,CYP,Third Party Payments,EGA,23/12/2014,11-16371,11899.44,St Mary's Pre-School,,,,,,,,,,,
Nottinghamshire County Council,1111/1001,Children and Young People,CYP,Third Party Payments,EGA,23/12/2014,11-16372,13783.56,Staunton Montessori Nursery School,,,,,,,,,,,
Nottinghamshire County Council,1111/1001,Children and Young People,CYP,Third Party Payments,EGA,23/12/2014,11-16373,33775.56,The Learning Tree Nursery,,,,,,,,,,,
Nottinghamshire County Council,1111/1001,Children and Young People,CYP,Third Party Payments,EGA,23/12/2014,11-16374,24512.04,The Learning Tree Day Nursery 2,,,,,,,,,,,
Nottinghamshire County Council,1111/1001,Children and Young People,CYP,Third Party Payments,EGA,23/12/2014,11-16375,16104.06,The Orange Tree Day Nursery,,,,,,,,,,,
Nottinghamshire County Council,1111/1001,Children and Young People,CYP,Third Party Payments,EGA,23/12/2014,11-16376,21225.96,The Secret Garden Private Day Nurse,,,,,,,,,,,
Nottinghamshire County Council,1111/1001,Children and Young People,CYP,Third Party Payments,EGA,23/12/2014,11-16377,7457.94,The West Bridgford Day Nursery,,,,,,,,,,,
Nottinghamshire County Council,1111/1001,Children and Young People,CYP,Third Party Payments,EGA,23/12/2014,11-16378,2541.42,Redacted,,,,,,,,,,,
Nottinghamshire County Council,1111/1001,Children and Young People,CYP,Third Party Payments,EGA,23/12/2014,11-16379,641.34,Redacted,,,,,,,,,,,
Nottinghamshire County Council,1111/1001,Children and Young People,CYP,Third Party Payments,EGA,23/12/2014,11-16380,4441.5,Tiny Talkers Day Nursery,,,,,,,,,,,
Nottinghamshire County Council,1111/1001,Children and Young People,CYP,Third Party Payments,EGA,23/12/2014,11-16381,13934.55,Tiny Teddies Day Nursery,,,,,,,,,,,
Nottinghamshire County Council,1111/1001,Children and Young People,CYP,Third Party Payments,EGA,23/12/2014,11-16382,8105.27,Tiny Tots Playgroup,,,,,,,,,,,
Nottinghamshire County Council,1111/1001,Children and Young People,CYP,Third Party Payments,EGA,23/12/2014,11-16383,29049.3,Tiny World Mansfield,,,,,,,,,,,
Nottinghamshire County Council,1111/1001,Children and Young People,CYP,Third Party Payments,EGA,23/12/2014,11-16384,8431.92,Toddlers University (Bee),,,,,,,,,,,
Nottinghamshire County Council,1111/1001,Children and Young People,CYP,Third Party Payments,EGA,23/12/2014,11-16385,13300.56,Tollerton Playgroup,,,,,,,,,,,
Nottinghamshire County Council,1111/1001,Children and Young People,CYP,Third Party Payments,EGA,23/12/2014,11-16386,3277.76,Toton Tots Pre-School,,,,,,,,,,,
Nottinghamshire County Council,1111/1001,Children and Young People,CYP,Third Party Payments,EGA,23/12/2014,11-16387,5985.25,Trowell Pre School,,,,,,,,,,,
Nottinghamshire County Council,1111/1001,Children and Young People,CYP,Third Party Payments,EGA,23/12/2014,11-16388,1924.02,Redacted,,,,,,,,,,,
Nottinghamshire County Council,1111/1001,Children and Young People,CYP,Third Party Payments,EGA,23/12/2014,11-16389,9453.4,Valmarys Childrens Centre 2,,,,,,,,,,,
Nottinghamshire County Council,1111/1001,Children and Young People,CYP,Third Party Payments,EGA,23/12/2014,11-16390,1116.36,Sharons Childminding,,,,,,,,,,,
Nottinghamshire County Council,1111/1001,Children and Young People,CYP,Third Party Payments,EGA,23/12/2014,11-16391,11653.95,Walesby School Playgroup,,,,,,,,,,,
Nottinghamshire County Council,1111/1001,Children and Young People,CYP,Third Party Payments,EGA,23/12/2014,11-16392,11115.47,Watnall Pre-School Playgroup,,,,,,,,,,,
Nottinghamshire County Council,1111/1001,Children and Young People,CYP,Third Party Payments,EGA,23/12/2014,11-16393,10512.43,Wellin Lane Playgroup,,,,,,,,,,,
Nottinghamshire County Council,1111/1001,Children and Young People,CYP,Third Party Payments,EGA,23/12/2014,11-16394,10292.1,Wellow House School,,,,,,,,,,,
Nottinghamshire County Council,1111/1001,Children and Young People,CYP,Third Party Payments,EGA,23/12/2014,11-16395,744.2,Redacted,,,,,,,,,,,
Nottinghamshire County Council,1111/1001,Children and Young People,CYP,Third Party Payments,EGA,23/12/2014,11-16396,21922.74,Westbourne House Nursery School,,,,,,,,,,,
Nottinghamshire County Council,1111/1001,Children and Young People,CYP,Third Party Payments,EGA,23/12/2014,11-16397,28501.2,Westdale Pre-School,,,,,,,,,,,
Nottinghamshire County Council,1111/1001,Children and Young People,CYP,Third Party Payments,EGA,23/12/2014,11-16398,21732.23,Whitehouse Day Nursery,,,,,,,,,,,
Nottinghamshire County Council,1111/1001,Children and Young People,CYP,Third Party Payments,EGA,23/12/2014,11-16399,1591.38,Sues Childminding Services,,,,,,,,,,,
Nottinghamshire County Council,1111/1001,Children and Young People,CYP,Third Party Payments,EGA,23/12/2014,11-16400,7672.14,Mulberry Bush Day Nursery,,,,,,,,,,,
Nottinghamshire County Council,1111/1001,Children and Young People,CYP,Third Party Payments,EGA,23/12/2014,11-16401,6745.28,Willow Brook Pre-School,,,,,,,,,,,
Nottinghamshire County Council,1111/1001,Children and Young People,CYP,Third Party Payments,EGA,23/12/2014,11-16402,17870.58,Willow Pre-School Playgroup,,,,,,,,,,,
Nottinghamshire County Council,1111/1001,Children and Young People,CYP,Third Party Payments,EGA,23/12/2014,11-16403,641.34,Jammie Dodgers Childminding Group,,,,,,,,,,,
Nottinghamshire County Council,1111/1001,Children and Young People,CYP,Third Party Payments,EGA,23/12/2014,11-16404,2529.71,Windmill Kindergarten Playgroup,,,,,,,,,,,
Nottinghamshire County Council,1111/1001,Children and Young People,CYP,Third Party Payments,EGA,23/12/2014,11-16405,2161.4,Windmills Pre-School Playgroup,,,,,,,,,,,
Nottinghamshire County Council,1111/1001,Children and Young People,CYP,Third Party Payments,EGA,23/12/2014,11-16406,14290.5,Wishing Well Day Nursery,,,,,,,,,,,
Nottinghamshire County Council,1111/1001,Children and Young People,CYP,Third Party Payments,EGA,23/12/2014,11-16407,17267.29,Wollaton Village Day Nurseries,,,,,,,,,,,
Nottinghamshire County Council,1111/1001,Children and Young People,CYP,Third Party Payments,EGA,23/12/2014,11-16408,13237.22,Worksop College,,,,,,,,,,,
Nottinghamshire County Council,1111/1001,Children and Young People,CYP,Third Party Payments,EGA,23/12/2014,11-16409,641.34,Redacted,,,,,,,,,,,
Nottinghamshire County Council,1111/1001,Children and Young People,CYP,Third Party Payments,EGA,23/12/2014,11-16410,11781,Young Rascals Day Nursery,,,,,,,,,,,
Nottinghamshire County Council,1111/1001,Children and Young People,CYP,Third Party Payments,EGA,23/12/2014,11-16411,1924.02,Redacted,,,,,,,,,,,
Nottinghamshire County Council,1111/1001,Children and Young People,CYP,Third Party Payments,EGA,23/12/2014,11-16412,6541.67,Sir Edmund Hillary Primary School,,,,,,,,,,,
Nottinghamshire County Council,1111/1001,Children and Young People,CYP,Third Party Payments,EGA,23/12/2014,11-16413,950.04,Appletree House Childminding,,,,,,,,,,,
Nottinghamshire County Council,1111/1001,Children and Young People,CYP,Third Party Payments,EGA,23/12/2014,11-16414,13134.74,Ashfield Plaza Day Nursery,,,,,,,,,,,
Nottinghamshire County Council,1111/1001,Children and Young People,CYP,Third Party Payments,EGA,23/12/2014,11-16415,14821.38,Fun Farm Day Nursery,,,,,,,,,,,
Nottinghamshire County Council,1111/1001,Children and Young People,CYP,Third Party Payments,EGA,23/12/2014,11-16416,7054.74,Zoes Childcare Ltd,,,,,,,,,,,
Nottinghamshire County Council,1111/1001,Children and Young People,CYP,Third Party Payments,EGA,23/12/2014,11-16417,7339.5,Zoe's Childcare Ltd,,,,,,,,,,,
Nottinghamshire County Council,1111/1001,Children and Young People,CYP,Third Party Payments,EGA,23/12/2014,11-16418,27885.06,Wollaton Village Day Nurseries Ltd.,,,,,,,,,,,
Nottinghamshire County Council,1111/1001,Children and Young People,CYP,Third Party Payments,EGA,23/12/2014,11-16419,5952.49,West Street Pre-School,,,,,,,,,,,
Nottinghamshire County Council,1111/1001,Children and Young People,CYP,Third Party Payments,EGA,23/12/2014,11-16420,17100.72,West Bridgford Out Of School Care L,,,,,,,,,,,
Nottinghamshire County Council,1111/1001,Children and Young People,CYP,Third Party Payments,EGA,23/12/2014,11-16421,1757.7,Redacted,,,,,,,,,,,
Nottinghamshire County Council,1111/1001,Children and Young People,CYP,Third Party Payments,EGA,23/12/2014,11-16422,4873.26,Rainbow Day Nursery,,,,,,,,,,,
Nottinghamshire County Council,1111/1001,Children and Young People,CYP,Third Party Payments,EGA,23/12/2014,11-16423,40568.22,Papermoon Day Nursery Sutton In Ash,,,,,,,,,,,
Nottinghamshire County Council,1111/1001,Children and Young People,CYP,Third Party Payments,EGA,23/12/2014,11-16424,20893.53,Leos Childrens Nurseries Ltd,,,,,,,,,,,
Nottinghamshire County Council,1111/1001,Children and Young People,CYP,Third Party Payments,EGA,23/12/2014,11-16425,24348.87,Weaverthorpe Pre-School Playgroup,,,,,,,,,,,
Nottinghamshire County Council,1111/1001,Children and Young People,CYP,Third Party Payments,EGA,23/12/2014,11-16426,29998.08,Village Day Nursery,,,,,,,,,,,
Nottinghamshire County Council,1111/1001,Children and Young People,CYP,Third Party Payments,EGA,23/12/2014,11-16427,950.04,Redacted,,,,,,,,,,,
Nottinghamshire County Council,1111/1001,Children and Young People,CYP,Third Party Payments,EGA,23/12/2014,11-16428,16626.12,Sutton Centre Under 5'S Playgroup,,,,,,,,,,,
Nottinghamshire County Council,1111/1001,Children and Young People,CYP,Third Party Payments,EGA,23/12/2014,11-16429,13015.8,Stepping Stones II,,,,,,,,,,,
Nottinghamshire County Council,1111/1001,Children and Young People,CYP,Third Party Payments,EGA,23/12/2014,11-16430,22232.7,Stapleford Day Nursery,,,,,,,,,,,
Nottinghamshire County Council,1111/1001,Children and Young People,CYP,Third Party Payments,EGA,23/12/2014,11-16431,25842.6,Shaping Futures Day Nursery,,,,,,,,,,,
Nottinghamshire County Council,1111/1001,Children and Young People,CYP,Third Party Payments,EGA,23/12/2014,11-16432,7220.3,Salterford House School,,,,,,,,,,,
Nottinghamshire County Council,1111/1001,Children and Young People,CYP,Third Party Payments,EGA,23/12/2014,11-16433,641.34,Redacted,,,,,,,,,,,
Nottinghamshire County Council,1111/1001,Children and Young People,CYP,Third Party Payments,EGA,23/12/2014,11-16434,8256.11,Radcliffe On Trent Pre School Playg,,,,,,,,,,,
Nottinghamshire County Council,1111/1001,Children and Young People,CYP,Third Party Payments,EGA,23/12/2014,11-16435,2541.42,Redacted,,,,,,,,,,,
Nottinghamshire County Council,1111/1001,Children and Young People,CYP,Third Party Payments,EGA,23/12/2014,11-16436,10023.3,Pump Farm Day Nursery,,,,,,,,,,,
Nottinghamshire County Council,1111/1001,Children and Young People,CYP,Third Party Payments,EGA,23/12/2014,11-16437,9381.96,Arnold House Day Nursery,,,,,,,,,,,
Nottinghamshire County Council,1111/1001,Children and Young People,CYP,Third Party Payments,EGA,23/12/2014,11-16438,34732.32,Applegarth Day Nurseries Ltd,,,,,,,,,,,
Nottinghamshire County Council,1111/1001,Children and Young People,CYP,Third Party Payments,EGA,23/12/2014,11-16439,1274.7,Annekas Angels Childminding Service,,,,,,,,,,,
Nottinghamshire County Council,1111/1001,Children and Young People,CYP,Third Party Payments,EGA,23/12/2014,11-16440,16531.2,All Saints C Of E Primary School,,,,,,,,,,,
Nottinghamshire County Council,1111/1001,Children and Young People,CYP,Third Party Payments,EGA,23/12/2014,11-16441,15589.14,Alphabet House Day Nursery,,,,,,,,,,,
Nottinghamshire County Council,1111/1001,Children and Young People,CYP,Third Party Payments,EGA,23/12/2014,11-16442,14730.41,Attenborough Church Pre-School,,,,,,,,,,,
Nottinghamshire County Council,1111/1001,Children and Young People,CYP,Third Party Payments,EGA,23/12/2014,11-16443,8075.34,Bramley Pips Nursery Ltd,,,,,,,,,,,
Nottinghamshire County Council,1111/1001,Children and Young People,CYP,Third Party Payments,EGA,23/12/2014,11-16444,11448.61,Pretty Windows Ltd,,,,,,,,,,,
Nottinghamshire County Council,1111/1001,Children and Young People,CYP,Third Party Payments,EGA,23/12/2014,11-16445,26768.7,Carlton & Gedling Day Nursery,,,,,,,,,,,
Nottinghamshire County Council,1111/1001,Children and Young People,CYP,Third Party Payments,EGA,23/12/2014,11-16446,21181.61,Balderton Pre-School,,,,,,,,,,,
Nottinghamshire County Council,1111/1001,Children and Young People,CYP,Third Party Payments,EGA,23/12/2014,11-16447,9453.78,Cherubs Childcare Centre Ladybrook,,,,,,,,,,,
Nottinghamshire County Council,1111/1001,Children and Young People,CYP,Third Party Payments,EGA,23/12/2014,11-16448,14092.26,Daisies Day Nursery,,,,,,,,,,,
Nottinghamshire County Council,1111/1001,Children and Young People,CYP,Third Party Payments,EGA,23/12/2014,11-16449,14384.41,Early Learners Centre Day Nursery,,,,,,,,,,,
Nottinghamshire County Council,1111/1001,Children and Young People,CYP,Third Party Payments,EGA,23/12/2014,11-16450,17480.74,Edwalton Day Nursery,,,,,,,,,,,
Nottinghamshire County Council,1111/1001,Children and Young People,CYP,Third Party Payments,EGA,23/12/2014,11-16451,38714.76,Fernwood Day Nursery Ltd,,,,,,,,,,,
Nottinghamshire County Council,1111/1001,Children and Young People,CYP,Third Party Payments,EGA,23/12/2014,11-16452,21924.38,Hollies Day Nurseries Limited,,,,,,,,,,,
Nottinghamshire County Council,1111/1001,Children and Young People,CYP,Third Party Payments,EGA,23/12/2014,11-16453,23490.81,Homestead Day Nursery Ltd,,,,,,,,,,,
Nottinghamshire County Council,1111/1001,Children and Young People,CYP,Third Party Payments,EGA,23/12/2014,11-16454,13530.72,Quinton Day Nurseries T/A Honey Bee,,,,,,,,,,,
Nottinghamshire County Council,1111/1001,Children and Young People,CYP,Third Party Payments,EGA,23/12/2014,11-16455,641.34,Redacted,,,,,,,,,,,
Nottinghamshire County Council,1111/1001,Children and Young People,CYP,Third Party Payments,EGA,23/12/2014,11-16456,26649.5,Learning Ladder Childcare Ltd,,,,,,,,,,,
Nottinghamshire County Council,1111/1001,Children and Young People,CYP,Third Party Payments,EGA,23/12/2014,11-16457,21233.69,Leo's Childrens Nurseries Ltd,,,,,,,,,,,
Nottinghamshire County Council,1111/1001,Children and Young People,CYP,Third Party Payments,EGA,23/12/2014,11-16458,13863.99,Little Kites Playgroup,,,,,,,,,,,
Nottinghamshire County Council,1111/1001,Children and Young People,CYP,Third Party Payments,EGA,23/12/2014,11-16459,641.34,Redacted,,,,,,,,,,,
Nottinghamshire County Council,1111/1001,Children and Young People,CYP,Third Party Payments,EGA,23/12/2014,11-16460,19404.76,Millfield Nursery School,,,,,,,,,,,
Nottinghamshire County Council,1111/1001,Children and Young People,CYP,Third Party Payments,EGA,23/12/2014,11-16461,4805.81,Old Cooperative Day Nursery,,,,,,,,,,,
Nottinghamshire County Council,1111/1001,Children and Young People,CYP,Third Party Payments,EGA,23/12/2014,11-16462,2821.9,Ordsall Pre-School,,,,,,,,,,,
Nottinghamshire County Council,1111/1001,Children and Young People,CYP,Third Party Payments,EGA,23/12/2014,11-16463,13101.23,Pippins Pre-School,,,,,,,,,,,
Nottinghamshire County Council,1111/1001,Children and Young People,CYP,Third Party Payments,EGA,23/12/2014,11-16464,6032.88,Portland Place Pre-School,,,,,,,,,,,
Nottinghamshire County Council,1111/1001,Children and Young People,CYP,Third Party Payments,EGA,23/12/2014,11-16465,1068.9,Wishing Well Day Nursery,,,,,,,,,,,
Nottinghamshire County Council,1111/1001,Children and Young People,CYP,Third Party Payments,EGA,23/12/2014,11-16468,641.34,Redacted,,,,,,,,,,,
Nottinghamshire County Council,1111/1001,Children and Young People,CYP,Third Party Payments,EGA,23/12/2014,11-16503,3404.31,Arnold St Mary's Pre-School,,,,,,,,,,,
Nottinghamshire County Council,1111/1001,Children and Young People,CYP,Third Party Payments,EGA,23/12/2014,11-16504,9817.08,Bircotes Pre-School,,,,,,,,,,,
Nottinghamshire County Council,1111/1001,Children and Young People,CYP,Third Party Payments,EGA,23/12/2014,11-16505,8550.36,Cherubs Childrens Centre Pleasley,,,,,,,,,,,
Nottinghamshire County Council,1111/1001,Children and Young People,CYP,Third Party Payments,EGA,23/12/2014,11-16506,26126.1,Woodthorpe Day Nursery Ltd,,,,,,,,,,,
Nottinghamshire County Council,1111/1001,Children and Young People,CYP,Third Party Payments,EGA,23/12/2014,11-16507,13163.22,Arnold View Pre-School,,,,,,,,,,,
Nottinghamshire County Council,1111/1001,Children and Young People,CYP,Third Party Payments,EGA,23/12/2014,11-16542,21518.53,Carnarvon Pre-School,,,,,,,,,,,
Nottinghamshire County Council,1111/1001,Children and Young People,CYP,Third Party Payments,EGA,30/12/2014,11-20516,7332.78,Wolds Childcare Ltd,,,,,,,,,,,
Nottinghamshire County Council,1111/1001,Children and Young People,CYP,Third Party Payments,EGA,30/12/2014,11-20517,7054.74,Woodthorpe Day Nursery Ltd,,,,,,,,,,,
Nottinghamshire County Council,1111/1001,Children and Young People,CYP,Third Party Payments,EGA,30/12/2014,11-20518,61921.44,The Rocking Horse Child Care Centre,,,,,,,,,,,
Nottinghamshire County Council,1111/1001,Children and Young People,CYP,Third Party Payments,EGA,30/12/2014,11-20519,15042.3,Nurseryworld & Friends Nursery & Pr,,,,,,,,,,,
Nottinghamshire County Council,1111/1001,Children and Young People,CYP,Third Party Payments,EGA,30/12/2014,11-20520,14440.86,Alphabet House Day Nursery,,,,,,,,,,,
Nottinghamshire County Council,1111/1001,Children and Young People,CYP,Third Party Payments,EGA,30/12/2014,11-20521,9833.88,Arnold St Mary's Pre-School,,,,,,,,,,,
Nottinghamshire County Council,1111/1001,Children and Young People,CYP,Third Party Payments,EGA,30/12/2014,11-20522,2458.47,Bircotes Pre-School,,,,,,,,,,,
Nottinghamshire County Council,1111/1001,Children and Young People,CYP,Third Party Payments,EGA,30/12/2014,11-20523,5890.25,Blyth Pre-School Playgroup,,,,,,,,,,,
Nottinghamshire County Council,1111/1001,Children and Young People,CYP,Third Party Payments,EGA,30/12/2014,11-20524,15471.54,Bramcote Pre-School Playgroup,,,,,,,,,,,
Nottinghamshire County Council,1111/1001,Children and Young People,CYP,Third Party Payments,EGA,30/12/2014,11-20525,18379.12,Bullpit Road Nursery,,,,,,,,,,,
Nottinghamshire County Council,1111/1001,Children and Young People,CYP,Third Party Payments,EGA,30/12/2014,11-20526,8337.42,Cherubs Childrens Centre Pleasley,,,,,,,,,,,
Nottinghamshire County Council,1111/1001,Children and Young People,CYP,Third Party Payments,EGA,30/12/2014,11-20527,10598.36,Early Years Playgroup,,,,,,,,,,,
Nottinghamshire County Council,1111/1001,Children and Young People,CYP,Third Party Payments,EGA,30/12/2014,11-20528,8531.96,Netherfield Pre School Ltd,,,,,,,,,,,
Nottinghamshire County Council,1111/1001,Children and Young People,CYP,Third Party Payments,EGA,30/12/2014,11-20617,641.34,Redacted,,,,,,,,,,,
Nottinghamshire County Council,1111/1001,Children and Young People,CYP,Third Party Payments,EGA,30/12/2014,11-20619,24963.37,Oceans Day Nursery,,,,,,,,,,,
Nottinghamshire County Council,1111/1001,Children and Young People,CYP,Third Party Payments,EGA,30/12/2014,11-20621,8225.91,Railway Children Playgroup,,,,,,,,,,,
Nottinghamshire County Council,1111/1001,Children and Young People,CYP,Third Party Payments,EGA,30/12/2014,11-20622,1116.36,Redacted,,,,,,,,,,,
Nottinghamshire County Council,1111/1001,Children and Young People,CYP,Third Party Payments,EHA,24/12/2014,11-16582,6974.42,Advanced Payment Solutions Ltd,,,,,,,,,,,
Nottinghamshire County Council,1111/1001,Children and Young People,CYP,Support Services,HAA,02/12/2014,11-13919,1530,All Wayz Travel,,,,,,,,,,,
Nottinghamshire County Council,1111/1001,Children and Young People,CYP,Support Services,HAA,02/12/2014,11-13920,1330,All Wayz Travel,,,,,,,,,,,
Nottinghamshire County Council,1111/1001,Children and Young People,CYP,Support Services,HAA,02/12/2014,11-13936,897.6,Fozcabs Newark Taxis,,,,,,,,,,,
Nottinghamshire County Council,1111/1001,Children and Young People,CYP,Support Services,HAA,02/12/2014,11-13937,1325,Fozcabs Newark Taxis,,,,,,,,,,,
Nottinghamshire County Council,1111/1001,Children and Young People,CYP,Support Services,HAA,02/12/2014,11-13949,780,Fozcabs Newark Taxis,,,,,,,,,,,
Nottinghamshire County Council,1111/1001,Children and Young People,CYP,Support Services,HAA,02/12/2014,11-13956,2370,Kettlewell Retford Ltd,,,,,,,,,,,
Nottinghamshire County Council,1111/1001,Children and Young People,CYP,Support Services,HAA,02/12/2014,11-13957,2327.5,Kettlewell Retford Ltd,,,,,,,,,,,
Nottinghamshire County Council,1111/1001,Children and Young People,CYP,Support Services,HAA,02/12/2014,11-13958,2190,Kettlewell Retford Ltd,,,,,,,,,,,
Nottinghamshire County Council,1111/1001,Children and Young People,CYP,Support Services,HAA,02/12/2014,11-13959,3030.5,Kettlewell Retford Ltd,,,,,,,,,,,
Nottinghamshire County Council,1111/1001,Children and Young People,CYP,Support Services,HAA,02/12/2014,11-13960,2441.5,Kettlewell Retford Ltd,,,,,,,,,,,
Nottinghamshire County Council,1111/1001,Children and Young People,CYP,Support Services,HAA,02/12/2014,11-13961,2441.5,Kettlewell Retford Ltd,,,,,,,,,,,
Nottinghamshire County Council,1111/1001,Children and Young People,CYP,Support Services,HAA,02/12/2014,11-13962,3000,Kettlewell Retford Ltd,,,,,,,,,,,
Nottinghamshire County Council,1111/1001,Children and Young People,CYP,Support Services,HAA,02/12/2014,11-14000,500,Alfa Taxis,,,,,,,,,,,
Nottinghamshire County Council,1111/1001,Children and Young People,CYP,Support Services,HAA,03/12/2014,11-14146,6594.95,Glenn Ryder Coaches,,,,,,,,,,,
Nottinghamshire County Council,1111/1001,Children and Young People,CYP,Support Services,HAA,03/12/2014,11-14229,6435,C W Moxon Ltd,,,,,,,,,,,
Nottinghamshire County Council,1111/1001,Children and Young People,CYP,Support Services,HAA,03/12/2014,11-14230,3376,C W Moxon Ltd,,,,,,,,,,,
Nottinghamshire County Council,1111/1001,Children and Young People,CYP,Support Services,HAA,03/12/2014,11-14231,3237.5,C W Moxon Ltd,,,,,,,,,,,
Nottinghamshire County Council,1111/1001,Children and Young People,CYP,Support Services,HAA,03/12/2014,11-14232,2921.6,C W Moxon Ltd,,,,,,,,,,,
Nottinghamshire County Council,1111/1001,Children and Young People,CYP,Support Services,HAA,03/12/2014,11-14233,3365.7,C W Moxon Ltd,,,,,,,,,,,
Nottinghamshire County Council,1111/1001,Children and Young People,CYP,Support Services,HAA,03/12/2014,11-14234,2907,C W Moxon Ltd,,,,,,,,,,,
Nottinghamshire County Council,1111/1001,Children and Young People,CYP,Support Services,HAA,04/12/2014,11-14312,2266.4,Arnold Acorn Travel,,,,,,,,,,,
Nottinghamshire County Council,1111/1001,Children and Young People,CYP,Support Services,HAA,04/12/2014,11-14336,537.03,Bridges Transport Services,,,,,,,,,,,
Nottinghamshire County Council,1111/1001,Children and Young People,CYP,Support Services,HAA,04/12/2014,11-14357,432.7,P & P Taxis,,,,,,,,,,,
Nottinghamshire County Council,1111/1001,Children and Young People,CYP,Support Services,HAA,04/12/2014,11-14360,1560,P & P Taxis,,,,,,,,,,,
Nottinghamshire County Council,1111/1001,Children and Young People,CYP,Support Services,HAA,04/12/2014,11-14364,2668.74,Freeway Coaches Ltd,,,,,,,,,,,
Nottinghamshire County Council,1111/1001,Children and Young People,CYP,Support Services,HAA,04/12/2014,11-14365,2550,Freeway Coaches Ltd,,,,,,,,,,,
Nottinghamshire County Council,1111/1001,Children and Young People,CYP,Support Services,HAA,04/12/2014,11-14366,2500,Freeway Coaches Ltd,,,,,,,,,,,
Nottinghamshire County Council,1111/1001,Children and Young People,CYP,Support Services,HAA,04/12/2014,11-14367,3627.38,Freeway Coaches Ltd,,,,,,,,,,,
Nottinghamshire County Council,1111/1001,Children and Young People,CYP,Support Services,HAA,04/12/2014,11-14368,7597.16,Freeway Coaches Ltd,,,,,,,,,,,
Nottinghamshire County Council,1111/1001,Children and Young People,CYP,Support Services,HAA,04/12/2014,11-14369,1470.86,Freeway Coaches Ltd,,,,,,,,,,,
Nottinghamshire County Council,1111/1001,Children and Young People,CYP,Support Services,HAA,04/12/2014,11-14372,947.3,Cotswold CVS Trading Ltd,,,,,,,,,,,
Nottinghamshire County Council,1111/1001,Children and Young People,CYP,Support Services,HAA,04/12/2014,11-14374,2100,Travel Liner,,,,,,,,,,,
Nottinghamshire County Council,1111/1001,Children and Young People,CYP,Support Services,HAA,04/12/2014,11-14375,2604.6,Nottingham Coaches,,,,,,,,,,,
Nottinghamshire County Council,1111/1001,Children and Young People,CYP,Support Services,HAA,04/12/2014,11-14376,2641,Nottingham Coaches,,,,,,,,,,,
Nottinghamshire County Council,1111/1001,Children and Young People,CYP,Support Services,HAA,04/12/2014,11-14377,2474,Nottingham Coaches,,,,,,,,,,,
Nottinghamshire County Council,1111/1001,Children and Young People,CYP,Support Services,HAA,04/12/2014,11-14378,2452,Nottingham Coaches,,,,,,,,,,,
Nottinghamshire County Council,1111/1001,Children and Young People,CYP,Support Services,HAA,04/12/2014,11-14379,2961.1,Nottingham Coaches,,,,,,,,,,,
Nottinghamshire County Council,1111/1001,Children and Young People,CYP,Support Services,HAA,05/12/2014,11-14480,1600,Midland Fleet Maintenance,,,,,,,,,,,
Nottinghamshire County Council,1111/1001,Children and Young People,CYP,Support Services,HAA,05/12/2014,11-14505,680,Ng11 Cars,,,,,,,,,,,
Nottinghamshire County Council,1111/1001,Children and Young People,CYP,Support Services,HAA,05/12/2014,11-14541,11795.4,Travel Wright Ltd,,,,,,,,,,,
Nottinghamshire County Council,1111/1001,Children and Young People,CYP,Support Services,HAA,05/12/2014,11-14543,3591.04,Travel Wright Ltd,,,,,,,,,,,
Nottinghamshire County Council,1111/1001,Children and Young People,CYP,Support Services,HAA,05/12/2014,11-14544,3508.8,Travel Wright Ltd,,,,,,,,,,,
Nottinghamshire County Council,1111/1001,Children and Young People,CYP,Support Services,HAA,05/12/2014,11-14545,4480.68,Travel Wright Ltd,,,,,,,,,,,
Nottinghamshire County Council,1111/1001,Children and Young People,CYP,Support Services,HAA,05/12/2014,11-14547,120,Travel Wright Ltd,,,,,,,,,,,
Nottinghamshire County Council,1111/1001,Children and Young People,CYP,Support Services,HAA,05/12/2014,11-14549,2416.12,Travel Wright Ltd,,,,,,,,,,,
Nottinghamshire County Council,1111/1001,Children and Young People,CYP,Support Services,HAA,05/12/2014,11-14552,3199,Travel Wright Ltd,,,,,,,,,,,
Nottinghamshire County Council,1111/1001,Children and Young People,CYP,Support Services,HAA,05/12/2014,11-14553,1820.87,Travel Wright Ltd,,,,,,,,,,,
Nottinghamshire County Council,1111/1001,Children and Young People,CYP,Support Services,HAA,05/12/2014,11-14555,1827.8,Ashfield Travel,,,,,,,,,,,
Nottinghamshire County Council,1111/1001,Children and Young People,CYP,Support Services,HAA,09/12/2014,11-15032,3426.8,Gem Mini Travel Ltd,,,,,,,,,,,
Nottinghamshire County Council,1111/1001,Children and Young People,CYP,Support Services,HAA,09/12/2014,11-15033,3262.25,Gem Mini Travel Ltd,,,,,,,,,,,
Nottinghamshire County Council,1111/1001,Children and Young People,CYP,Support Services,HAA,09/12/2014,11-15034,3224,Gem Mini Travel Ltd,,,,,,,,,,,
Nottinghamshire County Council,1111/1001,Children and Young People,CYP,Support Services,HAA,09/12/2014,11-15035,2348.8,Gem Mini Travel Ltd,,,,,,,,,,,
Nottinghamshire County Council,1111/1001,Children and Young People,CYP,Support Services,HAA,09/12/2014,11-15039,1140,K & R Cars,,,,,,,,,,,
Nottinghamshire County Council,1111/1001,Children and Young People,CYP,Support Services,HAA,09/12/2014,11-15040,1260,Meden Travel,,,,,,,,,,,
Nottinghamshire County Council,1111/1001,Children and Young People,CYP,Support Services,HAA,09/12/2014,11-15047,1800,Nottingham Minibuses & Coaches,,,,,,,,,,,
Nottinghamshire County Council,1111/1001,Children and Young People,CYP,Support Services,HAA,09/12/2014,11-15050,3000,Nottingham Minibuses & Coaches,,,,,,,,,,,
Nottinghamshire County Council,1111/1001,Children and Young People,CYP,Support Services,HAA,09/12/2014,11-15052,2691,Silverdale Tours Nottm Ltd,,,,,,,,,,,
Nottinghamshire County Council,1111/1001,Children and Young People,CYP,Support Services,HAA,09/12/2014,11-15055,1045,Broadsword Cars,,,,,,,,,,,
Nottinghamshire County Council,1111/1001,Children and Young People,CYP,Support Services,HAA,12/12/2014,11-15304,3122.9,Johnson Bros Tours Ltd,,,,,,,,,,,
Nottinghamshire County Council,1111/1001,Children and Young People,CYP,Support Services,HAA,12/12/2014,11-15305,5340.05,Johnson Bros Tours Ltd,,,,,,,,,,,
Nottinghamshire County Council,1111/1001,Children and Young People,CYP,Support Services,HAA,12/12/2014,11-15306,2800,Johnson Bros Tours Ltd,,,,,,,,,,,
Nottinghamshire County Council,1111/1001,Children and Young People,CYP,Support Services,HAA,12/12/2014,11-15307,2696.65,Johnson Bros Tours Ltd,,,,,,,,,,,
Nottinghamshire County Council,1111/1001,Children and Young People,CYP,Support Services,HAA,12/12/2014,11-15308,11993.05,Johnson Bros Tours Ltd,,,,,,,,,,,
Nottinghamshire County Council,1111/1001,Children and Young People,CYP,Support Services,HAA,12/12/2014,11-15309,19103.05,Johnson Bros Tours Ltd,,,,,,,,,,,
Nottinghamshire County Council,1111/1001,Children and Young People,CYP,Support Services,HAA,12/12/2014,11-15310,3348.45,Johnson Bros Tours Ltd,,,,,,,,,,,
Nottinghamshire County Council,1111/1001,Children and Young People,CYP,Support Services,HAA,12/12/2014,11-15322,1530,F & J Marriott T/A Unity Coaches,,,,,,,,,,,
Nottinghamshire County Council,1111/1001,Children and Young People,CYP,Support Services,HAA,12/12/2014,11-15323,2451,F & J Marriott T/A Unity Coaches,,,,,,,,,,,
Nottinghamshire County Council,1111/1001,Children and Young People,CYP,Support Services,HAA,12/12/2014,11-15324,1782,F & J Marriott T/A Unity Coaches,,,,,,,,,,,
Nottinghamshire County Council,1111/1001,Children and Young People,CYP,Support Services,HAA,12/12/2014,11-15332,2039.8,Marshalls Of Sutton On Trent Ltd,,,,,,,,,,,
Nottinghamshire County Council,1111/1001,Children and Young People,CYP,Support Services,HAA,12/12/2014,11-15341,3300,Marshalls Of Sutton On Trent Ltd,,,,,,,,,,,
Nottinghamshire County Council,1111/1001,Children and Young People,CYP,Support Services,HAA,12/12/2014,11-15343,1980,Marshalls Of Sutton On Trent Ltd,,,,,,,,,,,
Nottinghamshire County Council,1111/1001,Children and Young People,CYP,Support Services,HAA,12/12/2014,11-15344,2970,Marshalls Of Sutton On Trent Ltd,,,,,,,,,,,
Nottinghamshire County Council,1111/1001,Children and Young People,CYP,Support Services,HAA,12/12/2014,11-15345,1836,Marshalls Of Sutton On Trent Ltd,,,,,,,,,,,
Nottinghamshire County Council,1111/1001,Children and Young People,CYP,Support Services,HAA,12/12/2014,11-15348,2508,Tiger European Uk Ltd,,,,,,,,,,,
Nottinghamshire County Council,1111/1001,Children and Young People,CYP,Support Services,HAA,12/12/2014,11-15349,2660,Tiger European Uk Ltd,,,,,,,,,,,
Nottinghamshire County Council,1111/1001,Children and Young People,CYP,Support Services,HAA,12/12/2014,11-15350,2381.85,Tiger European Uk Ltd,,,,,,,,,,,
Nottinghamshire County Council,1111/1001,Children and Young People,CYP,Support Services,HAA,12/12/2014,11-15351,2679,Tiger European Uk Ltd,,,,,,,,,,,
Nottinghamshire County Council,1111/1001,Children and Young People,CYP,Support Services,HAA,12/12/2014,11-15352,2605,Tiger European Uk Ltd,,,,,,,,,,,
Nottinghamshire County Council,1111/1001,Children and Young People,CYP,Support Services,HAA,12/12/2014,11-15353,2639,Tiger European Uk Ltd,,,,,,,,,,,
Nottinghamshire County Council,1111/1001,Children and Young People,CYP,Support Services,HAA,12/12/2014,11-15354,2936,Tiger European Uk Ltd,,,,,,,,,,,
Nottinghamshire County Council,1111/1001,Children and Young People,CYP,Support Services,HAA,12/12/2014,11-15355,3700,Tiger European Uk Ltd,,,,,,,,,,,
Nottinghamshire County Council,1111/1001,Children and Young People,CYP,Support Services,HAA,12/12/2014,11-15356,2772,Tiger European Uk Ltd,,,,,,,,,,,
Nottinghamshire County Council,1111/1001,Children and Young People,CYP,Support Services,HAA,12/12/2014,11-15357,949,Tiger European Uk Ltd,,,,,,,,,,,
Nottinghamshire County Council,1111/1001,Children and Young People,CYP,Support Services,HAA,12/12/2014,11-15358,3092,Tiger European Uk Ltd,,,,,,,,,,,
Nottinghamshire County Council,1111/1001,Children and Young People,CYP,Support Services,HAA,12/12/2014,11-15359,2987.2,Tiger European Uk Ltd,,,,,,,,,,,
Nottinghamshire County Council,1111/1001,Children and Young People,CYP,Support Services,HAA,12/12/2014,11-15361,1862,Wilfreda Beehive,,,,,,,,,,,
Nottinghamshire County Council,1111/1001,Children and Young People,CYP,Support Services,HAA,12/12/2014,11-15362,1580,Paul S Winson Coaches,,,,,,,,,,,
Nottinghamshire County Council,1111/1001,Children and Young People,CYP,Support Services,HAA,12/12/2014,11-15363,1343,Paul S Winson Coaches,,,,,,,,,,,
Nottinghamshire County Council,1111/1001,Children and Young People,CYP,Support Services,HAA,12/12/2014,11-15364,1501,Paul S Winson Coaches,,,,,,,,,,,
Nottinghamshire County Council,1111/1001,Children and Young People,CYP,Support Services,HAA,12/12/2014,11-15367,520,Rio Cabs,,,,,,,,,,,
Nottinghamshire County Council,1111/1001,Children and Young People,CYP,Support Services,HAA,12/12/2014,11-15369,1500,Rio Cabs,,,,,,,,,,,
Nottinghamshire County Council,1111/1001,Children and Young People,CYP,Support Services,HAA,12/12/2014,11-15371,4590,Isle Coaches,,,,,,,,,,,
Nottinghamshire County Council,1111/1001,Children and Young People,CYP,Support Services,HAA,17/12/2014,11-15624,2328,Lowes Coaches Ltd,,,,,,,,,,,
Nottinghamshire County Council,1111/1001,Children and Young People,CYP,Support Services,HAA,17/12/2014,11-15625,2114,Lowes Coaches Ltd,,,,,,,,,,,
Nottinghamshire County Council,1111/1001,Children and Young People,CYP,Support Services,HAA,17/12/2014,11-15626,2678,Lowes Coaches Ltd,,,,,,,,,,,
Nottinghamshire County Council,1111/1001,Children and Young People,CYP,Support Services,HAA,17/12/2014,11-15627,2732,Lowes Coaches Ltd,,,,,,,,,,,
Nottinghamshire County Council,1111/1001,Children and Young People,CYP,Support Services,HAA,17/12/2014,11-15631,2203.98,Sprays Transport Ltd,,,,,,,,,,,
Nottinghamshire County Council,1111/1001,Children and Young People,CYP,Support Services,HAA,17/12/2014,11-15637,1200,Abacus Cars,,,,,,,,,,,
Nottinghamshire County Council,1111/1001,Children and Young People,CYP,Support Services,HAA,17/12/2014,11-15641,2428.3,Jb Tours Watnall Ltd,,,,,,,,,,,
Nottinghamshire County Council,1111/1001,Children and Young People,CYP,Support Services,HAA,17/12/2014,11-15642,2015.9,Jb Tours Watnall Ltd,,,,,,,,,,,
Nottinghamshire County Council,1111/1001,Children and Young People,CYP,Support Services,HAA,17/12/2014,11-15643,2429.1,Jb Tours Watnall Ltd,,,,,,,,,,,
Nottinghamshire County Council,1111/1001,Children and Young People,CYP,Support Services,HAA,17/12/2014,11-15646,2258.1,Silverdale Tours Nottm Ltd,,,,,,,,,,,
Nottinghamshire County Council,1111/1001,Children and Young People,CYP,Support Services,HAA,17/12/2014,11-15647,2988.1,Silverdale Tours Nottm Ltd,,,,,,,,,,,
Nottinghamshire County Council,1111/1001,Children and Young People,CYP,Support Services,HAA,17/12/2014,11-15648,2712.9,Silverdale Tours Nottm Ltd,,,,,,,,,,,
Nottinghamshire County Council,1111/1001,Children and Young People,CYP,Support Services,HAA,17/12/2014,11-15649,2840.5,Silverdale Tours Nottm Ltd,,,,,,,,,,,
Nottinghamshire County Council,1111/1001,Children and Young People,CYP,Support Services,HAA,17/12/2014,11-15650,2555.8,Silverdale Tours Nottm Ltd,,,,,,,,,,,
Nottinghamshire County Council,1111/1001,Children and Young People,CYP,Support Services,HAA,17/12/2014,11-15651,1972,Silverdale Tours Nottm Ltd,,,,,,,,,,,
Nottinghamshire County Council,1111/1001,Children and Young People,CYP,Support Services,HAA,17/12/2014,11-15652,2822,Silverdale Tours Nottm Ltd,,,,,,,,,,,
Nottinghamshire County Council,1111/1001,Children and Young People,CYP,Support Services,HAA,17/12/2014,11-15653,2007,Silverdale Tours Nottm Ltd,,,,,,,,,,,
Nottinghamshire County Council,1111/1001,Children and Young People,CYP,Support Services,HAA,17/12/2014,11-15657,1267.4,Bassetlaw Action Centre,,,,,,,,,,,
Nottinghamshire County Council,1111/1001,Children and Young People,CYP,Support Services,HAA,17/12/2014,11-15664,9558,Ashfield Academy,,,,,,,,,,,
Nottinghamshire County Council,1111/1001,Children and Young People,CYP,Support Services,HAA,19/12/2014,11-16033,2757.6,Sharpes Of Nottingham,,,,,,,,,,,
Nottinghamshire County Council,1111/1001,Children and Young People,CYP,Support Services,HAA,19/12/2014,11-16035,2180.8,Sharpes Of Nottingham,,,,,,,,,,,
Nottinghamshire County Council,1111/1001,Children and Young People,CYP,Support Services,HAA,19/12/2014,11-16036,2939.05,Sharpes Of Nottingham,,,,,,,,,,,
Nottinghamshire County Council,1111/1001,Children and Young People,CYP,Support Services,HAA,19/12/2014,11-16037,3064,Sharpes Of Nottingham,,,,,,,,,,,
Nottinghamshire County Council,1111/1001,Children and Young People,CYP,Support Services,HAA,19/12/2014,11-16038,2650.25,Sharpes Of Nottingham,,,,,,,,,,,
Nottinghamshire County Council,1111/1001,Children and Young People,CYP,Support Services,HAA,19/12/2014,11-16039,3015.9,Sharpes Of Nottingham,,,,,,,,,,,
Nottinghamshire County Council,1111/1001,Children and Young People,CYP,Support Services,HAA,19/12/2014,11-16043,3064,Sharpes Of Nottingham,,,,,,,,,,,
Nottinghamshire County Council,1111/1001,Children and Young People,CYP,Support Services,HAA,19/12/2014,11-16044,2394.35,Sharpes Of Nottingham,,,,,,,,,,,
Nottinghamshire County Council,1111/1001,Children and Young People,CYP,Support Services,HAA,19/12/2014,11-16045,2922,Sharpes Of Nottingham,,,,,,,,,,,
Nottinghamshire County Council,1111/1001,Children and Young People,CYP,Support Services,HAA,19/12/2014,11-16046,2592.9,Sharpes Of Nottingham,,,,,,,,,,,
Nottinghamshire County Council,1111/1001,Children and Young People,CYP,Support Services,HAA,19/12/2014,11-16047,2161.05,Sharpes Of Nottingham,,,,,,,,,,,
Nottinghamshire County Council,1111/1001,Children and Young People,CYP,Support Services,HAA,19/12/2014,11-16048,3050,Sharpes Of Nottingham,,,,,,,,,,,
Nottinghamshire County Council,1111/1001,Children and Young People,CYP,Support Services,HAA,19/12/2014,11-16054,4816,AOT Coaches,,,,,,,,,,,
Nottinghamshire County Council,1111/1001,Children and Young People,CYP,Support Services,HAA,19/12/2014,11-16064,3866.82,Stagecoach Services Ltd,,,,,,,,,,,
Nottinghamshire County Council,1111/1001,Children and Young People,CYP,Support Services,HAA,19/12/2014,11-16068,1227.6,Stagecoach Services Ltd,,,,,,,,,,,
Nottinghamshire County Council,1111/1001,Children and Young People,CYP,Support Services,HAA,19/12/2014,11-16087,5012.7,Stagecoach Services Ltd,,,,,,,,,,,
Nottinghamshire County Council,1111/1001,Children and Young People,CYP,Support Services,HAA,19/12/2014,11-16088,5067.4,Stagecoach Services Ltd,,,,,,,,,,,
Nottinghamshire County Council,1111/1001,Children and Young People,CYP,Support Services,HAA,19/12/2014,11-16091,3907.62,Stagecoach Services Ltd,,,,,,,,,,,
Nottinghamshire County Council,1111/1001,Children and Young People,CYP,Support Services,HAA,19/12/2014,11-16094,3121.6,Stagecoach Services Ltd,,,,,,,,,,,
Nottinghamshire County Council,1111/1001,Children and Young People,CYP,Support Services,HAA,23/12/2014,11-16482,3040,AOT Coaches,,,,,,,,,,,
Nottinghamshire County Council,1111/1001,Children and Young People,CYP,Support Services,HAA,23/12/2014,11-16483,3040,AOT Coaches,,,,,,,,,,,
Nottinghamshire County Council,1111/1001,Children and Young People,CYP,Support Services,HAA,23/12/2014,11-16486,2611,AOT Coaches,,,,,,,,,,,
Nottinghamshire County Council,1111/1001,Children and Young People,CYP,Support Services,HAA,23/12/2014,11-16487,2780,AOT Coaches,,,,,,,,,,,
Nottinghamshire County Council,1111/1001,Children and Young People,CYP,Support Services,HAA,23/12/2014,11-16488,2472.6,AOT Coaches,,,,,,,,,,,
Nottinghamshire County Council,1111/1001,Children and Young People,CYP,Support Services,HAA,23/12/2014,11-16489,2403.6,AOT Coaches,,,,,,,,,,,
Nottinghamshire County Council,1111/1001,Children and Young People,CYP,Support Services,HAA,23/12/2014,11-16490,2585.8,AOT Coaches,,,,,,,,,,,
Nottinghamshire County Council,1111/1001,Children and Young People,CYP,Support Services,HAA,23/12/2014,11-16494,1707.4,Wallis Coachways,,,,,,,,,,,
Nottinghamshire County Council,1111/1001,Adult Social Care and Health,ASCH,Premises Related,BAA,08/12/2014,11-14597,764,Key Construction,,,,,,,,,,,
Nottinghamshire County Council,1111/1001,Adult Social Care and Health,ASCH,Premises Related,BAA,08/12/2014,11-14598,867,Redacted,,,,,,,,,,,
Nottinghamshire County Council,1111/1001,Adult Social Care and Health,ASCH,Premises Related,BAA,16/12/2014,11-15518,539,Sues Maintenance Services,,,,,,,,,,,
Nottinghamshire County Council,1111/1001,Adult Social Care and Health,ASCH,Premises Related,BAA,16/12/2014,11-15519,665,Classique Fascias,,,,,,,,,,,
Nottinghamshire County Council,1111/1001,Adult Social Care and Health,ASCH,Premises Related,BAA,16/12/2014,11-15567,587.5,Ashfield Glazing,,,,,,,,,,,
Nottinghamshire County Council,1111/1001,Adult Social Care and Health,ASCH,Premises Related,BAA,23/12/2014,11-16516,633.5,Cw Plumbing Heating & Gas Services,,,,,,,,,,,
Nottinghamshire County Council,1111/1001,Adult Social Care and Health,ASCH,Transport Related,CBA,03/12/2014,11-14218,3290,Vallances Coaches,,,,,,,,,,,
Nottinghamshire County Council,1111/1001,Adult Social Care and Health,ASCH,Transport Related,CBA,04/12/2014,11-14349,2124.39,Ja Travel Ltd,,,,,,,,,,,
Nottinghamshire County Council,1111/1001,Adult Social Care and Health,ASCH,Transport Related,CBA,04/12/2014,11-14361,1562.68,Aj Travel,,,,,,,,,,,
Nottinghamshire County Council,1111/1001,Adult Social Care and Health,ASCH,Transport Related,CBA,04/12/2014,11-14370,4540.2,Cotswold CVS Trading Ltd,,,,,,,,,,,
Nottinghamshire County Council,1111/1001,Adult Social Care and Health,ASCH,Transport Related,CBA,12/12/2014,11-15329,2923.94,F & J Marriott T/A Unity Coaches,,,,,,,,,,,
Nottinghamshire County Council,1111/1001,Adult Social Care and Health,ASCH,Transport Related,CBA,12/12/2014,11-15331,2808.72,F & J Marriott T/A Unity Coaches,,,,,,,,,,,
Nottinghamshire County Council,1111/1001,Adult Social Care and Health,ASCH,Transport Related,CCA,02/12/2014,11-13967,780,AAA Cabs,,,,,,,,,,,
Nottinghamshire County Council,1111/1001,Adult Social Care and Health,ASCH,Transport Related,CCA,03/12/2014,11-14216,630.8,Midfield Travel,,,,,,,,,,,
Nottinghamshire County Council,1111/1001,Adult Social Care and Health,ASCH,Transport Related,CCA,03/12/2014,11-14225,1296,P & P Taxis,,,,,,,,,,,
Nottinghamshire County Council,1111/1001,Adult Social Care and Health,ASCH,Transport Related,CCA,04/12/2014,11-14321,560,Bridges Transport Services,,,,,,,,,,,
Nottinghamshire County Council,1111/1001,Adult Social Care and Health,ASCH,Transport Related,CCA,04/12/2014,11-14343,640,Bridges Transport Services,,,,,,,,,,,
Nottinghamshire County Council,1111/1001,Adult Social Care and Health,ASCH,Transport Related,CCA,05/12/2014,11-14476,386.7,All Wayz Travel,,,,,,,,,,,
Nottinghamshire County Council,1111/1001,Adult Social Care and Health,ASCH,Transport Related,CCA,05/12/2014,11-14535,248.88,Sprays Transport Ltd,,,,,,,,,,,
Nottinghamshire County Council,1111/1001,Adult Social Care and Health,ASCH,Transport Related,CCA,05/12/2014,11-14558,510,Town Cars (UK) Ltd,,,,,,,,,,,
Nottinghamshire County Council,1111/1001,Adult Social Care and Health,ASCH,Transport Related,CCA,09/12/2014,11-15010,1566.72,Shelleys Taxis Ltd,,,,,,,,,,,
Nottinghamshire County Council,1111/1001,Adult Social Care and Health,ASCH,Transport Related,CCA,12/12/2014,11-15315,911,Erewash Community Transport,,,,,,,,,,,
Nottinghamshire County Council,1111/1001,Adult Social Care and Health,ASCH,Transport Related,CCA,17/12/2014,11-15661,690,AAA Cabs,,,,,,,,,,,
Nottinghamshire County Council,1111/1001,Adult Social Care and Health,ASCH,Transport Related,CCA,19/12/2014,11-16051,567.7,SJW (Muskham) Ltd T/A Z Cars,,,,,,,,,,,
Nottinghamshire County Council,1111/1001,Adult Social Care and Health,ASCH,Transport Related,CCA,31/12/2014,11-13969,536.3,Srcl Ltd,,,,,,,,,,,
Nottinghamshire County Council,1111/1001,Adult Social Care and Health,ASCH,Transport Related,CCA,31/12/2014,11-13973,1888.7,Srcl Ltd,,,,,,,,,,,
Nottinghamshire County Council,1111/1001,Adult Social Care and Health,ASCH,Transport Related,CCA,31/12/2014,11-13974,911.36,Srcl Ltd,,,,,,,,,,,
Nottinghamshire County Council,1111/1001,Adult Social Care and Health,ASCH,Transport Related,CCA,31/12/2014,11-13975,569.92,Srcl Ltd,,,,,,,,,,,
Nottinghamshire County Council,1111/1001,Adult Social Care and Health,ASCH,Transport Related,CCA,31/12/2014,11-13976,1250.92,Srcl Ltd,,,,,,,,,,,
Nottinghamshire County Council,1111/1001,Adult Social Care and Health,ASCH,Transport Related,CCA,31/12/2014,11-13977,1888.7,Srcl Ltd,,,,,,,,,,,
Nottinghamshire County Council,1111/1001,Adult Social Care and Health,ASCH,Transport Related,CCA,31/12/2014,11-13978,1368.6,Srcl Ltd,,,,,,,,,,,
Nottinghamshire County Council,1111/1001,Adult Social Care and Health,ASCH,Transport Related,CCA,31/12/2014,11-13981,700,Srcl Ltd,,,,,,,,,,,
Nottinghamshire County Council,1111/1001,Adult Social Care and Health,ASCH,Transport Related,CCA,31/12/2014,11-13987,2700,Srcl Ltd,,,,,,,,,,,
Nottinghamshire County Council,1111/1001,Adult Social Care and Health,ASCH,Transport Related,CDA,02/12/2014,11-13950,558.25,Fozcabs Newark Taxis,,,,,,,,,,,
Nottinghamshire County Council,1111/1001,Adult Social Care and Health,ASCH,Transport Related,CDA,02/12/2014,11-13953,2415.6,Hawkins Taxis & Transport,,,,,,,,,,,
Nottinghamshire County Council,1111/1001,Adult Social Care and Health,ASCH,Transport Related,CDA,03/12/2014,11-14135,1129.8,Southside Cars,,,,,,,,,,,
Nottinghamshire County Council,1111/1001,Adult Social Care and Health,ASCH,Transport Related,CDA,03/12/2014,11-14169,1080,Arrow Specialised Transport Ltd,,,,,,,,,,,
Nottinghamshire County Council,1111/1001,Adult Social Care and Health,ASCH,Transport Related,CDA,03/12/2014,11-14174,1199,Arrow Specialised Transport Ltd,,,,,,,,,,,
Nottinghamshire County Council,1111/1001,Adult Social Care and Health,ASCH,Transport Related,CDA,03/12/2014,11-14180,122.94,Arrow Specialised Transport Ltd,,,,,,,,,,,
Nottinghamshire County Council,1111/1001,Adult Social Care and Health,ASCH,Transport Related,CDA,03/12/2014,11-14182,848.23,Arrow Specialised Transport Ltd,,,,,,,,,,,
Nottinghamshire County Council,1111/1001,Adult Social Care and Health,ASCH,Transport Related,CDA,03/12/2014,11-14215,2266,Midfield Travel,,,,,,,,,,,
Nottinghamshire County Council,1111/1001,Adult Social Care and Health,ASCH,Transport Related,CDA,03/12/2014,11-14222,1173,Beechwood Taxis,,,,,,,,,,,
Nottinghamshire County Council,1111/1001,Adult Social Care and Health,ASCH,Transport Related,CDA,03/12/2014,11-14226,940,P & P Taxis,,,,,,,,,,,
Nottinghamshire County Council,1111/1001,Adult Social Care and Health,ASCH,Transport Related,CDA,03/12/2014,11-14227,1080,P & P Taxis,,,,,,,,,,,
Nottinghamshire County Council,1111/1001,Adult Social Care and Health,ASCH,Transport Related,CDA,04/12/2014,11-14307,603,Ace Of Mansfield Ltd,,,,,,,,,,,
Nottinghamshire County Council,1111/1001,Adult Social Care and Health,ASCH,Transport Related,CDA,04/12/2014,11-14308,700.8,Ace Of Mansfield Ltd,,,,,,,,,,,
Nottinghamshire County Council,1111/1001,Adult Social Care and Health,ASCH,Transport Related,CDA,04/12/2014,11-14309,600,Ace Of Mansfield Ltd,,,,,,,,,,,
Nottinghamshire County Council,1111/1001,Adult Social Care and Health,ASCH,Transport Related,CDA,04/12/2014,11-14314,912,Alpha Cars,,,,,,,,,,,
Nottinghamshire County Council,1111/1001,Adult Social Care and Health,ASCH,Transport Related,CDA,04/12/2014,11-14316,960,Bridges Transport Services,,,,,,,,,,,
Nottinghamshire County Council,1111/1001,Adult Social Care and Health,ASCH,Transport Related,CDA,04/12/2014,11-14317,640,Bridges Transport Services,,,,,,,,,,,
Nottinghamshire County Council,1111/1001,Adult Social Care and Health,ASCH,Transport Related,CDA,04/12/2014,11-14318,4595.04,Bridges Transport Services,,,,,,,,,,,
Nottinghamshire County Council,1111/1001,Adult Social Care and Health,ASCH,Transport Related,CDA,04/12/2014,11-14319,800,Bridges Transport Services,,,,,,,,,,,
Nottinghamshire County Council,1111/1001,Adult Social Care and Health,ASCH,Transport Related,CDA,04/12/2014,11-14320,1160,Bridges Transport Services,,,,,,,,,,,
Nottinghamshire County Council,1111/1001,Adult Social Care and Health,ASCH,Transport Related,CDA,04/12/2014,11-14322,1200,Bridges Transport Services,,,,,,,,,,,
Nottinghamshire County Council,1111/1001,Adult Social Care and Health,ASCH,Transport Related,CDA,04/12/2014,11-14323,560,Bridges Transport Services,,,,,,,,,,,
Nottinghamshire County Council,1111/1001,Adult Social Care and Health,ASCH,Transport Related,CDA,04/12/2014,11-14355,734.02,Aaeron Cars,,,,,,,,,,,
Nottinghamshire County Council,1111/1001,Adult Social Care and Health,ASCH,Transport Related,CDA,04/12/2014,11-14356,548.93,Aaeron Cars,,,,,,,,,,,
Nottinghamshire County Council,1111/1001,Adult Social Care and Health,ASCH,Transport Related,CDA,04/12/2014,11-14361,236.6,Aj Travel,,,,,,,,,,,
Nottinghamshire County Council,1111/1001,Adult Social Care and Health,ASCH,Transport Related,CDA,05/12/2014,11-14493,584,CBC Taxis Ltd,,,,,,,,,,,
Nottinghamshire County Council,1111/1001,Adult Social Care and Health,ASCH,Transport Related,CDA,05/12/2014,11-14496,568.65,CBC Taxis Ltd,,,,,,,,,,,
Nottinghamshire County Council,1111/1001,Adult Social Care and Health,ASCH,Transport Related,CDA,05/12/2014,11-14497,652,CBC Taxis Ltd,,,,,,,,,,,
Nottinghamshire County Council,1111/1001,Adult Social Care and Health,ASCH,Transport Related,CDA,05/12/2014,11-14498,819.56,CBC Taxis Ltd,,,,,,,,,,,
Nottinghamshire County Council,1111/1001,Adult Social Care and Health,ASCH,Transport Related,CDA,05/12/2014,11-14499,1260,Acorn Contracts,,,,,,,,,,,
Nottinghamshire County Council,1111/1001,Adult Social Care and Health,ASCH,Transport Related,CDA,05/12/2014,11-14509,512,Ng11 Cars,,,,,,,,,,,
Nottinghamshire County Council,1111/1001,Adult Social Care and Health,ASCH,Transport Related,CDA,05/12/2014,11-14534,2611.2,Sprays Transport Ltd,,,,,,,,,,,
Nottinghamshire County Council,1111/1001,Adult Social Care and Health,ASCH,Transport Related,CDA,05/12/2014,11-14537,3000.27,Sprays Transport Ltd,,,,,,,,,,,
Nottinghamshire County Council,1111/1001,Adult Social Care and Health,ASCH,Transport Related,CDA,05/12/2014,11-14562,1483.4,Town Cars (UK) Ltd,,,,,,,,,,,
Nottinghamshire County Council,1111/1001,Adult Social Care and Health,ASCH,Transport Related,CDA,09/12/2014,11-15002,286.62,D G Private Hire Ltd,,,,,,,,,,,
Nottinghamshire County Council,1111/1001,Adult Social Care and Health,ASCH,Transport Related,CDA,09/12/2014,11-15054,1536.79,In Taxis,,,,,,,,,,,
Nottinghamshire County Council,1111/1001,Adult Social Care and Health,ASCH,Transport Related,CDA,10/12/2014,11-15111,1040,D G Private Hire Ltd,,,,,,,,,,,
Nottinghamshire County Council,1111/1001,Adult Social Care and Health,ASCH,Transport Related,CDA,10/12/2014,11-15114,601,D G Private Hire Ltd,,,,,,,,,,,
Nottinghamshire County Council,1111/1001,Adult Social Care and Health,ASCH,Transport Related,CDA,10/12/2014,11-15115,537.2,D G Private Hire Ltd,,,,,,,,,,,
Nottinghamshire County Council,1111/1001,Adult Social Care and Health,ASCH,Transport Related,CDA,10/12/2014,11-15117,1120,D G Private Hire Ltd,,,,,,,,,,,
Nottinghamshire County Council,1111/1001,Adult Social Care and Health,ASCH,Transport Related,CDA,10/12/2014,11-15118,565.7,D G Private Hire Ltd,,,,,,,,,,,
Nottinghamshire County Council,1111/1001,Adult Social Care and Health,ASCH,Transport Related,CDA,10/12/2014,11-15120,800,D G Private Hire Ltd,,,,,,,,,,,
Nottinghamshire County Council,1111/1001,Adult Social Care and Health,ASCH,Transport Related,CDA,10/12/2014,11-15123,920,Abacus Cars,,,,,,,,,,,
Nottinghamshire County Council,1111/1001,Adult Social Care and Health,ASCH,Transport Related,CDA,10/12/2014,11-15124,1142.4,Abacus Cars,,,,,,,,,,,
Nottinghamshire County Council,1111/1001,Adult Social Care and Health,ASCH,Transport Related,CDA,10/12/2014,11-15125,522.24,Abacus Cars,,,,,,,,,,,
Nottinghamshire County Council,1111/1001,Adult Social Care and Health,ASCH,Transport Related,CDA,10/12/2014,11-15126,1836,Abacus Cars,,,,,,,,,,,
Nottinghamshire County Council,1111/1001,Adult Social Care and Health,ASCH,Transport Related,CDA,10/12/2014,11-15128,571.2,Abacus Cars,,,,,,,,,,,
Nottinghamshire County Council,1111/1001,Adult Social Care and Health,ASCH,Transport Related,CDA,10/12/2014,11-15135,2000,Redacted,,,,,,,,,,,
Nottinghamshire County Council,1111/1001,Adult Social Care and Health,ASCH,Transport Related,CDA,12/12/2014,11-15318,604.68,Shelleys Taxis Ltd,,,,,,,,,,,
Nottinghamshire County Council,1111/1001,Adult Social Care and Health,ASCH,Transport Related,CDA,12/12/2014,11-15329,313.72,F & J Marriott T/A Unity Coaches,,,,,,,,,,,
Nottinghamshire County Council,1111/1001,Adult Social Care and Health,ASCH,Transport Related,CDA,12/12/2014,11-15360,1536,P & P Taxis,,,,,,,,,,,
Nottinghamshire County Council,1111/1001,Adult Social Care and Health,ASCH,Transport Related,CDA,17/12/2014,11-15589,536,Cabline Uk Ltd,,,,,,,,,,,
Nottinghamshire County Council,1111/1001,Adult Social Care and Health,ASCH,Transport Related,CDA,17/12/2014,11-15634,640,Abacus Cars,,,,,,,,,,,
Nottinghamshire County Council,1111/1001,Adult Social Care and Health,ASCH,Transport Related,CDA,17/12/2014,11-15635,672,Abacus Cars,,,,,,,,,,,
Nottinghamshire County Council,1111/1001,Adult Social Care and Health,ASCH,Transport Related,CDA,17/12/2014,11-15640,749.6,Abacus Cars,,,,,,,,,,,
Nottinghamshire County Council,1111/1001,Adult Social Care and Health,ASCH,Transport Related,CDA,30/12/2014,11-20633,870,Nottingham City Council,,,,,,,,,,,
Nottinghamshire County Council,1111/1001,Adult Social Care and Health,ASCH,Transport Related,CDA,30/12/2014,11-20634,812,Nottingham City Council,,,,,,,,,,,
Nottinghamshire County Council,1111/1001,Adult Social Care and Health,ASCH,Transport Related,CDA,31/12/2014,11-13979,1368.6,Srcl Ltd,,,,,,,,,,,
Nottinghamshire County Council,1111/1001,Adult Social Care and Health,ASCH,Transport Related,CDA,31/12/2014,11-13980,700,Srcl Ltd,,,,,,,,,,,
Nottinghamshire County Council,1111/1001,Adult Social Care and Health,ASCH,Transport Related,CDA,31/12/2014,11-13982,2732.2,Srcl Ltd,,,,,,,,,,,
Nottinghamshire County Council,1111/1001,Adult Social Care and Health,ASCH,Transport Related,CDA,31/12/2014,11-13983,508.02,Srcl Ltd,,,,,,,,,,,
Nottinghamshire County Council,1111/1001,Adult Social Care and Health,ASCH,Transport Related,CDA,31/12/2014,11-13984,819.66,Srcl Ltd,,,,,,,,,,,
Nottinghamshire County Council,1111/1001,Adult Social Care and Health,ASCH,Transport Related,CDA,31/12/2014,11-13985,683.05,Srcl Ltd,,,,,,,,,,,
Nottinghamshire County Council,1111/1001,Adult Social Care and Health,ASCH,Transport Related,CDA,31/12/2014,11-13986,675,Srcl Ltd,,,,,,,,,,,
Nottinghamshire County Council,1111/1001,Adult Social Care and Health,ASCH,Transport Related,CDA,31/12/2014,11-13988,810,Srcl Ltd,,,,,,,,,,,
Nottinghamshire County Council,1111/1001,Adult Social Care and Health,ASCH,Transport Related,CDA,31/12/2014,11-13989,1137.5,Srcl Ltd,,,,,,,,,,,
Nottinghamshire County Council,1111/1001,Adult Social Care and Health,ASCH,Transport Related,CDA,31/12/2014,11-13990,505,Srcl Ltd,,,,,,,,,,,
Nottinghamshire County Council,1111/1001,Adult Social Care and Health,ASCH,Transport Related,CDA,31/12/2014,11-13991,757.5,Srcl Ltd,,,,,,,,,,,
Nottinghamshire County Council,1111/1001,Adult Social Care and Health,ASCH,Transport Related,CDA,31/12/2014,11-13992,631.25,Srcl Ltd,,,,,,,,,,,
Nottinghamshire County Council,1111/1001,Adult Social Care and Health,ASCH,Transport Related,CDA,31/12/2014,11-13993,631.25,Srcl Ltd,,,,,,,,,,,
Nottinghamshire County Council,1111/1001,Adult Social Care and Health,ASCH,Transport Related,CDA,31/12/2014,11-13994,631.25,Srcl Ltd,,,,,,,,,,,
Nottinghamshire County Council,1111/1001,Adult Social Care and Health,ASCH,Transport Related,CDA,31/12/2014,11-13995,1136.25,Srcl Ltd,,,,,,,,,,,
Nottinghamshire County Council,1111/1001,Adult Social Care and Health,ASCH,Transport Related,CDA,31/12/2014,11-13996,505,Srcl Ltd,,,,,,,,,,,
Nottinghamshire County Council,1111/1001,Adult Social Care and Health,ASCH,Transport Related,CDA,31/12/2014,11-13997,2525.01,Srcl Ltd,,,,,,,,,,,
Nottinghamshire County Council,1111/1001,Adult Social Care and Health,ASCH,Transport Related,CDA,31/12/2014,11-13998,2903.75,Srcl Ltd,,,,,,,,,,,
Nottinghamshire County Council,1111/1001,Adult Social Care and Health,ASCH,Supplies & Services,DAA,17/12/2014,11-15783,45,Midland Landfill Ltd,,,,,,,,,,,
Nottinghamshire County Council,1111/1001,Adult Social Care and Health,ASCH,Supplies & Services,DAA,18/12/2014,11-20821,540,Culinare Exquisite Foods Ltd,,,,,,,,,,,
Nottinghamshire County Council,1111/1001,Adult Social Care and Health,ASCH,Supplies & Services,DBA,03/12/2014,11-14104,1846.47,Hallam Country Fresh Foods Ltd,,,,,,,,,,,
Nottinghamshire County Council,1111/1001,Adult Social Care and Health,ASCH,Supplies & Services,DBA,03/12/2014,11-14249,3129.5,M Maloney Country Butchers & B Ltd,,,,,,,,,,,
Nottinghamshire County Council,1111/1001,Adult Social Care and Health,ASCH,Supplies & Services,DBA,03/12/2014,11-14253,4789.16,M Maloney Country Butchers & B Ltd,,,,,,,,,,,
Nottinghamshire County Council,1111/1001,Adult Social Care and Health,ASCH,Supplies & Services,DBA,03/12/2014,11-14257,5267.16,M Maloney Country Butchers & B Ltd,,,,,,,,,,,
Nottinghamshire County Council,1111/1001,Adult Social Care and Health,ASCH,Supplies & Services,DBA,03/12/2014,11-14261,4574.41,M Maloney Country Butchers & B Ltd,,,,,,,,,,,
Nottinghamshire County Council,1111/1001,Adult Social Care and Health,ASCH,Supplies & Services,DBA,03/12/2014,11-14265,3430.62,M Maloney Country Butchers & B Ltd,,,,,,,,,,,
Nottinghamshire County Council,1111/1001,Adult Social Care and Health,ASCH,Supplies & Services,DBA,03/12/2014,11-14269,4464.98,M Maloney Country Butchers & B Ltd,,,,,,,,,,,
Nottinghamshire County Council,1111/1001,Adult Social Care and Health,ASCH,Supplies & Services,DBA,03/12/2014,11-14273,2728.19,M Maloney Country Butchers & B Ltd,,,,,,,,,,,
Nottinghamshire County Council,1111/1001,Adult Social Care and Health,ASCH,Supplies & Services,DBA,03/12/2014,11-14277,1753.73,Brake Bros Ltd,,,,,,,,,,,
Nottinghamshire County Council,1111/1001,Adult Social Care and Health,ASCH,Supplies & Services,DBA,03/12/2014,11-14280,61.47,Brake Bros Ltd,,,,,,,,,,,
Nottinghamshire County Council,1111/1001,Adult Social Care and Health,ASCH,Supplies & Services,DBA,10/12/2014,11-15100,2413.55,Hallam Country Fresh Foods Ltd,,,,,,,,,,,
Nottinghamshire County Council,1111/1001,Adult Social Care and Health,ASCH,Supplies & Services,DBA,11/12/2014,11-15195,41.68,Brake Bros Ltd,,,,,,,,,,,
Nottinghamshire County Council,1111/1001,Adult Social Care and Health,ASCH,Supplies & Services,DBA,11/12/2014,11-15198,1346.78,Brake Bros Ltd,,,,,,,,,,,
Nottinghamshire County Council,1111/1001,Adult Social Care and Health,ASCH,Supplies & Services,DBA,11/12/2014,11-15199,167.58,Brake Bros Ltd,,,,,,,,,,,
Nottinghamshire County Council,1111/1001,Adult Social Care and Health,ASCH,Supplies & Services,DBA,11/12/2014,11-15203,4054.46,Brake Bros Ltd,,,,,,,,,,,
Nottinghamshire County Council,1111/1001,Adult Social Care and Health,ASCH,Supplies & Services,DBA,16/12/2014,11-15521,2422.14,Hallam Country Fresh Foods Ltd,,,,,,,,,,,
Nottinghamshire County Council,1111/1001,Adult Social Care and Health,ASCH,Supplies & Services,DBA,16/12/2014,11-15526,889.7,Brake Bros Ltd,,,,,,,,,,,
Nottinghamshire County Council,1111/1001,Adult Social Care and Health,ASCH,Supplies & Services,DBA,16/12/2014,11-15527,644.16,Brake Bros Ltd,,,,,,,,,,,
Nottinghamshire County Council,1111/1001,Adult Social Care and Health,ASCH,Supplies & Services,DBA,16/12/2014,11-15528,723.53,Brake Bros Ltd,,,,,,,,,,,
Nottinghamshire County Council,1111/1001,Adult Social Care and Health,ASCH,Supplies & Services,DBA,16/12/2014,11-15529,43.22,Brake Bros Ltd,,,,,,,,,,,
Nottinghamshire County Council,1111/1001,Adult Social Care and Health,ASCH,Supplies & Services,DBA,16/12/2014,11-15533,1418.01,Brake Bros Ltd,,,,,,,,,,,
Nottinghamshire County Council,1111/1001,Adult Social Care and Health,ASCH,Supplies & Services,DBA,16/12/2014,11-15536,1130.52,Brake Bros Ltd,,,,,,,,,,,
Nottinghamshire County Council,1111/1001,Adult Social Care and Health,ASCH,Supplies & Services,DBA,16/12/2014,11-15538,89.01,Brake Bros Ltd,,,,,,,,,,,
Nottinghamshire County Council,1111/1001,Adult Social Care and Health,ASCH,Supplies & Services,DBA,16/12/2014,11-15541,885.38,Brake Bros Ltd,,,,,,,,,,,
Nottinghamshire County Council,1111/1001,Adult Social Care and Health,ASCH,Supplies & Services,DBA,16/12/2014,11-15542,505.48,Brake Bros Ltd,,,,,,,,,,,
Nottinghamshire County Council,1111/1001,Adult Social Care and Health,ASCH,Supplies & Services,DBA,16/12/2014,11-15543,2326.85,Brake Bros Ltd,,,,,,,,,,,
Nottinghamshire County Council,1111/1001,Adult Social Care and Health,ASCH,Supplies & Services,DBA,16/12/2014,11-15546,128.96,Brake Bros Ltd,,,,,,,,,,,
Nottinghamshire County Council,1111/1001,Adult Social Care and Health,ASCH,Supplies & Services,DBA,16/12/2014,11-15550,275.12,Brake Bros Ltd,,,,,,,,,,,
Nottinghamshire County Council,1111/1001,Adult Social Care and Health,ASCH,Supplies & Services,DBA,16/12/2014,11-15554,3073.21,Brake Bros Ltd,,,,,,,,,,,
Nottinghamshire County Council,1111/1001,Adult Social Care and Health,ASCH,Supplies & Services,DBA,16/12/2014,11-15557,207.87,Brake Bros Ltd,,,,,,,,,,,
Nottinghamshire County Council,1111/1001,Adult Social Care and Health,ASCH,Supplies & Services,DBA,16/12/2014,11-15561,2447.07,Brake Bros Ltd,,,,,,,,,,,
Nottinghamshire County Council,1111/1001,Adult Social Care and Health,ASCH,Supplies & Services,DBA,16/12/2014,11-15564,2415.28,Brake Bros Ltd,,,,,,,,,,,
Nottinghamshire County Council,1111/1001,Adult Social Care and Health,ASCH,Supplies & Services,DBA,17/12/2014,11-15676,1301.83,Brake Bros Ltd,,,,,,,,,,,
Nottinghamshire County Council,1111/1001,Adult Social Care and Health,ASCH,Supplies & Services,DBA,17/12/2014,11-15679,49.85,Brake Bros Ltd,,,,,,,,,,,
Nottinghamshire County Council,1111/1001,Adult Social Care and Health,ASCH,Supplies & Services,DBA,17/12/2014,11-15682,514.09,Brake Bros Ltd,,,,,,,,,,,
Nottinghamshire County Council,1111/1001,Adult Social Care and Health,ASCH,Supplies & Services,DBA,17/12/2014,11-15686,631.99,Brake Bros Ltd,,,,,,,,,,,
Nottinghamshire County Council,1111/1001,Adult Social Care and Health,ASCH,Supplies & Services,DBA,17/12/2014,11-15687,109.71,Brake Bros Ltd,,,,,,,,,,,
Nottinghamshire County Council,1111/1001,Adult Social Care and Health,ASCH,Supplies & Services,DBA,17/12/2014,11-15691,1823.74,Brake Bros Ltd,,,,,,,,,,,
Nottinghamshire County Council,1111/1001,Adult Social Care and Health,ASCH,Supplies & Services,DBA,18/12/2014,11-16008,3344.49,Brake Bros Ltd,,,,,,,,,,,
Nottinghamshire County Council,1111/1001,Adult Social Care and Health,ASCH,Supplies & Services,DBA,18/12/2014,11-16011,408.75,Brake Bros Ltd,,,,,,,,,,,
Nottinghamshire County Council,1111/1001,Adult Social Care and Health,ASCH,Supplies & Services,DBA,24/12/2014,11-16551,2947.87,Brake Bros Ltd,,,,,,,,,,,
Nottinghamshire County Council,1111/1001,Adult Social Care and Health,ASCH,Supplies & Services,DBA,24/12/2014,11-16554,94.99,Brake Bros Ltd,,,,,,,,,,,
Nottinghamshire County Council,1111/1001,Adult Social Care and Health,ASCH,Supplies & Services,DBA,24/12/2014,11-16557,1769.33,Brake Bros Ltd,,,,,,,,,,,
Nottinghamshire County Council,1111/1001,Adult Social Care and Health,ASCH,Supplies & Services,DBA,24/12/2014,11-16560,48.69,Brake Bros Ltd,,,,,,,,,,,
Nottinghamshire County Council,1111/1001,Adult Social Care and Health,ASCH,Supplies & Services,DBA,24/12/2014,11-16563,2418.31,Hallam Country Fresh Foods Ltd,,,,,,,,,,,
Nottinghamshire County Council,1111/1001,Adult Social Care and Health,ASCH,Supplies & Services,DBA,24/12/2014,11-16567,547.23,Brake Bros Ltd,,,,,,,,,,,
Nottinghamshire County Council,1111/1001,Adult Social Care and Health,ASCH,Supplies & Services,DBA,24/12/2014,11-16573,4921.02,M Maloney Country Butchers & B Ltd,,,,,,,,,,,
